{"text_format":"1","workbook":"xlsx","n_sheets":14,"sheets":["Auswertung","Tiere_Zu_Abgang","Futter","Kosten","Bestandsregister","Arzneimittelbuch","QS","Info","Modul1","Modul2","Modul3","Modul4","Modul5","Modul6"],"not_rendered":{"charts":1,"images":6,"macros":1,"external_links":0,"defined_names":13,"comments":5,"pivot_tables":0},"unopened":[],"bounds":{"document_bytes":16777216,"sheet_cells":100000,"rows_first":2000,"rows_last":500,"rows_between":2000,"halvings":0,"cell_chars":16384,"cell_head_chars":4096},"cells_cut":0,"cells_raw":0,"read":"whole","date_system":"1900"}

{"sheet":"Auswertung","index":0,"n_rows":243,"n_cols":117,"rows_kept":243,"cut":false,"hidden":false,"merged":[[44,6,44,7],[40,22,40,23],[41,2,41,3],[41,6,41,7],[41,12,41,13],[42,2,42,3],[42,6,42,7],[38,2,38,3],[38,6,38,7],[39,2,39,3],[39,6,39,7],[40,2,40,3],[40,6,40,7],[37,6,37,7],[37,12,38,13],[37,14,38,14],[37,15,38,15],[37,16,38,16],[28,1,39,1],[29,2,29,3],[29,6,29,7],[30,2,30,3],[30,6,30,7],[31,2,31,3],[31,6,31,7],[32,2,32,3],[32,6,32,7],[33,6,33,7],[34,2,35,3],[34,4,34,7],[35,6,35,7],[36,2,36,3],[36,6,36,7],[37,2,37,3],[26,12,27,13],[26,14,27,14],[26,15,27,15],[26,16,27,16],[27,2,27,3],[26,2,26,3],[21,2,21,3],[23,2,23,3],[24,2,24,3],[25,2,25,3],[22,2,22,3],[15,2,15,3],[16,2,16,3],[18,5,18,7],[19,2,19,3],[20,2,20,3],[7,3,7,4],[12,14,13,14],[12,16,13,16],[13,2,13,3],[14,2,14,3],[14,12,14,13],[1,12,2,12],[2,2,2,6],[4,3,4,5],[5,3,5,5],[6,3,6,5]]}
[]
[null,null,null,null,null,null,null,null,null,null,null,null,"Stall / Ställe / Partie Nr.:",null,"Strg+h=Eingaben löschen"]
[null,null,{"$f":"IF(C10<>\"\",\"vorläufige Auswertung Schweinemast\",IF(E36<>\"\",\"vorläufige Auswertung Schweinemast\",\"Auswertung Schweinemast\"))","v":"Auswertung Schweinemast"},null,null,null,null,null,"Berechnet",null,null,null,null,1,null,null,null,null,null,null,null,{"$f":"Futter!$D$5","v":"Futtermittelfirma"},null,null,null,null,null,null,null,null,null,null,null,null,null,null,null,null,null,null,null,null,null,null,null,null,null,null,null,null,null,null,null,null,null,null,null,null,null,null,null,null,null,null,null,null,null,null,null,null,null,null,null,null,null,null,null,null,null,null,null,null,null,null,null,null,null,null,null,null,null,null,null,null,null,null,null,null,null,null,null,null,null,null,null,null,null,null,null,null,null,null,"Mastauswertung"]
[null,null,null,null,null,null,null,null,"am:",null,null,null,"Standort:",null,null,null,null,null,null,null,null,{"$f":"Futter!$D$50","v":0}]
[null,null,"Name:",null,null,null,null,null,{"$f":"TODAY()","v":"2020-09-01"},null,null,null,"Stallplätze:",null,null,null,null,null,null,null,null,{"$f":"Futter!$D$95","v":0},null,null,null,null,null,null,null,null,null,null,null,null,null,null,null,null,null,null,null,null,null,null,null,null,null,null,null,null,null,null,null,null,null,null,null,null,null,null,null,null,null,null,null,null,null,null,null,null,null,null,null,null,null,null,null,null,null,null,null,null,null,null,null,null,null,null,null,null,null,null,null,null,null,null,null,null,null,null,null,null,null,null,null,null,null,null,null,null,null,{"$f":"C5","v":"Name:"}," Stall:",{"$f":"IF($L$75=\"\",\"\",$L$75)","v":""},"Händler:",{"$f":"IF($G$5=\"\",\"\",$G$5)","v":""}]
[null,null,"Ort:",null,null,null,null,null,null,null,null,null,"Silo(s) Nr.:",null,null,null,null,null,null,null,null,null,null,null,null,null,null,null,null,null,null,null,null,null,null,null,null,null,null,null,null,null,null,null,null,null,null,null,null,null,null,null,null,null,null,null,null,null,null,null,null,null,null,null,null,null,null,null,null,null,null,null,null,null,null,null,null,null,null,null,null,null,null,null,null,null,null,null,null,null,null,null,null,null,null,null,null,null,null,null,null,null,null,null,null,null,null,null,null,null,null,{"$f":"C6","v":"Ort:"}," Stallplätze:",{"$f":"IF($L$76=\"\",\"\",$L$76)","v":""},"Einstalldatum:",{"$f":"IF($O$76=\"\",\"\",$O$76)","v":""}]
[null,null,"Zusatz:",null,null,null,null,null,null,null,null,null,"Umtriebe/Jahr:",null,null,null,null,null,null,null,null,null,null,null,null,null,null,null,null,null,null,null,null,null,null,null,null,null,null,null,null,null,null,null,null,null,null,null,null,null,null,null,null,null,null,null,null,null,null,null,null,null,null,null,null,null,null,null,null,null,null,null,null,null,null,null,null,null,null,null,null,null,null,null,null,null,null,null,null,null,null,null,null,null,null,null,null,null,null,null,null,null,null,null,null,null,null,null,null,null,null,{"$f":"C7","v":"Zusatz:"}," Rasse:",{"$f":"IF($L$77=\"\",\"\",$L$77)","v":""},"Ausstalldatum:",{"$f":"IF($O$77=\"\",\"\",$O$77)","v":""}]
[null,null,"Betriebs Nr.:",null,null,null,{"$f":"IF(N8=\"\",\"             Bitte angeben!!---->\",\"\")","v":"             Bitte angeben!!---->"},null,"Berechnung incl. Steuer J/N?:",null,null,null,null,null,null,null,null,null,null,"Deckberechnung Ja oder Nein"]
[]
[null,null,{"$f":"IF(E15=0,\"\",IF((E15+E16+E17)>E14,\"Achtung: Zahl der abgegangen Tiere ist grösser als Zukauf Ferkel!!!\",IF((E14-E15-E16-E17)<6,\"\",IF((E14-E15-E16-E17)>50,\"\",IF((E14-E15-E16-E17)<=50,CONCATENATE(\"Achtung: Es befinden sich noch \",E14-E15-E16-E17,\" Tiere in der Nachmast, oder der Eintrag bei Verluste ist nicht korrekt!!!!\",\"\"))))))","v":""},null,null,null,null,null,null,null,null,null,null,null,null,null,null,null,null,{"$f":"IF(C10<>\"\",1,0)","v":0},null,null,null,null,null,null,null,null,null,null,null,null,null,null,null,null,null,null,null,null,null,null,null,null,null,null,null,null,null,null,null,null,null,null,null,null,null,null,null,null,null,null,null,null,null,null,null,null,null,null,null,null,null,null,null,null,null,null,null,null,null,null,null,null,null,null,null,null,null,null,null,null,null,null,null,null,null,null,null,null,null,null,null,null,null,null,null,null,null,null,null,"1.: Erfassung"]
[null,null,"I. Erfassung:",null,"Ø EK-Datum:",{"$f":"IF(Tiere_Zu_Abgang!T21=0,\"\",Tiere_Zu_Abgang!U21)","v":"2020-05-15"},null,"Ø VK-Datum:",{"$f":"IF(Tiere_Zu_Abgang!T38=0,\"\",Tiere_Zu_Abgang!T39)","v":"2020-08-19T18:00:00"},null,null,null,{"$f":"IF(T14>0,\"III. Deckungsbeitragsrechnung\",IF(T13>0,\"Berechnung Deckungsbeitrag nicht möglich, da Durchgang noch läuft!!\",\"III. Deckungsbeitragsrechnung\"))","v":"III. Deckungsbeitragsrechnung"},null,null,null,null,null,null,{"$f":"IF(E35<>\"\",1,0)","v":0}]
[null,null,{"$f":"IF(Tiere_Zu_Abgang!V83>0,\"Achtung: Berechnung nicht möglich, da im Blatt Tiere-Zu-Abgang einige Daten fehlen!!\",\"\")","v":""},null,null,null,null,null,null,null,null,null,null,null,null,null,null,null,null,{"$f":"IF(E15=0,1,0)","v":0}]
[null,null,"Tiere Zu- u. Abgang",null,"Stück","Ø kg/Tier","Ø Euro/Tier","Euro/Gesamt","Ø Euro/kg",null,null,null,"1.: Ertrag",null,"Je verkauftes Mastschwein",null,"Gesamt Durchgang",null,null,{"$f":"SUM(T10:T12)","v":0},null,null,null,null,null,null,null,null,null,null,null,null,null,null,null,null,null,null,null,null,null,null,null,null,null,null,null,null,null,null,null,null,null,null,null,null,null,null,null,null,null,null,null,null,null,null,null,null,null,null,null,null,null,null,null,null,null,null,null,null,null,null,null,null,null,null,null,null,null,null,null,null,null,null,null,null,null,null,null,null,null,null,null,null,null,null,null,null,null,null,null,"Tierdaten:","Stück","kg/Stück","DM/Stück","DM gesamt","DM/kg"]
[null,null,"Zukauf Ferkel:",null,{"$f":"Tiere_Zu_Abgang!J21","v":100},{"$f":"Tiere_Zu_Abgang!S21","v":30},{"$f":"IF(E14=0,0,H14/E14)","v":100},{"$f":"Tiere_Zu_Abgang!X21","v":10000},{"$f":"IF(F14=0,0,IF(G14=0,0,Tiere_Zu_Abgang!M21/Tiere_Zu_Abgang!S21))","v":3.3333333333333335},null,null,null,null,null,null,null,null,null,null,{"$f":"IF(E14>0,0,IF(T13>0,T13,T13))","v":0},null,null,null,null,null,null,null,null,null,null,null,null,null,null,null,null,null,null,null,null,null,null,null,null,null,null,null,null,null,null,null,null,null,null,null,null,null,null,null,null,null,null,null,null,null,null,null,null,null,null,null,null,null,null,null,null,null,null,null,null,null,null,null,null,null,null,null,null,null,null,null,null,null,null,null,null,null,null,null,null,null,null,null,null,null,null,null,null,null,null,null,"Zukauf Ferkel:",{"$f":"$M$88","v":0},{"$f":"IF($E$14=0,0,$N$88/$M$88)","v":{"$error":"#DIV/0!"}},{"$f":"$O$88","v":0},{"$f":"$P$88","v":0},{"$f":"IF($P$88=0,0,$P$88/$N$88)","v":0}]
[null,null,"Verkauf Mastschweine:",null,{"$f":"Tiere_Zu_Abgang!J38","v":95},{"$f":"Tiere_Zu_Abgang!AB38","v":115.78947368421052},{"$f":"IF(E15=0,0,H15/E15)","v":136.84210526315789},{"$f":"Tiere_Zu_Abgang!X38","v":13000},{"$f":"IF(F15=0,0,IF(G15=0,0,Tiere_Zu_Abgang!S38))","v":1.497222222222222},null,null,null,"Mastschweine:",null,{"$f":"IF(E15=0,0,Q15/E15)","v":136.84210526315789},null,{"$f":"$H$15","v":13000},null,null,null,null,null,null,null,null,null,null,null,null,null,null,null,null,null,"Mastschweine",{"$f":"Q15","v":13000},null,null,null,null,null,null,null,null,null,null,null,null,null,null,null,null,null,null,null,null,null,null,null,null,null,null,null,null,null,null,null,null,null,null,null,null,null,null,null,null,null,null,null,null,null,null,null,null,null,null,null,null,null,null,null,null,null,null,null,null,null,null,null,null,null,null,null,null,null,null,null,null,null,null,null,"Verkauf Mastschweine:",{"$f":"$L$105","v":0},{"$f":"IF($E$15=0,0,$M$105/$L$105)","v":{"$error":"#DIV/0!"}},{"$f":"IF($P$105=0,0,$P$105/$L$105)","v":0},{"$f":"$P$105","v":0},{"$f":"IF($P$105=0,0,$P$105/$M$105)","v":0}]
[null,null,"Notschlachtungen:",null,{"$f":"Tiere_Zu_Abgang!U47","v":0},{"$f":"Tiere_Zu_Abgang!V47","v":0},{"$f":"IF(H16=0,0,H16/E16)","v":0},{"$f":"Tiere_Zu_Abgang!Y47","v":0},{"$f":"IF(F16=0,0,IF(G16=0,0,(Tiere_Zu_Abgang!L48/Tiere_Zu_Abgang!J48)/F16))","v":0},null,null,null,"Notschlachtungen:",null,{"$f":"IF(E16=0,0,Q16/E16)","v":0},null,{"$f":"$H$16","v":0},null,null,null,null,null,null,null,null,null,null,null,null,null,null,null,null,null,"Notschlachtungen",{"$f":"Q16","v":0},null,null,null,null,null,null,null,null,null,null,null,null,null,null,null,null,null,null,null,null,null,null,null,null,null,null,null,null,null,null,null,null,null,null,null,null,null,null,null,null,null,null,null,null,null,null,null,null,null,null,null,null,null,null,null,null,null,null,null,null,null,null,null,null,null,null,null,null,null,null,null,null,null,null,null,"Notschlachtungen:",{"$f":"$M$116","v":0},{"$f":"IF($E$16=0,0,$N$116/$M$116)","v":0},{"$f":"IF($O$116=0,0,$O$116/$M$116)","v":0},{"$f":"$O$116","v":0},{"$f":"IF($O$116=0,0,$O$116/$N$116)","v":0}]
[null,null,"Verluste:",null,{"$f":"Tiere_Zu_Abgang!J83","v":5},{"$f":"IF(E17=0,0,Tiere_Zu_Abgang!U83)","v":320},null,null,null,null,null,null,"Gesamtertrag:",null,{"$f":"IF(Q17=0,0,Q17/(E15+E16))","v":136.84210526315789},null,{"$f":"SUM(Q15:Q16)","v":13000},null,null,null,null,null,null,null,null,null,null,null,null,null,null,null,null,null,"Ferkel Einkauf",{"$f":"Q20","v":10000},null,null,null,null,null,null,null,null,null,null,null,null,null,null,null,null,null,null,null,null,null,null,null,null,null,null,null,null,null,null,null,null,null,null,null,null,null,null,null,null,null,null,null,null,null,null,null,null,null,null,null,null,null,null,null,null,null,null,null,null,null,null,null,null,null,null,null,null,null,null,null,null,null,null,null,"Verluste:",{"$f":"$M$132","v":0},{"$f":"IF($E$17=0,0,$N$132/$M$132)","v":{"$error":"#DIV/0!"}}]
[null,null,null,null,null,null,null,null,null,null,null,null,null,null,null,null,null,null,null,null,null,null,null,null,null,null,null,null,null,null,null,null,null,null,"Futtermittel",{"$f":"Q21","v":2940}]
[null,null,"Futterverbrauch:",null,"Lieferant:",{"$f":"IF(V4=0,V3,IF(V5=0,CONCATENATE(V3,\" + \",V4),CONCATENATE(V3,\" + \",V4,\"+\",V5,\"\")))","v":"Futtermittelfirma"},null,null,null,null,null,null,"2.: Aufwand",null,null,null,null,null,null,{"$f":"E14-E15-E16-E17","v":0},"<---fehlende Tiere",null,null,null,null,null,null,null,null,null,null,null,null,null,"Variable Kosten",{"$f":"Q22","v":650}]
[null,null,"Futtersorte",null,"kg / Tier","dt","Ø Euro/dt","Euro gesamt",null,null,null,null,"Ferkel:",null,{"$f":"IF(E14=0,0,IF(E15=0,0,G14))","v":100},null,{"$f":"$H$14","v":10000},null,null,null,null,null,null,null,null,null,null,null,null,null,null,null,null,null,"Feste Kosten",{"$f":"T39","v":170.95890410958907},null,null,null,null,null,null,null,null,null,null,null,null,null,null,null,null,null,null,null,null,null,null,null,null,null,null,null,null,null,null,null,null,null,null,null,null,null,null,null,null,null,null,null,null,null,null,null,null,null,null,null,null,null,null,null,null,null,null,null,null,null,null,null,null,null,null,null,null,null,null,null,null,null,null,null,"Futteraufwand:",null,"dt","DM/dt","DM gesamt"]
[null,null,{"$f":"IF(Futter!$X$41=\"\",\"\",Futter!$X$41)","v":"Vormast"},null,{"$f":"IF(E14=0,\"\",IF(Futter!$X$61=\"\",\"\",(Futter!$X$61/E14)*100))","v":180},{"$f":"IF(Futter!$X$61=\"\",\"\",Futter!$X$61)","v":180},{"$f":"IF(F21=\"\",\"\",IF(H21=\"\",0,H21/F21))","v":8.3333333333333339},{"$f":"IF(Futter!$X$81=\"\",\"\",Futter!$X$81)","v":1500},null,null,null,null,"Futtermittel:",null,{"$f":"IF(E14=0,0,IF(E15=0,0,Q21/E15))","v":30.94736842105263},null,{"$f":"IF(G28=\"\",0,$H$28)","v":2940},null,null,null,null,null,null,null,null,null,null,null,null,null,null,null,null,null,{"$f":"IF(AJ21=0,\"\",IF(AJ21<0,\"Verlust\",\"Gewinn\"))","v":"Verlust"},{"$f":"Q38","v":-760.95890410958907},null,null,null,null,null,null,null,null,null,null,null,null,null,null,null,null,null,null,null,null,null,null,null,null,null,null,null,null,null,null,null,null,null,null,null,null,null,null,null,null,null,null,null,null,null,null,null,null,null,null,null,null,null,null,null,null,null,null,null,null,null,null,null,null,null,null,null,null,null,null,null,null,null,null,null,"Futterverbrauch Starter:",null,{"$f":"$AL$16","v":0},{"$f":"$AM$16","v":0},{"$f":"$AN$16","v":0}]
[null,null,{"$f":"IF(Futter!$Y$41=\"\",\"\",Futter!$Y$41)","v":"Mittelmast"},null,{"$f":"IF(E14=0,\"\",IF(Futter!$Y$61=\"\",\"\",Futter!$Y$61/E14*100))","v":5},{"$f":"IF(Futter!$Y$61=\"\",\"\",Futter!$Y$61)","v":5},30,{"$f":"IF(Futter!$Y$81=\"\",\"\",Futter!$Y$81)","v":150},null,null,null,null,"Variable Kosten:",null,{"$f":"IF(E14=0,0,IF(E15=0,0,Q22/E15))","v":6.8421052631578947},null,{"$f":"SUM(E31:E33)+SUM(I30:I33)","v":650},null,null,null,null,null,null,null,null,null,null,null,null,null,null,null,null,null,{"$f":"IF(AJ22=0,\"\",IF(AJ22>0,\"Gewinn\"))","v":""},{"$f":"IF(Q38>0,Q38,0)","v":0},null,null,null,null,null,null,null,null,null,null,null,null,null,null,null,null,null,null,null,null,null,null,null,null,null,null,null,null,null,null,null,null,null,null,null,null,null,null,null,null,null,null,null,null,null,null,null,null,null,null,null,null,null,null,null,null,null,null,null,null,null,null,null,null,null,null,null,null,null,null,null,null,null,null,null,"Futterverbrauch Vormast:",null,{"$f":"$AL$22","v":0},{"$f":"$AM$22","v":0},{"$f":"$AN$22","v":0}]
[null,null,{"$f":"IF(Futter!$Z$41=\"\",\"\",Futter!$Z$41)","v":"Endmast I"},null,{"$f":"IF(E14=0,\"\",IF(Futter!$Z$61=\"\",\"\",Futter!$Z$61/E14*100))","v":6},{"$f":"IF(Futter!$Z$61=\"\",\"\",Futter!$Z$61)","v":6},{"$f":"IF(F23=\"\",\"\",IF(H23=\"\",0,H23/F23))","v":15},{"$f":"IF(Futter!$Z$81=\"\",\"\",Futter!$Z$81)","v":90},null,null,null,null,"Verluste:",null,{"$f":"IF(E14=0,0,IF(E15=0,0,((Tiere_Zu_Abgang!L21/Tiere_Zu_Abgang!J21)*E17)/E15))","v":5.2631578947368425}]
[null,null,{"$f":"IF(Futter!$AA$41=\"\",\"\",Futter!$AA$41)","v":"Endmast II"},null,{"$f":"IF(E14=0,\"\",IF(Futter!$AA$61=\"\",\"\",Futter!$AA$61/E14*100))","v":7.0000000000000009},{"$f":"IF(Futter!$AA$61=\"\",\"\",Futter!$AA$61)","v":7},{"$f":"IF(F24=\"\",\"\",IF(H24=\"\",0,H24/F24))","v":21.428571428571427},{"$f":"IF(Futter!$AA$81=\"\",\"\",Futter!$AA$81)","v":150},null,null,null,null,"Gesamtaufwand:",null,{"$f":"IF(E14=0,0,SUM(O20:O23))","v":143.05263157894737},null,{"$f":"SUM(Q20:Q22)","v":13590},null,null,null,null,null,null,null,null,null,null,null,null,null,null,null,null,null,null,null,null,null,null,null,null,null,null,null,null,null,null,null,null,null,null,null,null,null,null,null,null,null,null,null,null,null,null,null,null,null,null,null,null,null,null,null,null,null,null,null,null,null,null,null,null,null,null,null,null,null,null,null,null,null,null,null,null,null,null,null,null,null,null,null,null,null,null,null,null,null,null,null,null,null,null,"Futterverbrauch Endmast I.:",null,{"$f":"$AL$30","v":0},{"$f":"$AM$30","v":0},{"$f":"$AN$30","v":0}]
[null,null,{"$f":"IF(Futter!$AB$41=\"\",\"\",Futter!$AB$41)","v":"ddd"},null,{"$f":"IF(E14=0,\"\",IF(Futter!$AB$61=\"\",\"\",Futter!$AB$61/E14*100))","v":8},{"$f":"IF(Futter!$AB$61=\"\",\"\",Futter!$AB$61)","v":8},{"$f":"IF(F25=\"\",\"\",IF(H25=\"\",0,H25/F25))","v":31.25},{"$f":"IF(Futter!$AB$81=\"\",\"\",Futter!$AB$81)","v":250}]
[null,null,{"$f":"IF(Futter!$AC$41=\"\",\"\",Futter!$AC$41)","v":"dddd"},null,{"$f":"IF(E14=0,\"\",IF(Futter!$AC$61=\"\",\"\",Futter!$AC$61/E14*100))","v":9},{"$f":"IF(Futter!$AC$61=\"\",\"\",Futter!$AC$61)","v":9},{"$f":"IF(F26=\"\",\"\",IF(H26=\"\",0,H26/F26))","v":23.333333333333332},{"$f":"IF(Futter!$AC$81=\"\",\"\",Futter!$AC$81)","v":210},null,null,null,null,"3.: Deckungsbeitrag"]
[null,null,{"$f":"IF(Futter!$AD$41=\"\",\"\",Futter!$AD$41)","v":"erer"},null,{"$f":"IF(E14=0,\"\",IF(Futter!$AD$61=\"\",\"\",Futter!$AD$61/E14*100))","v":25},{"$f":"IF(Futter!$AD$61=\"\",\"\",Futter!$AD$61)","v":25},{"$f":"IF(F27=\"\",\"\",IF(H27=\"\",0,H27/F27))","v":23.6},{"$f":"IF(Futter!$AD$81=\"\",\"\",Futter!$AD$81)","v":590},null,null,null,null,{"$f":"\"=> Deckungsbeitrag 1:\"","v":"=> Deckungsbeitrag 1:"},null,{"$f":"IF(T14>0,0,IF(T13>0,0,O17-O24))","v":-6.2105263157894797},null,{"$f":"IF(T14>0,0,IF(T13>0,0,Q17-Q24))","v":-590},null,null,null,null,null,null,null,null,null,null,null,null,null,null,null,null,null,null,null,null,null,null,null,null,null,null,null,null,null,null,null,null,null,null,null,null,null,null,null,null,null,null,null,null,null,null,null,null,null,null,null,null,null,null,null,null,null,null,null,null,null,null,null,null,null,null,null,null,null,null,null,null,null,null,null,null,null,null,null,null,null,null,null,null,null,null,null,null,null,null,null,null,null,null,"Futterverbrauch Endmast II.:",null,{"$f":"$AL$36","v":0},{"$f":"$AM$36","v":0},{"$f":"$AN$36","v":0}]
[null,null,"Futterverbrauch gesamt:",null,{"$f":"IF(E14=0,\"\",IF(Futter!$AJ$61=\"\",\"\",Futter!$AJ$61/E14*100))","v":240},{"$f":"IF(Futter!$AJ$61=0,\"\",Futter!$AJ$61)","v":240},12.25,{"$f":"IF(Futter!$AJ$81=0,\"\",Futter!$AJ$81)","v":2940},null,null,null,null,null,null,null,null,null,null,null,null,null,null,null,null,null,null,null,null,null,null,null,null,null,null,null,null,null,null,null,null,null,null,null,null,null,null,null,null,null,null,null,null,null,null,null,null,null,null,null,null,null,null,null,null,null,null,null,null,null,null,null,null,null,null,null,null,null,null,null,null,null,null,null,null,null,null,null,null,null,null,null,null,null,null,null,null,null,null,null,null,null,null,null,null,null,null,null,null,null,null,null,"Futterverbrauch gesamt:",null,{"$f":"$AL$38","v":0},{"$f":"$AM$38","v":0},{"$f":"$AN$38","v":0}]
[null,"by Heinr.-Bernh. Muenzebrock Version 2020",null,null,null,null,null,null,null,null,null,null,"Feste Kosten:","Ges-Kost/Jahr",{"$f":"SUM(O30:O37)","v":1.7095890410958905},null,{"$f":"SUM(Q30:Q37)","v":170.95890410958907},null,null,"Berechnung der Kosten/Tier"]
[null,null,"Variable Kosten:",null,null,null,{"$f":"IF(Kosten!$R$18=0,\"\",Kosten!$R$18)","v":""},null,{"$f":"IF(Kosten!$R$19=\"\",\"\",Kosten!$R$19)","v":0},null,null,null,{"$f":"IF(Kosten!W21=0,\"\",Kosten!W21)","v":"Pacht:"},{"$f":"IF(M30=\"\",\"\",V30)","v":500},{"$f":"IF($T$14>0,0,IF(M30=\"\",\"\",T30))","v":1.4246575342465755},null,{"$f":"IF($T$14>0,0,IF(M30=\"\",\"\",U30))","v":142.46575342465755},null,null,{"$f":"IF($E$14=0,0,U30/$E$14)","v":1.4246575342465755},{"$f":"IF($E$14=0,0,IF($V$30=0,0,IF($N$7=\"\",V30/W42,V30/$N$7)))","v":142.46575342465755},{"$f":"IF(M30=\"\",0,IF(T14>0,0,IF(Kosten!W22=0,\"\",Kosten!W22)))","v":500},null,null,null,null,null,null,null,null,null,null,null,null,null,null,null,null,null,null,null,null,null,null,null,null,null,null,null,null,null,null,null,null,null,null,null,null,null,null,null,null,null,null,null,null,null,null,null,null,null,null,null,null,null,null,null,null,null,null,null,null,null,null,null,null,null,null,null,null,null,null,null,null,null,null,null,null,null,null,null,null,null,null,null,null,null,null,null,null,null,"Sonstige Spezialkosten:"]
[null,null,{"$f":"IF(Kosten!$O$18=0,\"\",Kosten!$O$18)","v":"Tierarzt u. Medikamente: "},null,{"$f":"IF(Kosten!$O$19=\"\",\"\",Kosten!$O$19)","v":500},null,{"$f":"IF(Kosten!$S$18=0,\"\",Kosten!$S$18)","v":""},null,{"$f":"IF(Kosten!$S$19=\"\",\"\",Kosten!$S$19)","v":0},null,null,null,{"$f":"IF(Kosten!X21=0,\"\",Kosten!X21)","v":"Gülleabgabe"},100,0.28493150684931506,null,28.493150684931507,null,null,0.28493150684931506,{"$f":"IF($E$14=0,0,IF($V$30=0,0,IF($N$7=\"\",V31/W42,V31/$N$7)))","v":28.493150684931507},{"$f":"IF(M31=\"\",0,IF(T14>0,0,IF(Kosten!X22=0,\"\",Kosten!X22)))","v":100},null,null,null,null,null,null,null,null,null,null,null,null,null,null,null,null,null,null,null,null,null,null,null,null,null,null,null,null,null,null,null,null,null,null,null,null,null,null,null,null,null,null,null,null,null,null,null,null,null,null,null,null,null,null,null,null,null,null,null,null,null,null,null,null,null,null,null,null,null,null,null,null,null,null,null,null,null,null,null,null,null,null,null,null,null,null,null,null,null,"Tierarzt, Medikamente, Hygiene:",{"$f":"$AK$52","v":0},null,"Pacht:",{"$f":"$AN$52","v":0}]
[null,null,{"$f":"IF(Kosten!$P$18=0,\"\",Kosten!$P$18)","v":"Heizung:"},null,{"$f":"IF(Kosten!$P$19=\"\",\"\",Kosten!$P$19)","v":150},null,{"$f":"IF(Kosten!$T$18=0,\"\",Kosten!$T$18)","v":""},null,{"$f":"IF(Kosten!$T$19=\"\",\"\",Kosten!$T$19)","v":0},null,null,null,{"$f":"IF(Kosten!Y21=0,\"\",Kosten!Y21)","v":""},"","",null,"",null,null,0,{"$f":"IF($E$14=0,0,IF($V$30=0,0,IF($N$7=\"\",V32/W42,V32/$N$7)))","v":0},{"$f":"IF(M32=\"\",0,IF(T14>0,0,IF(Kosten!Y22=0,\"\",Kosten!Y22)))","v":0},null,null,null,null,null,null,null,null,null,null,null,null,null,null,null,null,null,null,null,null,null,null,null,null,null,null,null,null,null,null,null,null,null,null,null,null,null,null,null,null,null,null,null,null,null,null,null,null,null,null,null,null,null,null,null,null,null,null,null,null,null,null,null,null,null,null,null,null,null,null,null,null,null,null,null,null,null,null,null,null,null,null,null,null,null,null,null,null,null,"Strom, Wasser, Geräte:",{"$f":"\"$ae$\"","v":"$ae$"},null,"Lohn:",{"$f":"\"$ah$\"","v":"$ah$"}]
[null,null,{"$f":"IF(Kosten!$Q$18=0,\"\",Kosten!$Q$18)","v":""},null,{"$f":"IF(Kosten!$Q$19=\"\",\"\",Kosten!$Q$19)","v":0},null,{"$f":"IF(Kosten!$U$18=0,\"\",Kosten!$U$18)","v":""},null,{"$f":"IF(Kosten!$U$19=\"\",\"\",Kosten!$U$19)","v":0},null,null,null,{"$f":"IF(Kosten!Z21=0,\"\",Kosten!Z21)","v":""},"","",null,"",null,null,0,{"$f":"IF($E$14=0,0,IF($V$30=0,0,IF($N$7=\"\",V33/W42,V33/$N$7)))","v":0},{"$f":"IF(M33=\"\",0,IF(T14>0,0,IF(Kosten!Z22=0,\"\",Kosten!Z22)))","v":0},null,null,null,null,null,null,null,null,null,null,null,null,null,null,null,null,null,null,null,null,null,null,null,null,null,null,null,null,null,null,null,null,null,null,null,null,null,null,null,null,null,null,null,null,null,null,null,null,null,null,null,null,null,null,null,null,null,null,null,null,null,null,null,null,null,null,null,null,null,null,null,null,null,null,null,null,null,null,null,null,null,null,null,null,null,null,null,null,null,"Beiträge (Tierseuchenkasse):",{"$f":"$AK$61","v":0},null,"Heizung, Gas:",{"$f":"$AN$61","v":0}]
[null,null,null,null,null,null,null,null,null,null,null,null,{"$f":"IF(Kosten!AA21=0,\"\",Kosten!AA21)","v":""},"","",null,"",null,null,0,{"$f":"IF($E$14=0,0,IF($V$30=0,0,IF($N$7=\"\",V34/W42,V34/$N$7)))","v":0},{"$f":"IF(M34=\"\",0,IF(T14>0,0,IF(Kosten!AA22=0,\"\",Kosten!AA22)))","v":0}]
[null,null,"II. Mastverlauf",null,{"$f":"IF($E$14=0,\"\",IF($E$15=0,\"\",IF(($E$14-$E$15-$E$16-$E$17)>25,\"vorläufig, da Durchgang noch nicht beendet!!\",\"\")))","v":""},null,null,null,{"$f":"IF(E12=0,\"\",IF(E13=0,\"\",Tiere_Zu_Abgang!AB36))","v":""},null,null,null,{"$f":"IF(Kosten!AB21=0,\"\",Kosten!AB21)","v":""},"","",null,"",null,null,0,{"$f":"IF($E$14=0,0,IF($V$30=0,0,IF($N$7=\"\",V35/W42,V35/$N$7)))","v":0},{"$f":"IF(M35=\"\",0,IF(T14>0,0,IF(Kosten!AB22=0,\"\",Kosten!AB22)))","v":0}]
[null,null,null,null,null,null,"Ø Verkaufsgewicht:",null,{"$f":"IF($E$14=0,\"\",IF($E$15=0,\"\",Tiere_Zu_Abgang!$AB$38))","v":115.78947368421052},null,null,null,{"$f":"IF(Kosten!AC21=0,\"\",Kosten!AC21)","v":""},"","",null,"",null,null,0,{"$f":"IF($E$14=0,0,IF($V$30=0,0,IF($N$7=\"\",V36/W42,V36/$N$7)))","v":0},{"$f":"IF(M36=\"\",0,IF(T14>0,0,IF(Kosten!AC22=0,\"\",Kosten!AC22)))","v":0},null,null,null,null,null,null,null,null,null,null,null,null,null,null,null,null,null,null,null,null,null,null,null,null,null,null,null,null,null,null,null,null,null,null,null,null,null,null,null,null,null,null,null,null,null,null,null,null,null,null,null,null,null,null,null,null,null,null,null,null,null,null,null,null,null,null,null,null,null,null,null,null,null,null,null,null,null,null,null,null,null,null,null,null,null,null,null,null,null,"2.: Mastverlauf"]
[null,null,{"$f":"\"Ø Futtertage:\"","v":"Ø Futtertage:"},null,{"$f":"IF(Tiere_Zu_Abgang!$T$21=0,\"\",IF(Tiere_Zu_Abgang!$T$38=0,\"\",IF($E$14=0,\"\",IF($E$15=0,TODAY()-($F$11+1),IF($I$11=\"\",TODAY()-($F$11+1),($I$11-1)-($F$11+1))))))","v":94.75},null,"Ø Einstallgewicht",null,{"$f":"IF($E$14=0,\"\",Tiere_Zu_Abgang!$S$21)","v":30},null,null,null,{"$f":"IF(Kosten!AD21=0,\"\",Kosten!AD21)","v":""},"","",null,"",null,null,0,{"$f":"IF($E$14=0,0,IF($V$30=0,0,IF($N$7=\"\",V37/W42,V37/$N$7)))","v":0},{"$f":"IF(M37=\"\",0,IF(T14>0,0,IF(Kosten!AD22=0,\"\",Kosten!AD22)))","v":0}]
[null,null,"Belegungszeit /Tage:",null,{"$f":"IF(Tiere_Zu_Abgang!$Z$39=0,\"\",Tiere_Zu_Abgang!$Z$39)","v":97},null,"Ø Ausschlachtung:",null,{"$f":"IF($E$14=0,\"\",IF($E$15=0,\"\",IF(Tiere_Zu_Abgang!$AD$38<50,\"\",Tiere_Zu_Abgang!$AD$38/100)))","v":0.81818181818181823},null,null,null,{"$f":"\"=> Deckungsbeitrag 2:\"","v":"=> Deckungsbeitrag 2:"},null,{"$f":"IF(T14>0,0,IF(T13>0,0,O27-O29))","v":-7.9201153568853702},null,{"$f":"IF(T14>0,0,IF(T13>0,0,Q27-T39))","v":-760.95890410958907},null,null,"Summe Kosten",{"$f":"IF($E$14=0,0,IF($V$30=0,0,IF($N$7=\"\",V38/2.5,V38/$N$7)))","v":0},{"$f":"IF(T14>0,0,IF(Kosten!AE22=0,0,Kosten!AE22))","v":0},null,null,null,null,null,null,null,null,null,null,null,null,null,null,null,null,null,null,null,null,null,null,null,null,null,null,null,null,null,null,null,null,null,null,null,null,null,null,null,null,null,null,null,null,null,null,null,null,null,null,null,null,null,null,null,null,null,null,null,null,null,null,null,null,null,null,null,null,null,null,null,null,null,null,null,null,null,null,null,null,null,null,null,null,null,null,null,null,null,{"$f":"\"Ø Futtertage:\"","v":"Ø Futtertage:"},{"$f":"$Q$243","v":{"$error":"#DIV/0!"}},null,{"$f":"\"Ø Lebendgewicht:\"","v":"Ø Lebendgewicht:"},{"$f":"IF($L$105=0,0,$M$105/$L$105)","v":0},"kg"]
[null,null,"Futterverwertung:",null,{"$f":"IF($E$14=0,\"\",IF($E$15=0,\"\",IF(F28=\"\",\"\",($F28/Tiere_Zu_Abgang!$Y$38)*100)))","v":2.5},null,"Ø Mfl / Indexpkt:",null,{"$f":"IF($E$14=0,\"\",IF($E$15=0,\"\",Tiere_Zu_Abgang!$O$38))","v":0},null,null,null,null,null,null,null,null,null,null,{"$f":"SUM(U30:U38)","v":170.95890410958907},{"$f":"IF(E14=0,0,Q38/E14)","v":-7.6095890410958908},null,null,null,null,null,null,null,null,null,null,null,null,null,null,null,null,null,null,null,null,null,null,null,null,null,null,null,null,null,null,null,null,null,null,null,null,null,null,null,null,null,null,null,null,null,null,null,null,null,null,null,null,null,null,null,null,null,null,null,null,null,null,null,null,null,null,null,null,null,null,null,null,null,null,null,null,null,null,null,null,null,null,null,null,null,null,null,null,null,null,"tägl. Zunahmen:",{"$f":"IF((($M$105+$N$116+$N$132)-$N$88)=0,0,(($M$105+$N$116+$N$132)-$N$88)/$Q$219*1000)","v":0},null,{"$f":"\"Ø Schlachtgewicht:\"","v":"Ø Schlachtgewicht:"},{"$f":"IF($L$105=0,0,$N$105/$L$105)","v":0},"kg"]
[null,"By Heinr.-Bernh. Muenzebrock","Futterkosten/Tier/Tag:",null,{"$f":"IF($E$14=0,\"\",IF($H$28=\"\",\"\",IF($E$37=\"\",\"\",($H$28/$E$14/$E$37))))","v":0.31029023746701845},null,"Ø Fleischmaß:",null,{"$f":"IF($E$14=0,\"\",IF($E$15=0,\"\",Tiere_Zu_Abgang!$M$38))","v":0},null,null,null,null,null,null,null,null,null,null,{"$f":"SUM(O30:O37)","v":1.7095890410958905},null,null,null,null,null,null,null,null,null,null,null,null,null,null,null,null,null,null,null,null,null,null,null,null,null,null,null,null,null,null,null,null,null,null,null,null,null,null,null,null,null,null,null,null,null,null,null,null,null,null,null,null,null,null,null,null,null,null,null,null,null,null,null,null,null,null,null,null,null,null,null,null,null,null,null,null,null,null,null,null,null,null,null,null,null,null,null,null,null,null,null,"Futterverwertung:",{"$f":"IF($AL$38=0,0,\"1\"&\" \"&\":\"&\" \"&ROUND($AL$38*100/(($M$105+$N$132+$N$116)-$N$88),2))","v":0},null,"Verluste:",{"$f":"IF($M$132=0,0,$M$132/$M$88*100)","v":0},"%"]
[null,null,"Futter/Tier/Tag:",null,{"$f":"IF($E$14=0,\"\",IF($F$28=\"\",\"\",IF($E37=\"\",\"\",($F$28*100)/$E$14/$E$37)))","v":2.5329815303430081},null,"Ø Speckmaß:",null,{"$f":"IF($E$14=0,\"\",IF($E$15=0,\"\",Tiere_Zu_Abgang!$N$38))","v":0},null,null,null,"Mögl. Deckungsbeitrag / Platz:",null,{"$f":"IF(Q38=0,0,IF(T14>0,0,IF(N7=\"\",Q38/W43*W42,Q38/W43*N7)))","v":-26.70673076923077},"je Jahr",null,null,null,null,null,"Masttage","Ø Umtriebe:",null,null,null,null,null,null,null,null,null,null,null,null,null,null,null,null,null,null,null,null,null,null,null,null,null,null,null,null,null,null,null,null,null,null,null,null,null,null,null,null,null,null,null,null,null,null,null,null,null,null,null,null,null,null,null,null,null,null,null,null,null,null,null,null,null,null,null,null,null,null,null,null,null,null,null,null,null,null,null,null,null,null,null,null,null,null,null,null,"Futter/Tier/Tag:",{"$f":"IF($Q$219=0,0,$AL$38*100/$Q$219)","v":0},null,"Ausschlachtung:",{"$f":"IF($N$105=0,0,$N$105/$M$105*100)","v":0},"%"]
[null,null,"Futterkosten/Tier:",null,{"$f":"IF(E14=0,\"\",IF(G28=\"\",\"\",H28/E14))","v":29.4},null,"Verluste:",null,{"$f":"IF($E$14=0,\"\",$E$17/$E$14)","v":0.05},null,null,null,"Mögl. Umtriebe je Jahr:",null,{"$f":"IF(T13>0,0,IF(T14>0,0,W42))","v":3.5096153846153846},null,null,null,null,"Mögl. Umtriebe---->",null,{"$f":"IF(E14=0,0,E38+7)","v":104},{"$f":"IF(E14=0,0,365/V42)","v":3.5096153846153846},null,null,null,null,null,null,null,null,null,null,null,null,null,null,null,null,null,null,null,null,null,null,null,null,null,null,null,null,null,null,null,null,null,null,null,null,null,null,null,null,null,null,null,null,null,null,null,null,null,null,null,null,null,null,null,null,null,null,null,null,null,null,null,null,null,null,null,null,null,null,null,null,null,null,null,null,null,null,null,null,null,null,null,null,null,null,null,null,"Futterkosten/kg Zuwachs:",{"$f":"IF($G$28=0,0,$G$28/($M$105+$N$116+$N$132-$N$88))","v":{"$error":"#DIV/0!"}},null,"Magerfleischanteil:",{"$f":"$M$221","v":0},"%"]
[null,null,"Futterkosten/kg Zuwachs:",null,{"$f":"IF($E$14=0,\"\",IF($E$15=0,\"\",IF(E42=\"\",\"\",$E$42/($I$36-$I$37))))","v":0.34269938650306747},null,"tägl. Zunahmen:",null,{"$f":"IF($E$14=0,\"\",IF($E$15=0,\"\",($F$15-$F$14)/$E$37*1000))","v":905.4298014164699},null,null,null,null,null,null,null,null,null,null,null,null,null,{"$f":"IF(N5=\"\",E14,N5)","v":100}]
[]
[]
[]
[null,null,null,null,null,null,null,null,null,null,null,null,null,null,null,null,null,null,null,null,null,null,null,null,null,null,null,null,null,null,null,null,null,null,null,null,null,null,null,null,null,null,null,null,null,null,null,null,null,null,null,null,null,null,null,null,null,null,null,null,null,null,null,null,null,null,null,null,null,null,null,null,null,null,null,null,null,null,null,null,null,null,null,null,null,null,null,null,null,null,null,null,null,null,null,null,null,null,null,null,null,null,null,null,null,null,null,null,null,null,null,"3.: Deckungsbeitragsrechnung"]
[]
[null,null,null,null,null,null,null,null,null,null,null,null,null,null,null,null,null,null,null,null,null,null,null,null,null,null,null,null,null,null,null,null,null,null,null,null,null,null,null,null,null,null,null,null,null,null,null,null,null,null,null,null,null,null,null,null,null,null,null,null,null,null,null,null,null,null,null,null,null,null,null,null,null,null,null,null,null,null,null,null,null,null,null,null,null,null,null,null,null,null,null,null,null,null,null,null,null,null,null,null,null,null,null,null,null,null,null,null,null,null,null,"1.: Ertrag",null,"Gesamt",null,"je verk. Mastschwein"]
[]
[null,null,null,null,null,null,null,null,null,null,null,null,null,null,null,null,null,null,null,null,null,null,null,null,null,null,null,null,null,null,null,null,null,null,null,null,null,null,null,null,null,null,null,null,null,null,null,null,null,null,null,null,null,null,null,null,null,null,null,null,null,null,null,null,null,null,null,null,null,null,null,null,null,null,null,null,null,null,null,null,null,null,null,null,null,null,null,null,null,null,null,null,null,null,null,null,null,null,null,null,null,null,null,null,null,null,null,null,null,null,null,"Mastschweine:",null,{"$f":"$H$15","v":13000},null,{"$f":"IF($G$51=0,0,$G$51/$E$15)","v":0}]
[null,null,null,null,null,null,null,null,null,null,null,null,null,null,null,null,null,null,null,null,null,null,null,null,null,null,null,null,null,null,null,null,null,null,null,null,null,null,null,null,null,null,null,null,null,null,null,null,null,null,null,null,null,null,null,null,null,null,null,null,null,null,null,null,null,null,null,null,null,null,null,null,null,null,null,null,null,null,null,null,null,null,null,null,null,null,null,null,null,null,null,null,null,null,null,null,null,null,null,null,null,null,null,null,null,null,null,null,null,null,null,"Notschlachtungen:",null,{"$f":"$H$16","v":0},null,{"$f":"IF($G$52=0,0,$G$52/$E$15)","v":0}]
[null,null,null,null,null,null,null,null,null,null,null,null,null,null,null,null,null,null,null,null,null,null,null,null,null,null,null,null,null,null,null,null,null,null,null,null,null,null,null,null,null,null,null,null,null,null,null,null,null,null,null,null,null,null,null,null,null,null,null,null,null,null,null,null,null,null,null,null,null,null,null,null,null,null,null,null,null,null,null,null,null,null,null,null,null,null,null,null,null,null,null,null,null,null,null,null,null,null,null,null,null,null,null,null,null,null,null,null,null,null,null,"Gesamtertrag:",null,{"$f":"SUM($G$51:$G$52)","v":0},null,{"$f":"SUM($E$51:$E$52)","v":0}]
[]
[null,null,null,null,null,null,null,null,null,null,null,null,null,null,null,null,null,null,null,null,null,null,null,null,null,null,null,null,null,null,null,null,null,null,null,null,null,null,null,null,null,null,null,null,null,null,null,null,null,null,null,null,null,null,null,null,null,null,null,null,null,null,null,null,null,null,null,null,null,null,null,null,null,null,null,null,null,null,null,null,null,null,null,null,null,null,null,null,null,null,null,null,null,null,null,null,null,null,null,null,null,null,null,null,null,null,null,null,null,null,null,"2.: Aufwand"]
[null,null,null,null,null,null,null,null,null,null,null,null,null,null,null,null,null,null,null,null,null,null,null,null,null,null,null,null,null,null,null,null,null,null,null,null,null,null,null,null,null,null,null,null,null,null,null,null,null,null,null,null,null,null,null,null,null,null,null,null,null,null,null,null,null,null,null,null,null,null,null,null,null,null,null,null,null,null,null,null,null,null,null,null,null,null,null,null,null,null,null,null,null,null,null,null,null,null,null,null,null,null,null,null,null,null,null,null,null,null,null,"Ferkel:",null,{"$f":"$H$14","v":10000},null,{"$f":"IF($G$56=0,0,$G$56/$E$15)","v":0}]
[null,null,null,null,null,null,null,null,null,null,null,null,null,null,null,null,null,null,null,null,null,null,null,null,null,null,null,null,null,null,null,null,null,null,null,null,null,null,null,null,null,null,null,null,null,null,null,null,null,null,null,null,null,null,null,null,null,null,null,null,null,null,null,null,null,null,null,null,null,null,null,null,null,null,null,null,null,null,null,null,null,null,null,null,null,null,null,null,null,null,null,null,null,null,null,null,null,null,null,null,null,null,null,null,null,null,null,null,null,null,null,"Futtermittel:",null,{"$f":"$G$28","v":12.25},null,{"$f":"IF($G$57=0,0,$G$57/$E$15)","v":0}]
[null,null,null,null,null,null,null,null,null,null,null,null,null,null,null,null,null,null,null,null,null,null,null,null,null,null,null,null,null,null,null,null,null,null,null,null,null,null,null,null,null,null,null,null,null,null,null,null,null,null,null,null,null,null,null,null,null,null,null,null,null,null,null,null,null,null,null,null,null,null,null,null,null,null,null,null,null,null,null,null,null,null,null,null,null,null,null,null,null,null,null,null,null,null,null,null,null,null,null,null,null,null,null,null,null,null,null,null,null,null,null,"Heizung, Gas:",null,{"$f":"$AN$61","v":0},null,{"$f":"IF($G$58=0,0,$G$58/$E$15)","v":0}]
[null,null,null,null,null,null,null,null,null,null,null,null,null,null,null,null,null,null,null,null,null,null,null,null,null,null,null,null,null,null,null,null,null,null,null,null,null,null,null,null,null,null,null,null,null,null,null,null,null,null,null,null,null,null,null,null,null,null,null,null,null,null,null,null,null,null,null,null,null,null,null,null,null,null,null,null,null,null,null,null,null,null,null,null,null,null,null,null,null,null,null,null,null,null,null,null,null,null,null,null,null,null,null,null,null,null,null,null,null,null,null,"Gesamtaufwand:",null,{"$f":"SUM($G$56:$G$58)","v":0},null,{"$f":"SUM($E$56:$E$58)","v":0}]
[]
[null,null,null,null,null,null,null,null,null,null,null,null,null,null,null,null,null,null,null,null,null,null,null,null,null,null,null,null,null,null,null,null,null,null,null,null,null,null,null,null,null,null,null,null,null,null,null,null,null,null,null,null,null,null,null,null,null,null,null,null,null,null,null,null,null,null,null,null,null,null,null,null,null,null,null,null,null,null,null,null,null,null,null,null,null,null,null,null,null,null,null,null,null,null,null,null,null,null,null,null,null,null,null,null,null,null,null,null,null,null,null,"3.: Deckungsbeitrag"]
[null,null,null,null,null,null,null,null,null,null,null,null,null,null,null,null,null,null,null,null,null,null,null,null,null,null,null,null,null,null,null,null,null,null,null,null,null,null,null,null,null,null,null,null,null,null,null,null,null,null,null,null,null,null,null,null,null,null,null,null,null,null,null,null,null,null,null,null,null,null,null,null,null,null,null,null,null,null,null,null,null,null,null,null,null,null,null,null,null,null,null,null,null,null,null,null,null,null,null,null,null,null,null,null,null,null,null,null,null,null,null,{"$f":"\"=> Deckungsbeitrag 1:\"","v":"=> Deckungsbeitrag 1:"},null,{"$f":"$G$53-$G$59","v":0},null,{"$f":"$E$53-$E$59","v":0}]
[]
[]
[]
[]
[null,null,null,null,null,null,null,null,null,null,null,null,null,null,null,null,null,null,null,null,null,null,null,null,null,null,null,null,null,null,null,null,null,null,null,null,null,null,null,null,null,null,null,null,null,null,null,null,null,null,null,null,null,null,null,null,null,null,null,null,null,null,null,null,null,null,null,null,null,null,null,null,null,null,null,null,null,null,null,null,null,null,null,null,null,null,null,null,null,null,null,null,null,null,null,null,null,null,null,null,null,null,null,null,null,null,null,null,null,null,null,"Pacht:",null,{"$f":"#REF!","v":{"$error":"#REF!"}},null,{"$f":"IF($G$64=0,0,$G$64/$E$15)","v":0}]
[null,null,null,null,null,null,null,null,null,null,null,null,null,null,null,null,null,null,null,null,null,null,null,null,null,null,null,null,null,null,null,null,null,null,null,null,null,null,null,null,null,null,null,null,null,null,null,null,null,null,null,null,null,null,null,null,null,null,null,null,null,null,null,null,null,null,null,null,null,null,null,null,null,null,null,null,null,null,null,null,null,null,null,null,null,null,null,null,null,null,null,null,null,null,null,null,null,null,null,null,null,null,null,null,null,null,null,null,null,null,null,"Lohn:",null,{"$f":"$I$32","v":0},null,{"$f":"IF($G$65=0,0,$G$65/$E$15)","v":0}]
[null,null,null,null,null,null,null,null,null,null,null,null,null,null,null,null,null,null,null,null,null,null,null,null,null,null,null,null,null,null,null,null,null,null,null,null,null,null,null,null,null,null,null,null,null,null,null,null,null,null,null,null,null,null,null,null,null,null,null,null,null,null,null,null,null,null,null,null,null,null,null,null,null,null,null,null,null,null,null,null,null,null,null,null,null,null,null,null,null,null,null,null,null,null,null,null,null,null,null,null,null,null,null,null,null,null,null,null,null,null,null,{"$f":"\"=> Deckungsbeitrag 2:\"","v":"=> Deckungsbeitrag 2:"},null,{"$f":"$G$62-$G$64-$G$65","v":0},null,{"$f":"$E$62-$E$64-$E$65","v":0}]
[]
[null,null,null,null,null,null,null,null,null,null,null,null,null,null,null,null,null,null,null,null,null,null,null,null,null,null,null,null,null,null,null,null,null,null,null,null,null,null,null,null,null,null,null,null,null,null,null,null,null,null,null,null,null,null,null,null,null,null,null,null,null,null,null,null,null,null,null,null,null,null,null,null,null,null,null,null,null,null,null,null,null,null,null,null,null,null,null,null,null,null,null,null,null,null,null,null,null,null,null,null,null,null,null,null,null,null,null,null,null,null,null,"Deckungsbeitrag je Mastplatz:",null,{"$f":"IF($G$62=0,0,$G$62/$E$14)","v":0}]
[null,null,null,null,null,null,null,null,null,null,null,null,null,null,null,null,null,null,null,null,null,null,null,null,null,null,null,null,null,null,null,null,null,null,null,null,null,null,null,null,null,null,null,null,null,null,null,null,null,null,null,null,null,null,null,null,null,null,null,null,null,null,null,null,null,null,null,null,null,null,null,null,null,null,null,null,null,null,null,null,null,null,null,null,null,null,null,null,null,null,null,null,null,null,null,null,null,null,null,null,null,null,null,null,null,null,null,null,null,null,null,"Deckungsbeitrag je Mastplatz & Jahr",null,{"$f":"IF($G$62=0,0,$G$62/$E$14*365/($G$7-$G$6))","v":0}]
[]
[]
[null,null,null,null,null,null,null,null,null,null,null,null,null,null,null,null,null,null,null,null,null,null,null,null,null,null,null,null,null,null,null,null,null,null,null,null,null,null,null,null,null,null,null,null,null,null,null,null,null,null,null,null,null,null,null,null,null,null,null,null,null,null,null,null,null,null,null,null,null,null,null,null,null,null,null,null,null,null,null,null,null,null,null,null,null,null,null,null,null,null,null,null,null,null,null,null,null,null,null,null,null,null,null,null,null,null,null,null,null,null,null,null,"Erfassungsbogen für die Betriebszweigabrechnung Schweinemast"]
[]
[null,null,null,null,null,null,null,null,null,null,null,null,null,null,null,null,null,null,null,null,null,null,null,null,null,null,null,null,null,null,null,null,null,null,null,null,null,null,null,null,null,null,null,null,null,null,null,null,null,null,null,null,null,null,null,null,null,null,null,null,null,null,null,null,null,null,null,null,null,null,null,null,null,null,null,null,null,null,null,null,null,null,null,null,null,null,null,null,null,null,null,null,null,null,null,null,null,null,null,null,null,null,null,null,null,null,null,null,null,null,null,"Betrieb:",{"$f":"C5","v":"Name:"},null,"Stall:",{"$f":"DJ5","v":""}]
[]
[null,null,null,null,null,null,null,null,null,null,null,null,null,null,null,null,null,null,null,null,null,null,null,null,null,null,null,null,null,null,null,null,null,null,null,null,null,null,null,null,null,null,null,null,null,null,null,null,null,null,null,null,null,null,null,null,null,null,null,null,null,null,null,null,null,null,null,null,null,null,null,null,null,null,null,null,null,null,null,null,null,null,null,null,null,null,null,null,null,null,null,null,null,null,null,null,null,null,null,null,null,null,null,null,null,null,null,null,null,null,null,"Zukauf Ferkel:"]
[null,null,null,null,null,null,null,null,null,null,null,null,null,null,null,null,null,null,null,null,null,null,null,null,null,null,null,null,null,null,null,null,null,null,null,null,null,null,null,null,null,null,null,null,null,null,null,null,null,null,null,null,null,null,null,null,null,null,null,null,null,null,null,null,null,null,null,null,null,null,null,null,null,null,null,null,null,null,null,null,null,null,null,null,null,null,null,null,null,null,null,null,null,null,null,null,null,null,null,null,null,null,null,null,null,null,null,null,null,null,null,"Datum","Stück","Gewicht","DM gesamt","Rasse","Händler"]
[null,null,null,null,null,null,null,null,null,null,null,null,null,null,null,null,null,null,null,null,null,null,null,null,null,null,null,null,null,null,null,null,null,null,null,null,null,null,null,null,null,null,null,null,null,null,null,null,null,null,null,null,null,null,null,null,null,null,null,null,null,null,null,null,null,null,null,null,null,null,null,null,null,null,null,null,null,null,null,null,null,null,null,null,null,null,null,null,null,null,null,null,null,null,null,null,null,null,null,null,null,null,null,null,null,null,null,null,null,null,null,{"$f":"DL6","v":""},{"$f":"DI14","v":0},{"$f":"N88","v":0},{"$f":"DL14","v":0},{"$f":"DJ7","v":""},{"$f":"DL5","v":""}]
[]
[null,null,null,null,null,null,null,null,null,null,null,null,null,null,null,null,null,null,null,null,null,null,null,null,null,null,null,null,null,null,null,null,null,null,null,null,null,null,null,null,null,null,null,null,null,null,null,null,null,null,null,null,null,null,null,null,null,null,null,null,null,null,null,null,null,null,null,null,null,null,null,null,null,null,null,null,null,null,null,null,null,null,null,null,null,null,null,null,null,null,null,null,null,null,null,null,null,null,null,null,null,null,null,null,null,null,null,null,null,null,null,"Verkauf Mastschweine:"]
[null,null,null,null,null,null,null,null,null,null,null,null,null,null,null,null,null,null,null,null,null,null,null,null,null,null,null,null,null,null,null,null,null,null,null,null,null,null,null,null,null,null,null,null,null,null,null,null,null,null,null,null,null,null,null,null,null,null,null,null,null,null,null,null,null,null,null,null,null,null,null,null,null,null,null,null,null,null,null,null,null,null,null,null,null,null,null,null,null,null,null,null,null,null,null,null,null,null,null,null,null,null,null,null,null,null,null,null,null,null,null,"Datum","Stück","Lebendgewicht","Schlachtgewicht","MFA","DM gesamt"]
[null,null,null,null,null,null,null,null,null,null,null,null,null,null,null,null,null,null,null,null,null,null,null,null,null,null,null,null,null,null,null,null,null,null,null,null,null,null,null,null,null,null,null,null,null,null,null,null,null,null,null,null,null,null,null,null,null,null,null,null,null,null,null,null,null,null,null,null,null,null,null,null,null,null,null,null,null,null,null,null,null,null,null,null,null,null,null,null,null,null,null,null,null,null,null,null,null,null,null,null,null,null,null,null,null,null,null,null,null,null,null,{"$f":"IF(J16417=\"\",\"\",J16417)","v":""},{"$f":"IF(L16417=\"\",\"\",L16417)","v":""},{"$f":"IF(M16417=\"\",\"\",M16417)","v":""},{"$f":"IF(N16417=\"\",\"\",N16417)","v":""},{"$f":"IF(O16417=\"\",\"\",O16417)","v":""},{"$f":"IF(P16417=\"\",\"\",P16417)","v":""}]
[null,null,null,null,null,null,null,null,null,null,null,null,null,null,null,null,null,null,null,null,null,null,null,null,null,null,null,null,null,null,null,null,null,null,null,null,null,null,null,null,null,null,null,null,null,null,null,null,null,null,null,null,null,null,null,null,null,null,null,null,null,null,null,null,null,null,null,null,null,null,null,null,null,null,null,null,null,null,null,null,null,null,null,null,null,null,null,null,null,null,null,null,null,null,null,null,null,null,null,null,null,null,null,null,null,null,null,null,null,null,null,"","","","","",""]
[null,null,null,null,null,null,null,null,null,null,null,null,null,null,null,null,null,null,null,null,null,null,null,null,null,null,null,null,null,null,null,null,null,null,null,null,null,null,null,null,null,null,null,null,null,null,null,null,null,null,null,null,null,null,null,null,null,null,null,null,null,null,null,null,null,null,null,null,null,null,null,null,null,null,null,null,null,null,null,null,null,null,null,null,null,null,null,null,null,null,null,null,null,null,null,null,null,null,null,null,null,null,null,null,null,null,null,null,null,null,null,"","","","","",""]
[null,null,null,null,null,null,null,null,null,null,null,null,null,null,null,null,null,null,null,null,null,null,null,null,null,null,null,null,null,null,null,null,null,null,null,null,null,null,null,null,null,null,null,null,null,null,null,null,null,null,null,null,null,null,null,null,null,null,null,null,null,null,null,null,null,null,null,null,null,null,null,null,null,null,null,null,null,null,null,null,null,null,null,null,null,null,null,null,null,null,null,null,null,null,null,null,null,null,null,null,null,null,null,null,null,null,null,null,null,null,null,"","","","","",""]
[null,null,null,null,null,null,null,null,null,null,null,null,null,null,null,null,null,null,null,null,null,null,null,null,null,null,null,null,null,null,null,null,null,null,null,null,null,null,null,null,null,null,null,null,null,null,null,null,null,null,null,null,null,null,null,null,null,null,null,null,null,null,null,null,null,null,null,null,null,null,null,null,null,null,null,null,null,null,null,null,null,null,null,null,null,null,null,null,null,null,null,null,null,null,null,null,null,null,null,null,null,null,null,null,null,null,null,null,null,null,null,"","","","","",""]
[null,null,null,null,null,null,null,null,null,null,null,null,null,null,null,null,null,null,null,null,null,null,null,null,null,null,null,null,null,null,null,null,null,null,null,null,null,null,null,null,null,null,null,null,null,null,null,null,null,null,null,null,null,null,null,null,null,null,null,null,null,null,null,null,null,null,null,null,null,null,null,null,null,null,null,null,null,null,null,null,null,null,null,null,null,null,null,null,null,null,null,null,null,null,null,null,null,null,null,null,null,null,null,null,null,null,null,null,null,null,null,"","","","","",""]
[null,null,null,null,null,null,null,null,null,null,null,null,null,null,null,null,null,null,null,null,null,null,null,null,null,null,null,null,null,null,null,null,null,null,null,null,null,null,null,null,null,null,null,null,null,null,null,null,null,null,null,null,null,null,null,null,null,null,null,null,null,null,null,null,null,null,null,null,null,null,null,null,null,null,null,null,null,null,null,null,null,null,null,null,null,null,null,null,null,null,null,null,null,null,null,null,null,null,null,null,null,null,null,null,null,null,null,null,null,null,null,"","","","","",""]
[null,null,null,null,null,null,null,null,null,null,null,null,null,null,null,null,null,null,null,null,null,null,null,null,null,null,null,null,null,null,null,null,null,null,null,null,null,null,null,null,null,null,null,null,null,null,null,null,null,null,null,null,null,null,null,null,null,null,null,null,null,null,null,null,null,null,null,null,null,null,null,null,null,null,null,null,null,null,null,null,null,null,null,null,null,null,null,null,null,null,null,null,null,null,null,null,null,null,null,null,null,null,null,null,null,null,null,null,null,null,null,"","","","","",""]
[null,null,null,null,null,null,null,null,null,null,null,null,null,null,null,null,null,null,null,null,null,null,null,null,null,null,null,null,null,null,null,null,null,null,null,null,null,null,null,null,null,null,null,null,null,null,null,null,null,null,null,null,null,null,null,null,null,null,null,null,null,null,null,null,null,null,null,null,null,null,null,null,null,null,null,null,null,null,null,null,null,null,null,null,null,null,null,null,null,null,null,null,null,null,null,null,null,null,null,null,null,null,null,null,null,null,null,null,null,null,null,"","","","","",""]
[null,null,null,null,null,null,null,null,null,null,null,null,null,null,null,null,null,null,null,null,null,null,null,null,null,null,null,null,null,null,null,null,null,null,null,null,null,null,null,null,null,null,null,null,null,null,null,null,null,null,null,null,null,null,null,null,null,null,null,null,null,null,null,null,null,null,null,null,null,null,null,null,null,null,null,null,null,null,null,null,null,null,null,null,null,null,null,null,null,null,null,null,null,null,null,null,null,null,null,null,null,null,null,null,null,null,null,null,null,null,null,"","","","","",""]
[null,null,null,null,null,null,null,null,null,null,null,null,null,null,null,null,null,null,null,null,null,null,null,null,null,null,null,null,null,null,null,null,null,null,null,null,null,null,null,null,null,null,null,null,null,null,null,null,null,null,null,null,null,null,null,null,null,null,null,null,null,null,null,null,null,null,null,null,null,null,null,null,null,null,null,null,null,null,null,null,null,null,null,null,null,null,null,null,null,null,null,null,null,null,null,null,null,null,null,null,null,null,null,null,null,null,null,null,null,null,null,"","","","","",""]
[]
[null,null,null,null,null,null,null,null,null,null,null,null,null,null,null,null,null,null,null,null,null,null,null,null,null,null,null,null,null,null,null,null,null,null,null,null,null,null,null,null,null,null,null,null,null,null,null,null,null,null,null,null,null,null,null,null,null,null,null,null,null,null,null,null,null,null,null,null,null,null,null,null,null,null,null,null,null,null,null,null,null,null,null,null,null,null,null,null,null,null,null,null,null,null,null,null,null,null,null,null,null,null,null,null,null,null,null,null,null,null,null,"Notschlachtungen:"]
[null,null,null,null,null,null,null,null,null,null,null,null,null,null,null,null,null,null,null,null,null,null,null,null,null,null,null,null,null,null,null,null,null,null,null,null,null,null,null,null,null,null,null,null,null,null,null,null,null,null,null,null,null,null,null,null,null,null,null,null,null,null,null,null,null,null,null,null,null,null,null,null,null,null,null,null,null,null,null,null,null,null,null,null,null,null,null,null,null,null,null,null,null,null,null,null,null,null,null,null,null,null,null,null,null,null,null,null,null,null,null,"Datum","Stück","Gewicht","DM gesamt"]
[null,null,null,null,null,null,null,null,null,null,null,null,null,null,null,null,null,null,null,null,null,null,null,null,null,null,null,null,null,null,null,null,null,null,null,null,null,null,null,null,null,null,null,null,null,null,null,null,null,null,null,null,null,null,null,null,null,null,null,null,null,null,null,null,null,null,null,null,null,null,null,null,null,null,null,null,null,null,null,null,null,null,null,null,null,null,null,null,null,null,null,null,null,null,null,null,null,null,null,null,null,null,null,null,null,null,null,null,null,null,null,{"$f":"IF(L111=\"\",\"\",L111)","v":""},{"$f":"IF(M111=\"\",\"\",M111)","v":""},{"$f":"IF(N111=\"\",\"\",N111)","v":""},{"$f":"IF(O111=\"\",\"\",O111)","v":""}]
[null,null,null,null,null,null,null,null,null,null,null,null,null,null,null,null,null,null,null,null,null,null,null,null,null,null,null,null,null,null,null,null,null,null,null,null,null,null,null,null,null,null,null,null,null,null,null,null,null,null,null,null,null,null,null,null,null,null,null,null,null,null,null,null,null,null,null,null,null,null,null,null,null,null,null,null,null,null,null,null,null,null,null,null,null,null,null,null,null,null,null,null,null,null,null,null,null,null,null,null,null,null,null,null,null,null,null,null,null,null,null,{"$f":"IF(L16435=\"\",\"\",L16435)","v":""},"","",""]
[null,null,null,null,null,null,null,null,null,null,null,null,null,null,null,null,null,null,null,null,null,null,null,null,null,null,null,null,null,null,null,null,null,null,null,null,null,null,null,null,null,null,null,null,null,null,null,null,null,null,null,null,null,null,null,null,null,null,null,null,null,null,null,null,null,null,null,null,null,null,null,null,null,null,null,null,null,null,null,null,null,null,null,null,null,null,null,null,null,null,null,null,null,null,null,null,null,null,null,null,null,null,null,null,null,null,null,null,null,null,null,"","","",""]
[null,null,null,null,null,null,null,null,null,null,null,null,null,null,null,null,null,null,null,null,null,null,null,null,null,null,null,null,null,null,null,null,null,null,null,null,null,null,null,null,null,null,null,null,null,null,null,null,null,null,null,null,null,null,null,null,null,null,null,null,null,null,null,null,null,null,null,null,null,null,null,null,null,null,null,null,null,null,null,null,null,null,null,null,null,null,null,null,null,null,null,null,null,null,null,null,null,null,null,null,null,null,null,null,null,null,null,null,null,null,null,"","","",""]
[null,null,null,null,null,null,null,null,null,null,null,null,null,null,null,null,null,null,null,null,null,null,null,null,null,null,null,null,null,null,null,null,null,null,null,null,null,null,null,null,null,null,null,null,null,null,null,null,null,null,null,null,null,null,null,null,null,null,null,null,null,null,null,null,null,null,null,null,null,null,null,null,null,null,null,null,null,null,null,null,null,null,null,null,null,null,null,null,null,null,null,null,null,null,null,null,null,null,null,null,null,null,null,null,null,null,null,null,null,null,null,"","","",""]
[]
[null,null,null,null,null,null,null,null,null,null,null,null,null,null,null,null,null,null,null,null,null,null,null,null,null,null,null,null,null,null,null,null,null,null,null,null,null,null,null,null,null,null,null,null,null,null,null,null,null,null,null,null,null,null,null,null,null,null,null,null,null,null,null,null,null,null,null,null,null,null,null,null,null,null,null,null,null,null,null,null,null,null,null,null,null,null,null,null,null,null,null,null,null,null,null,null,null,null,null,null,null,null,null,null,null,null,null,null,null,null,null,"Verluste:"]
[null,null,null,null,null,null,null,null,null,null,null,null,null,null,null,null,null,null,null,null,null,null,null,null,null,null,null,null,null,null,null,null,null,null,null,null,null,null,null,null,null,null,null,null,null,null,null,null,null,null,null,null,null,null,null,null,null,null,null,null,null,null,null,null,null,null,null,null,null,null,null,null,null,null,null,null,null,null,null,null,null,null,null,null,null,null,null,null,null,null,null,null,null,null,null,null,null,null,null,null,null,null,null,null,null,null,null,null,null,null,null,"Datum","Stück","Gewicht"]
[null,null,null,null,null,null,null,null,null,null,null,null,null,null,null,null,null,null,null,null,null,null,null,null,null,null,null,null,null,null,null,null,null,null,null,null,null,null,null,null,null,null,null,null,null,null,null,null,null,null,null,null,null,null,null,null,null,null,null,null,null,null,null,null,null,null,null,null,null,null,null,null,null,null,null,null,null,null,null,null,null,null,null,null,null,null,null,null,null,null,null,null,null,null,null,null,null,null,null,null,null,null,null,null,null,null,null,null,null,null,null,{"$f":"IF(L122=\"\",\"\",L122)","v":""},{"$f":"IF(M122=\"\",\"\",M122)","v":""},{"$f":"IF(N122=\"\",\"\",N122)","v":""}]
[null,null,null,null,null,null,null,null,null,null,null,null,null,null,null,null,null,null,null,null,null,null,null,null,null,null,null,null,null,null,null,null,null,null,null,null,null,null,null,null,null,null,null,null,null,null,null,null,null,null,null,null,null,null,null,null,null,null,null,null,null,null,null,null,null,null,null,null,null,null,null,null,null,null,null,null,null,null,null,null,null,null,null,null,null,null,null,null,null,null,null,null,null,null,null,null,null,null,null,null,null,null,null,null,null,null,null,null,null,null,null,{"$f":"IF(L16446=\"\",\"\",L16446)","v":""},{"$f":"IF(M16446=\"\",\"\",M16446)","v":""},{"$f":"IF(N16446=\"\",\"\",N16446)","v":""}]
[null,null,null,null,null,null,null,null,null,null,null,null,null,null,null,null,null,null,null,null,null,null,null,null,null,null,null,null,null,null,null,null,null,null,null,null,null,null,null,null,null,null,null,null,null,null,null,null,null,null,null,null,null,null,null,null,null,null,null,null,null,null,null,null,null,null,null,null,null,null,null,null,null,null,null,null,null,null,null,null,null,null,null,null,null,null,null,null,null,null,null,null,null,null,null,null,null,null,null,null,null,null,null,null,null,null,null,null,null,null,null,"","",""]
[null,null,null,null,null,null,null,null,null,null,null,null,null,null,null,null,null,null,null,null,null,null,null,null,null,null,null,null,null,null,null,null,null,null,null,null,null,null,null,null,null,null,null,null,null,null,null,null,null,null,null,null,null,null,null,null,null,null,null,null,null,null,null,null,null,null,null,null,null,null,null,null,null,null,null,null,null,null,null,null,null,null,null,null,null,null,null,null,null,null,null,null,null,null,null,null,null,null,null,null,null,null,null,null,null,null,null,null,null,null,null,"","",""]
[null,null,null,null,null,null,null,null,null,null,null,null,null,null,null,null,null,null,null,null,null,null,null,null,null,null,null,null,null,null,null,null,null,null,null,null,null,null,null,null,null,null,null,null,null,null,null,null,null,null,null,null,null,null,null,null,null,null,null,null,null,null,null,null,null,null,null,null,null,null,null,null,null,null,null,null,null,null,null,null,null,null,null,null,null,null,null,null,null,null,null,null,null,null,null,null,null,null,null,null,null,null,null,null,null,null,null,null,null,null,null,"","",""]
[null,null,null,null,null,null,null,null,null,null,null,null,null,null,null,null,null,null,null,null,null,null,null,null,null,null,null,null,null,null,null,null,null,null,null,null,null,null,null,null,null,null,null,null,null,null,null,null,null,null,null,null,null,null,null,null,null,null,null,null,null,null,null,null,null,null,null,null,null,null,null,null,null,null,null,null,null,null,null,null,null,null,null,null,null,null,null,null,null,null,null,null,null,null,null,null,null,null,null,null,null,null,null,null,null,null,null,null,null,null,null,"","",""]
[null,null,null,null,null,null,null,null,null,null,null,null,null,null,null,null,null,null,null,null,null,null,null,null,null,null,null,null,null,null,null,null,null,null,null,null,null,null,null,null,null,null,null,null,null,null,null,null,null,null,null,null,null,null,null,null,null,null,null,null,null,null,null,null,null,null,null,null,null,null,null,null,null,null,null,null,null,null,null,null,null,null,null,null,null,null,null,null,null,null,null,null,null,null,null,null,null,null,null,null,null,null,null,null,null,null,null,null,null,null,null,"","",""]
[null,null,null,null,null,null,null,null,null,null,null,null,null,null,null,null,null,null,null,null,null,null,null,null,null,null,null,null,null,null,null,null,null,null,null,null,null,null,null,null,null,null,null,null,null,null,null,null,null,null,null,null,null,null,null,null,null,null,null,null,null,null,null,null,null,null,null,null,null,null,null,null,null,null,null,null,null,null,null,null,null,null,null,null,null,null,null,null,null,null,null,null,null,null,null,null,null,null,null,null,null,null,null,null,null,null,null,null,null,null,null,"","",""]
[null,null,null,null,null,null,null,null,null,null,null,null,null,null,null,null,null,null,null,null,null,null,null,null,null,null,null,null,null,null,null,null,null,null,null,null,null,null,null,null,null,null,null,null,null,null,null,null,null,null,null,null,null,null,null,null,null,null,null,null,null,null,null,null,null,null,null,null,null,null,null,null,null,null,null,null,null,null,null,null,null,null,null,null,null,null,null,null,null,null,null,null,null,null,null,null,null,null,null,null,null,null,null,null,null,null,null,null,null,null,null,"","",""]
[null,null,null,null,null,null,null,null,null,null,null,null,null,null,null,null,null,null,null,null,null,null,null,null,null,null,null,null,null,null,null,null,null,null,null,null,null,null,null,null,null,null,null,null,null,null,null,null,null,null,null,null,null,null,null,null,null,null,null,null,null,null,null,null,null,null,null,null,null,null,null,null,null,null,null,null,null,null,null,null,null,null,null,null,null,null,null,null,null,null,null,null,null,null,null,null,null,null,null,null,null,null,null,null,null,null,null,null,null,null,null,"","",""]
[]
[null,null,null,null,null,null,null,null,null,null,null,null,null,null,null,null,null,null,null,null,null,null,null,null,null,null,null,null,null,null,null,null,null,null,null,null,null,null,null,null,null,null,null,null,null,null,null,null,null,null,null,null,null,null,null,null,null,null,null,null,null,null,null,null,null,null,null,null,null,null,null,null,null,null,null,null,null,null,null,null,null,null,null,null,null,null,null,null,null,null,null,null,null,null,null,null,null,null,null,null,null,null,null,null,null,null,null,null,null,null,null,"Spezialkosten:"]
[null,null,null,null,null,null,null,null,null,null,null,null,null,null,null,null,null,null,null,null,null,null,null,null,null,null,null,null,null,null,null,null,null,null,null,null,null,null,null,null,null,null,null,null,null,null,null,null,null,null,null,null,null,null,null,null,null,null,null,null,null,null,null,null,null,null,null,null,null,null,null,null,null,null,null,null,null,null,null,null,null,null,null,null,null,null,null,null,null,null,null,null,null,null,null,null,null,null,null,null,null,null,null,null,null,null,null,null,null,null,null,"Tierarzt, Medizin, Hygiene:",{"$f":"DI31","v":0},null,"Pacht:",{"$f":"DL31","v":0}]
[]
[null,null,null,null,null,null,null,null,null,null,null,null,null,null,null,null,null,null,null,null,null,null,null,null,null,null,null,null,null,null,null,null,null,null,null,null,null,null,null,null,null,null,null,null,null,null,null,null,null,null,null,null,null,null,null,null,null,null,null,null,null,null,null,null,null,null,null,null,null,null,null,null,null,null,null,null,null,null,null,null,null,null,null,null,null,null,null,null,null,null,null,null,null,null,null,null,null,null,null,null,null,null,null,null,null,null,null,null,null,null,null,"Strom, Wasser, Geräte:",{"$f":"DI32","v":"$ae$"},null,"Lohn:",{"$f":"DL32","v":"$ah$"}]
[]
[null,null,null,null,null,null,null,null,null,null,null,null,null,null,null,null,null,null,null,null,null,null,null,null,null,null,null,null,null,null,null,null,null,null,null,null,null,null,null,null,null,null,null,null,null,null,null,null,null,null,null,null,null,null,null,null,null,null,null,null,null,null,null,null,null,null,null,null,null,null,null,null,null,null,null,null,null,null,null,null,null,null,null,null,null,null,null,null,null,null,null,null,null,null,null,null,null,null,null,null,null,null,null,null,null,null,null,null,null,null,null,"Beiträge:",{"$f":"DI33","v":0},null,"Heizung, Gas:",{"$f":"DL33","v":0}]
[]
[null,null,null,null,null,null,null,null,null,null,null,null,null,null,null,null,null,null,null,null,null,null,null,null,null,null,null,null,null,null,null,null,null,null,null,null,null,null,null,null,null,null,null,null,null,null,null,null,null,null,null,null,null,null,null,null,null,null,null,null,null,null,null,null,null,null,null,null,null,null,null,null,null,null,null,null,null,null,null,null,null,null,null,null,null,null,null,null,null,null,null,null,null,null,null,null,null,null,null,null,null,null,null,null,null,null,null,null,null,null,null,"Futtermittellieferungen:"]
[null,null,null,null,null,null,null,null,null,null,null,null,null,null,null,null,null,null,null,null,null,null,null,null,null,null,null,null,null,null,null,null,null,null,null,null,null,null,null,null,null,null,null,null,null,null,null,null,null,null,null,null,null,null,null,null,null,null,null,null,null,null,null,null,null,null,null,null,null,null,null,null,null,null,null,null,null,null,null,null,null,null,null,null,null,null,null,null,null,null,null,null,null,null,null,null,null,null,null,null,null,null,null,null,null,null,null,null,null,null,null,"Datum","Futterart",null,"dt","DM gesamt","Firma"]
[]
[null,null,null,null,null,null,null,null,null,null,null,null,null,null,null,null,null,null,null,null,null,null,null,null,null,null,null,null,null,null,null,null,null,null,null,null,null,null,null,null,null,null,null,null,null,null,null,null,null,null,null,null,null,null,null,null,null,null,null,null,null,null,null,null,null,null,null,null,null,null,null,null,null,null,null,null,null,null,null,null,null,null,null,null,null,null,null,null,null,null,null,null,null,null,null,null,null,null,null,null,null,null,null,null,null,null,null,null,null,null,null,{"$f":"IF(AK15=\"\",\"\",AK15)","v":""},"Starter",{"$f":"IF(AK3=\"\",\"\",AK3)","v":""},{"$f":"AL16","v":0},{"$f":"AN16","v":0},{"$f":"IF(AK3=\"\",\"\",AI4)","v":""}]
[]
[null,null,null,null,null,null,null,null,null,null,null,null,null,null,null,null,null,null,null,null,null,null,null,null,null,null,null,null,null,null,null,null,null,null,null,null,null,null,null,null,null,null,null,null,null,null,null,null,null,null,null,null,null,null,null,null,null,null,null,null,null,null,null,null,null,null,null,null,null,null,null,null,null,null,null,null,null,null,null,null,null,null,null,null,null,null,null,null,null,null,null,null,null,null,null,null,null,null,null,null,null,null,null,null,null,null,null,null,null,null,null,{"$f":"IF(AK21=\"\",\"\",AK21)","v":""},"Vormast",{"$f":"IF(AM3=\"\",\"\",AM3)","v":""},{"$f":"AL22","v":0},{"$f":"AN22","v":0},{"$f":"IF(AM3=\"\",\"\",AI4)","v":""}]
[]
[null,null,null,null,null,null,null,null,null,null,null,null,null,null,null,null,null,null,null,null,null,null,null,null,null,null,null,null,null,null,null,null,null,null,null,null,null,null,null,null,null,null,null,null,null,null,null,null,null,null,null,null,null,null,null,null,null,null,null,null,null,null,null,null,null,null,null,null,null,null,null,null,null,null,null,null,null,null,null,null,null,null,null,null,null,null,null,null,null,null,null,null,null,null,null,null,null,null,null,null,null,null,null,null,null,null,null,null,null,null,null,{"$f":"IF(AK29=\"\",\"\",AK29)","v":""},"Endmast I.",{"$f":"IF(AK5=\"\",\"\",AK5)","v":""},{"$f":"AL30","v":0},{"$f":"AN30","v":0},{"$f":"IF(AK5=\"\",\"\",AI4)","v":""}]
[]
[null,null,null,null,null,null,null,null,null,null,null,null,null,null,null,null,null,null,null,null,null,null,null,null,null,null,null,null,null,null,null,null,null,null,null,null,null,null,null,null,null,null,null,null,null,null,null,null,null,null,null,null,null,null,null,null,null,null,null,null,null,null,null,null,null,null,null,null,null,null,null,null,null,null,null,null,null,null,null,null,null,null,null,null,null,null,null,null,null,null,null,null,null,null,null,null,null,null,null,null,null,null,null,null,null,null,null,null,null,null,null,{"$f":"IF(AK34=\"\",\"\",AK34)","v":""},"Endmast II.",{"$f":"IF(AM5=\"\",\"\",AM5)","v":""},{"$f":"AL36","v":0},{"$f":"AN36","v":0},{"$f":"IF(AM5=\"\",\"\",AI4)","v":""}]
[]
[]
[]
[]
[]
[]
[]
[]
[]
[]
[]
[]
[]
[]
[]
[]
[]
[]
[]
[]
[]
[]
[]
[]
[]
[]
[]
[]
[]
[]
[]
[]
[]
[]
[]
[]
[]
[]
[]
[]
[]
[]
[]
[]
[]
[]
[]
[]
[]
[]
[]
[]
[]
[]
[]
[]
[]
[]
[]
[]
[]
[]
[null,null,null,null,null,null,null,null,null,null,null,null,null,null,"Einkauf Ferkel"]
[]
[null,null,null,null,null,null,null,null,null,null,null,null,null,null,{"$f":"IF(M85=\"\",0,L85*M85)","v":0}]
[null,null,null,null,null,null,null,null,null,null,null,null,null,null,{"$f":"IF(M86=\"\",0,L86*M86)","v":0}]
[null,null,null,null,null,null,null,null,null,null,null,null,null,null,{"$f":"IF(M87=\"\",0,L87*M87)","v":0}]
[null,null,null,null,null,null,null,null,null,null,null,null,null,null,"J12"]
[]
[]
[null,null,null,null,null,null,null,null,null,"MFA",null,null,null,null,"Futtertage"]
[]
[null,null,null,null,null,null,null,null,null,"MFA",null,"Stück","MFA*Stück",null,"Tage","Stück","Tage*Stück"]
[null,null,null,null,null,null,null,null,null,{"$f":"O16417","v":0},null,{"$f":"L16417","v":0},{"$f":"J208*L208","v":0},null,{"$f":"J94-$L$88","v":0},{"$f":"L16417","v":0},{"$f":"O208*P208","v":0}]
[null,null,null,null,null,null,null,null,null,0,null,0,0,null,{"$f":"J95-$L$88","v":0},0,{"$f":"O209*P209","v":0}]
[null,null,null,null,null,null,null,null,null,0,null,0,0,null,{"$f":"J96-$L$88","v":0},0,{"$f":"O210*P210","v":0}]
[null,null,null,null,null,null,null,null,null,0,null,0,0,null,{"$f":"J97-$L$88","v":0},0,{"$f":"O211*P211","v":0}]
[null,null,null,null,null,null,null,null,null,0,null,0,0,null," ",0," "]
[null,null,null,null,null,null,null,null,null,0,null,0,0,null," ",0," "]
[null,null,null,null,null,null,null,null,null,0,null,0,0,null," ",0," "]
[null,null,null,null,null,null,null,null,null,0,null,0,0,null," ",0," "]
[null,null,null,null,null,null,null,null,null,0,null,0,0,null," ",0," "]
[null,null,null,null,null,null,null,null,null,0,null,0,0,null,"  ",0," "]
[null,null,null,null,null,null,null,null,null,0,null,0,0,null," ",0," "]
[null,null,null,null,null,null,null,null,null,null,null,{"$f":"SUM(L208:L218)","v":0},{"$f":"SUM(M208:M218)","v":0},null,null,null,{"$f":"SUM(Q208:Q218)","v":0}]
[]
[null,null,null,null,null,null,null,null,null,null,null,null,{"$f":"IF(M219=0,0,M219/L219)","v":0}]
[null,null,null,null,null,null,null,null,null,null,null,null,null,null,{"$f":"L111-$L$88","v":0},{"$f":"M111","v":0},{"$f":"O222*P222","v":0}]
[null,null,null,null,null,null,null,null,null,null,null,null,null,null,{"$f":"L112-$L$88","v":0},{"$f":"M112","v":0},{"$f":"O223*P223","v":0}]
[null,null,null,null,null,null,null,null,null,null,null,null,null,null,{"$f":"L113-$L$88","v":0},{"$f":"M113","v":0},{"$f":"O224*P224","v":0}]
[null,null,null,null,null,null,null,null,null,null,null,null,null,null,{"$f":"L114-$L$88","v":0},{"$f":"M114","v":0},{"$f":"O225*P225","v":0}]
[null,null,null,null,null,null,null,null,null,null,null,null,null,null,{"$f":"L115-$L$88","v":0},{"$f":"M115","v":0},{"$f":"O226*P226","v":0}]
[null,null,null,null,null,null,null,null,null,null,null,null,null,null,null,null,{"$f":"SUM(Q222:Q226)","v":0}]
[]
[]
[null,null,null,null,null,null,null,null,null,null,null,null,null,null,{"$f":"L122-$L$88","v":0},{"$f":"M16445","v":0},{"$f":"O230*P230","v":0}]
[null,null,null,null,null,null,null,null,null,null,null,null,null,null,{"$f":"L16446-$L$98","v":0},0,0]
[null,null,null,null,null,null,null,null,null,null,null,null,null,null,0,0,0]
[null,null,null,null,null,null,null,null,null,null,null,null,null,null,0,0,0]
[null,null,null,null,null,null,null,null,null,null,null,null,null,null,0,0,0]
[null,null,null,null,null,null,null,null,null,null,null,null,null,null,0,0,0]
[null,null,null,null,null,null,null,null,null,null,null,null,null,null,0,0,0]
[null,null,null,null,null,null,null,null,null,null,null,null,null,null,0,0,0]
[null,null,null,null,null,null,null,null,null,null,null,null,null,null,0,0,0]
[null,null,null,null,null,null,null,null,null,null,null,null,null,null,0,0,0]
[null,null,null,null,null,null,null,null,null,null,null,null,null,null,null,null,{"$f":"SUM(Q230:Q239)","v":0}]
[]
[null,null,null,null,null,null,null,null,null,null,null,null,null,null,null,null,{"$f":"Q219+Q227+Q240","v":0}]
[null,null,null,null,null,null,null,null,null,null,null,null,null,null,null,null,{"$f":"(Q219/M85)-1","v":{"$error":"#DIV/0!"}}]

{"sheet":"Tiere_Zu_Abgang","index":1,"n_rows":152,"n_cols":114,"rows_kept":152,"cut":false,"hidden":false,"merged":[[73,13,73,14],[74,13,74,14],[75,13,75,14],[81,15,81,16],[68,13,68,14],[69,13,69,14],[70,13,70,14],[71,13,71,14],[72,13,72,14],[63,13,63,14],[64,13,64,14],[65,13,65,14],[66,13,66,14],[67,13,67,14],[50,10,51,10],[50,11,51,11],[50,12,51,12],[51,13,51,14],[52,7,81,7],[52,13,52,14],[53,13,53,14],[54,13,54,14],[55,13,55,14],[56,13,56,14],[57,13,57,14],[58,13,58,14],[59,13,59,14],[60,13,60,14],[61,13,61,14],[62,13,62,14],[42,13,42,14],[43,13,43,14],[44,13,44,14],[45,13,45,14],[46,13,46,14],[23,30,24,30],[23,31,24,31],[39,8,39,9],[40,10,41,10],[40,11,41,11],[41,13,41,14],[19,13,19,14],[19,16,19,17],[19,28,19,29],[22,8,22,10],[23,10,24,10],[23,11,24,11],[23,12,24,12],[23,13,24,13],[23,14,24,14],[17,13,17,14],[17,16,17,17],[17,28,17,29],[18,13,18,14],[18,16,18,17],[18,28,18,29],[15,13,15,14],[15,16,15,17],[15,28,15,29],[16,13,16,14],[16,16,16,17],[16,28,16,29],[7,9,7,11],[8,9,8,11],[13,12,14,12],[13,28,14,29],[14,13,14,14],[14,16,14,17],[3,29,6,32],[4,16,4,17],[5,9,5,11],[5,16,5,17],[6,9,6,11],[6,16,6,17]]}
[]
[]
[null,null,null,null,null,null,null,null,null,null,null,null,null,null,null,null,"Strg+j=Eingaben löschen"]
[null,null,null,null,null,null,null,null,"Auswertung Schweinemast / Erfassungsbogen Tiere",null,null,null,null,null,null,"Stall /"]
[null,null,null,null,null,null,null,null,null,null,null,{"$f":"TODAY()","v":"2020-09-01"},null,null,null,"Ställe/Partie Nr.:",{"$f":"IF(Auswertung!N3=\"\",\"\",Auswertung!N3)","v":1}]
[null,null,null,null,null,null,null,null,"Name:",{"$f":"IF(Auswertung!D5=\"\",\"\",Auswertung!D5)","v":""},null,null,null,null,null,"Standort:",{"$f":"IF(Auswertung!N4=\"\",\"\",Auswertung!N4)","v":""}]
[null,null,null,null,null,null,null,null,"Ort:",{"$f":"IF(Auswertung!D6=\"\",\"\",Auswertung!D6)","v":""},null,null,null,null,null,"Stallplätze:",{"$f":"IF(Auswertung!N5=\"\",\"\",Auswertung!N5)","v":""}]
[null,null,null,null,null,null,null,null,"Zusatz:",{"$f":"IF(Auswertung!D7=\"\",\"\",Auswertung!D7)","v":""},null,null,null,null,null,"EK–Steuersatz:",7.0000000000000007E-2]
[null,null,null,null,null,null,null,null,"Betriebs Nr.:",{"$f":"IF(Auswertung!D8=\"\",\"\",Auswertung!D8)","v":""},null,null,null,null,null,"VK-Steuersatz:",0.107]
[]
[null,null,null,null,null,null,null,null,"Tierdaten:",null,{"$f":"IF(L16=\"\",\"\",\"Achtung: Bitte nur Nettopreise eingeben = ohne Steuer\")","v":"Achtung: Bitte nur Nettopreise eingeben = ohne Steuer"},null,null,null,null,null,null,null,null,null,null,null,null,null,null,null,null,null,null,null,null,null,null,null,null,null,null,null,null,null,null,null,null,null,null,null,null,null,null,null,null,null,null,null,null,null,null,null,null,null,null,null,null,null,null,null,null,null,null,null,null,null,null,null,null,null,null,null,null,null,null,null,null,null,null,null,null,null,null,null,null,null,null,null,null,null,null,null,null,null,null,null,null,null,null,null,null,null,null,"Mastauswertung"]
[null,null,null,null,null,null,null,null,null,null,null,{"$f":"IF(V83>0,\"Achtung: Es fehlen Eingaben!!!\",\"\")","v":""}]
[null,null,null,null,null,null,null,null,"Zukauf Ferkel:",null," ",null,null,null,{"$f":"IF(Q8=\"\",\"bitte Steuersatz für Ferkeleinkauf angeben\",\"\")","v":""},null,null,null,null,null,null,null,null,null,null,null,null,null,null,null,null,null,null,null,null,null,null,null,null,null,null,null,null,null,null,null,null,null,null,null,null,null,null,null,null,null,null,null,null,null,null,null,null,null,null,null,null,null,null,null,null,null,null,null,null,null,null,null,null,null,null,null,null,null,null,null,null,null,null,null,null,null,null,null,null,null,null,null,null,null,null,null,null,null,null,null,null,null,{"$f":"B13","v":0}," Stall:",{"$f":"IF($Q$5=\"\",\"\",$Q$5)","v":1},"Händler:",{"$f":"IF($F$13=\"\",\"\",$F$13)","v":""}]
[null,null,null,null,null,null,null,null,null,null,null,null,"Euro/    Tier",null,null,null,null,null,"Gewicht/",null,null,null,null,null,null,null,null,"Stall/","Bemerkungen:",null,null,null,null,null,null,null,null,null,null,null,null,null,null,null,null,null,null,null,null,null,null,null,null,null,null,null,null,null,null,null,null,null,null,null,null,null,null,null,null,null,null,null,null,null,null,null,null,null,null,null,null,null,null,null,null,null,null,null,null,null,null,null,null,null,null,null,null,null,null,null,null,null,null,null,null,null,null,null,{"$f":"B14","v":0}," Stallplätze:",{"$f":"IF($Q$7=\"\",\"\",$Q$7)","v":""},"Einstalldatum:",{"$f":"IF($U$11=\"\",\"\",$U$11)","v":""}]
[null,null,null,null,null,null,null,null,"Datum","Stück","Ges.Gewicht","Euro Gesamt",null,"Rasse:",null,"Ohrmarken-Nr.:","Händler:",null,"Tier:",null,null,null,null,null,null,null,null,"Ställe-Nr.:",null,null,null,null,null,null,null,null,null,null,null,null,null,null,null,null,null,null,null,null,null,null,null,null,null,null,null,null,null,null,null,null,null,null,null,null,null,null,null,null,null,null,null,null,null,null,null,null,null,null,null,null,null,null,null,null,null,null,null,null,null,null,null,null,null,null,null,null,null,null,null,null,null,null,null,null,null,null,null,null,{"$f":"B15","v":0}," Rasse:",{"$f":"IF($U$16=\"\",\"\",$U$16)","v":""},"Ausstalldatum:",{"$f":"IF($U$12=\"\",\"\",$U$12)","v":""}]
[null,null,null,null,null,null,null,null,"2020-05-15",100,3000,10000,{"$f":"IF(J16=\"\",\"\",L16/J16)","v":100},null,null,null,null,null,{"$f":"IF(J16=\"\",\"\",IF(K16=\"\",\"\",K16/J16))","v":30},{"$f":"IF(J16=\"\",\"\",IF(I16=\"\",\"\",I16)*J16)","v":4396600},null,null,null,null,null,{"$f":"IF(I16=\"\",\"\",I16)","v":43966}]
[null,null,null,null,null,null,null,null,null,null,null,null,{"$f":"IF(J17=\"\",\"\",L17/J17)","v":""},null,null,null,null,null,{"$f":"IF(J17=\"\",\"\",IF(K17=\"\",\"\",K17/J17))","v":""},{"$f":"IF(J17=\"\",\"\",IF(I17=\"\",\"\",I17)*J17)","v":""},null,null,null,null,null,null,null,null,null,null,null,null,null,null,null,null,null,null,null,null,null,null,null,null,null,null,null,null,null,null,null,null,null,null,null,null,null,null,null,null,null,null,null,null,null,null,null,null,null,null,null,null,null,null,null,null,null,null,null,null,null,null,null,null,null,null,null,null,null,null,null,null,null,null,null,null,null,null,null,null,null,null,null,null,null,null,null,null,"1.: Erfassung"]
[null,null,null,null,null,null,null,null,null,null,null,null,{"$f":"IF(J18=\"\",\"\",L18/J18)","v":""},null,null,null,null,null,{"$f":"IF(J18=\"\",\"\",IF(K18=\"\",\"\",K18/J18))","v":""},{"$f":"IF(J18=\"\",\"\",IF(I18=\"\",\"\",I18)*J18)","v":""}]
[null,null,null,null,null,null,null,null,null,null,null,null,{"$f":"IF(J19=\"\",\"\",L19/J19)","v":""},null,null,null,null,null,{"$f":"IF(J19=\"\",\"\",IF(K19=\"\",\"\",K19/J19))","v":""},{"$f":"IF(J19=\"\",\"\",IF(I19=\"\",\"\",I19)*J19)","v":""}]
[null,null,null,null,null,null,null,null,null,null,null,null,{"$f":"IF(J20=\"\",\"\",L20/J20)","v":""},null,null,null,null,null,{"$f":"IF(J20=\"\",\"\",IF(K20=\"\",\"\",K20/J20))","v":""},{"$f":"IF(J20=\"\",\"\",IF(I20=\"\",\"\",I20)*J20)","v":""},null,null,null,null,null,null,null,null,null,null,null,null,null,null,null,null,null,null,null,null,null,null,null,null,null,null,null,null,null,null,null,null,null,null,null,null,null,null,null,null,null,null,null,null,null,null,null,null,null,null,null,null,null,null,null,null,null,null,null,null,null,null,null,null,null,null,null,null,null,null,null,null,null,null,null,null,null,null,null,null,null,null,null,null,null,null,null,null,"Tierdaten:","Stück","kg/Stück","DM/Stück","DM gesamt","DM/kg"]
[null,null,null,null,null,null,null,null,"Gesamt:",{"$f":"SUM(J16:J20)","v":100},{"$f":"SUM(K16:K20)","v":3000},{"$f":"SUM(L16:L20)","v":10000},{"$f":"IF(J21=0,0,L21/J21)","v":100},null,null,null,null,"Ø kg/Tier:",{"$f":"IF(J21=0,0,K21/J21)","v":30},{"$f":"SUM(T16:T20)","v":4396600},{"$f":"IF(J21=0,\"\",(T21/J21))","v":"2020-05-15"},"<----Gesamt EK Datum",null,{"$f":"IF(Auswertung!N8=\"J\",(L21*Q8)+L21,L21)","v":10000}]
[null,null,null,null,null,null,null,null,null,null,null,null,null,null,null,null,null,null,null,null,null,null,null,null,null,null,null,null,null,null,null,null,null,null,null,null,null,null,null,null,null,null,null,null,null,null,null,null,null,null,null,null,null,null,null,null,null,null,null,null,null,null,null,null,null,null,null,null,null,null,null,null,null,null,null,null,null,null,null,null,null,null,null,null,null,null,null,null,null,null,null,null,null,null,null,null,null,null,null,null,null,null,null,null,null,null,null,null,"Zukauf Ferkel:",{"$f":"$J$20","v":0},{"$f":"IF($C$22=0,0,$K$20/$J$20)","v":0},{"$f":"$N$20","v":0},{"$f":"$L$20","v":0},{"$f":"IF($L$20=0,0,$L$20/$K$20)","v":0}]
[null,null,null,null,null,null,null,null,"Verkauf Mastschweine:",null,null,"Gesamt",null,null,{"$f":"IF(Q9=\"\",\"bitte Steuersatz für Mastschweineverkauf angeben\",\"\")","v":""},null,null,null,null,null,null,null,null,null,null,null,null,null,null,null,null,null,null,null,null,null,null,null,null,null,null,null,null,null,null,null,null,null,null,null,null,null,null,null,null,null,null,null,null,null,null,null,null,null,null,null,null,null,null,null,null,null,null,null,null,null,null,null,null,null,null,null,null,null,null,null,null,null,null,null,null,null,null,null,null,null,null,null,null,null,null,null,null,null,null,null,null,null,"Verkauf Mastschweine:",{"$f":"$J$39","v":0},{"$f":"IF($C$23=0,0,$R$38/$J$39)","v":0},{"$f":"IF($O$39=0,0,$O$39/$J$39)","v":0},{"$f":"$O$39","v":0},{"$f":"IF($O$39=0,0,$O$39/$R$38)","v":0}]
[null,null,null,null,null,null,null,null,null,null,"Lebend-gewicht","Schlacht-gewicht","Fleisch Maß","Speck Maß","MFA/ Index",null,null,"Basispreis","erzielter",null,null,null,null,null,null,null,null,"Ø Lebend","Ø Schlacht","Ausschla-","aus Stall Nr.:","Mess-methode","Händler o.",null,null,null,null,null,null,null,null,null,null,null,null,null,null,null,null,null,null,null,null,null,null,null,null,null,null,null,null,null,null,null,null,null,null,null,null,null,null,null,null,null,null,null,null,null,null,null,null,null,null,null,null,null,null,null,null,null,null,null,null,null,null,null,null,null,null,null,null,null,null,null,null,null,null,null,"Notschlachtungen:",{"$f":"$J$48","v":0},{"$f":"IF($C$24=0,0,$K$48/$J$48)","v":0},{"$f":"IF($L$48=0,0,$L$48/$J$48)","v":0},{"$f":"$L$48","v":0},{"$f":"IF($L$48=0,0,$L$48/$K$48)","v":0}]
[null,null,null,null,null,null,null,null,"Datum","Stück",null,null,null,null,null,"Euro Gesamt","Euro/Tier","bei Ablief.","Preis/kg","Gesamt VK","Ges. MFA",null,null,null,null,null,null,"gewicht","gewicht","chtung ",null,null,"Schlachthof",null,null,null,null,null,null,null,null,null,null,null,null,null,null,null,null,null,null,null,null,null,null,null,null,null,null,null,null,null,null,null,null,null,null,null,null,null,null,null,null,null,null,null,null,null,null,null,null,null,null,null,null,null,null,null,null,null,null,null,null,null,null,null,null,null,null,null,null,null,null,null,null,null,null,null,"Verluste:",{"$f":"$J$83","v":5},{"$f":"IF($C$25=0,0,$K$83/$J$83)","v":0}]
[null,null,null,null,null,null,null,null,"2020-08-20",95,11000,9000,null,null,null,13000,{"$f":"IF(J26=\"\",\"\",IF(P26=\"\",\"\",P26/J26))","v":136.84210526315789},null,{"$f":"IF(J26=\"\",\"\",IF(P26=\"\",\"\",Q26/(L26/J26)+J26*5/L26))","v":1.497222222222222},{"$f":"IF(I26=\"\",0,(I26*J26))","v":4185985},{"$f":"IF(I26=\"\",0,(J26*O26))","v":0},{"$f":"IF(J26=\"\",0,(J26*R26))","v":0},{"$f":"IF(J26=\"\",0,IF(S26=\"\",0,(J26*S26)))","v":142.23611111111109},{"$f":"J26*M26","v":0},{"$f":"J26*N26","v":0},{"$f":"IF(I27<>\"\",\"\",IF(I26=\"\",\"\",I26))","v":44063},{"$f":"IF(I26<>\"\",0,IF(J26<>\"\",1,0))","v":0},{"$f":"IF(J26=\"\",\"\",IF(K26=\"\",\"\",K26/J26))","v":115.78947368421052},{"$f":"IF(J26=\"\",\"\",IF(L26=\"\",\"\",L26/J26))","v":94.736842105263165},{"$f":"IF(J26=\"\",\"\",IF(L26=\"\",\"\",L26/K26))","v":0.81818181818181823},"1",null,null,null,null,null,null,null,null,null,null,null,null,null,null,null,null,null,null,null,null,null,null,null,null,null,null,null,null,null,null,null,null,null,null,null,null,null,null,null,null,null,null,null,null,null,null,null,null,null,null,null,null,null,null,null,null,null,null,null,null,null,null,null,null,null,null,null,null,null,null,null,null,null,null,null,null," "]
[null,null,null,null,null,null,null,null,null,null,null,null,null,null,null,null,"",null,"",0,0,0,0,0,0,"",0,"","","",null,null,null,null,null,null,null,null,null,null,null,null,null,null,null,null,null,null,null,null,null,null,null,null,null,null,null,null,null,null,null,null,null,null,null,null,null,null,null,null,null,null,null,null,null,null,null,null,null,null,null,null,null,null,null,null,null,null,null,null,null,null,null,null,null,null,null,null,null,null,null,null,null,null,null,null,null,null,"Futteraufwand:",null,"dt","DM/dt","DM gesamt"]
[null,null,null,null,null,null,null,null,null,null,null,null,null,null,null,null,"",null,"",0,0,0,0,0,0,"",0,"","","",null,null,null,null,null,null,null,null,null,null,null,null,null,null,null,null,null,null,null,null,null,null,null,null,null,null,null,null,null,null,null,null,null,null,null,null,null,null,null,null,null,null,null,null,null,null,null,null,null,null,null,null,null,null,null,null,null,null,null,null,null,null,null,null,null,null,null,null,null,null,null,null,null,null,null,null,null,null,"Futterverbrauch Starter:",null,{"$f":"$AO$24","v":0},{"$f":"$AP$24","v":0},{"$f":"$AQ$24","v":0}]
[null,null,null,null,null,null,null,null,null,null,null,null,null,null,null,null,"",null,"",0,0,0,0,0,0,"",0,"","","",null,null,null,null,null,null,null,null,null,null,null,null,null,null,null,null,null,null,null,null,null,null,null,null,null,null,null,null,null,null,null,null,null,null,null,null,null,null,null,null,null,null,null,null,null,null,null,null,null,null,null,null,null,null,null,null,null,null,null,null,null,null,null,null,null,null,null,null,null,null,null,null,null,null,null,null,null,null,"Futterverbrauch Vormast:",null,{"$f":"$AO$29","v":0},{"$f":"$AP$29","v":0},{"$f":"$AQ$29","v":0}]
[null,null,null,null,null,null,null,null,null,null,null,null,null,null,null,null,"",null,"",0,0,0,0,0,0,"",0,"","","",null,null,null,null,null,null,null,null,null,null,null,null,null,null,null,null,null,null,null,null,null,null,null,null,null,null,null,null,null,null,null,null,null,null,null,null,null,null,null,null,null,null,null,null,null,null,null,null,null,null,null,null,null,null,null,null,null,null,null,null,null,null,null,null,null,null,null,null,null,null,null,null,null,null,null,null,null,null,"Futterverbrauch Endmast I.:",null,{"$f":"$AO$34","v":0},{"$f":"$AP$34","v":0},{"$f":"$AQ$34","v":0}]
[null,null,null,null,null,null,null,null,null,null,null,null,null,null,null,null,"",null,"",0,0,0,0,0,0,"",0,"","","",null,null,null,null,null,null,null,null,null,null,null,null,null,null,null,null,null,null,null,null,null,null,null,null,null,null,null,null,null,null,null,null,null,null,null,null,null,null,null,null,null,null,null,null,null,null,null,null,null,null,null,null,null,null,null,null,null,null,null,null,null,null,null,null,null,null,null,null,null,null,null,null,null,null,null,null,null,null,"Futterverbrauch Endmast II.:",null,{"$f":"$AO$40","v":0},{"$f":"$AP$40","v":0},{"$f":"$AQ$40","v":0}]
[null,null,null,null,null,null,null,null,null,null,null,null,null,null,null,null,"",null,"",0,0,0,0,0,0,"",0,"","","",null,null,null,null,null,null,null,null,null,null,null,null,null,null,null,null,null,null,null,null,null,null,null,null,null,null,null,null,null,null,null,null,null,null,null,null,null,null,null,null,null,null,null,null,null,null,null,null,null,null,null,null,null,null,null,null,null,null,null,null,null,null,null,null,null,null,null,null,null,null,null,null,null,null,null,null,null,null,"Futterverbrauch gesamt:",null,{"$f":"$AO$42","v":0},{"$f":"$AP$42","v":0},{"$f":"$AQ$42","v":0}]
[null,null,null,null,null,null,null,null,null,null,null,null,null,null,null,null,"",null,"",0,0,0,0,0,0,"",0,"","",""]
[null,null,null,null,null,null,null,null,null,null,null,null,null,null,null,null,"",null,"",0,0,0,0,0,0,"",0,"","","",null,null,null,null,null,null,null,null,null,null,null,null,null,null,null,null,null,null,null,null,null,null,null,null,null,null,null,null,null,null,null,null,null,null,null,null,null,null,null,null,null,null,null,null,null,null,null,null,null,null,null,null,null,null,null,null,null,null,null,null,null,null,null,null,null,null,null,null,null,null,null,null,null,null,null,null,null,null,"Sonstige Spezialkosten:"]
[null,null,null,null,null,null,null,null,null,null,null,null,null,null,null,null,"",null,"",0,0,0,0,0,0,"",0,"","","",null,null,null,null,null,null,null,null,null,null,null,null,null,null,null,null,null,null,null,null,null,null,null,null,null,null,null,null,null,null,null,null,null,null,null,null,null,null,null,null,null,null,null,null,null,null,null,null,null,null,null,null,null,null,null,null,null,null,null,null,null,null,null,null,null,null,null,null,null,null,null,null,null,null,null,null,null,null,"Tierarzt, Medikamente, Hygiene:",{"$f":"$AN$53","v":0},null,"Pacht:",{"$f":"$AQ$53","v":0}]
[null,null,null,null,null,null,null,null,null,null,null,null,null,null,null,null,"",null,"",0,0,0,0,0,0,"",0,"","","",null,null,null,null,null,null,null,null,null,null,null,null,null,null,null,null,null,null,null,null,null,null,null,null,null,null,null,null,null,null,null,null,null,null,null,null,null,null,null,null,null,null,null,null,null,null,null,null,null,null,null,null,null,null,null,null,null,null,null,null,null,null,null,null,null,null,null,null,null,null,null,null,null,null,null,null,null,null,"Strom, Wasser, Geräte:",{"$f":"$AN$59","v":0},null,"Lohn:",{"$f":"$AQ$59","v":0}]
[null,null,null,null,null,null,null,null,null,null,null,null,null,null,null,null,"",null,"",0,0,0,0,0,0,{"$f":"IF(I37=\"\",\"\",I37)","v":""},"Ausschlachtung","","","",null,null,null,null,null,null,null,null,null,null,null,null,null,null,null,null,null,null,null,null,null,null,null,null,null,null,null,null,null,null,null,null,null,null,null,null,null,null,null,null,null,null,null,null,null,null,null,null,null,null,null,null,null,null,null,null,null,null,null,null,null,null,null,null,null,null,null,null,null,null,null,null,null,null,null,null,null,null,"Beiträge (Tierseuchenkasse):",{"$f":"$AN$65","v":0},null,"Heizung, Gas:",{"$f":"$AQ$65","v":0}]
[null,null,null,null,null,null,null,null,"Gesamt:",{"$f":"SUM(J26:J37)","v":95},{"$f":"SUM(K26:K37)","v":11000},{"$f":"SUM(L26:L37)","v":9000},{"$f":"IF(J38=0,0,SUM(X26:X37)/J38)","v":0},{"$f":"IF(J38=0,0,SUM(Y26:Y37)/J38)","v":0},{"$f":"IF(U38<0.5,0,U38)","v":0},{"$f":"SUM(P26:P37)","v":13000},{"$f":"IF(Auswertung!E37<>\"\",\"\",IF(J38=0,0,P38/J38))","v":""},{"$f":"V38","v":0},{"$f":"W38","v":1.497222222222222},{"$f":"IF(J38=0,0,SUM(T26:T37)+T48+T83)","v":4406275},{"$f":"IF(J38=0,0,SUM(U26:U37)/J38)","v":0},{"$f":"IF(J38=0,0,SUM(V26:V37)/J38)","v":0},{"$f":"IF(J38=0,0,SUM(W26:W37)/J38)","v":1.497222222222222},{"$f":"IF(Auswertung!N8=\"J\",(P38*Q9)+P38,P38)","v":13000},{"$f":"IF(K38=0,0,IF(S21=0,0,SUM(K38-(J38*S21)+(K48-(J48*S21)+(K83-(J83*S21)+((AF38*120)-(AF38*S21)))))))","v":9600},{"$f":"IF(J38=0,\"\",SUM(Z26:Z37))","v":"2020-08-20"},{"$f":"IF(J38=0,0,(L38/K38)*100)","v":81.818181818181827},{"$f":"IF(J38=0,0,K38/J38)","v":115.78947368421052},{"$f":"IF(J38=0,0,L38/J38)","v":94.736842105263165},{"$f":"AA38","v":81.818181818181827},null,{"$f":"Bestandsregister!N5","v":0}," Tiere im Bestand"]
[null,null,null,null,null,null,null,null,null,null,null,null,null,null,null,null,null,null,null,{"$f":"IF(J38=0,\"\",(T38/(J38+J48+J83)))","v":"2020-08-19T18:00:00"},"<---Gesamt VK Datum",null,null,null,{"$f":"IF(K38=0,0,(K38+K48+K83)/(J38+J48+J83))","v":126},{"$f":"IF(Z38=\"\",0,IF(Z48>Z38,Z48-Z16,Z38-Z16))","v":97},{"$f":"SUM(AA26:AA36)","v":0}]
[null,null,null,null,null,null,null,null,"Notschlachtungen:",null,null,null,null,null,null,null,null,null,null,null,null,null,null,"Brutto Preis","Gesamt-Zunahme:",null,null,null,null,null,null,null,null,null,null,null,null,null,null,null,null,null,null,null,null,null,null,null,null,null,null,null,null,null,null,null,null,null,null,null,null,null,null,null,null,null,null,null,null,null,null,null,null,null,null,null,null,null,null,null,null,null,null,null,null,null,null,null,null,null,null,null,null,null,null,null,null,null,null,null,null,null,null,null,null,null,null,null,"2.: Mastverlauf"]
[null,null,null,null,null,null,null,null,null,null,"Gesamt-gewicht","Euro     Gesamt"]
[null,null,null,null,null,null,null,null,"Datum","Stück",null,null,"Euro/Tier","Notschlachter",null,null,null,null,null,null,null,null,null,null,null,null,null,null,null,null,null,null,null,null,null,null,null,null,null,null,null,null,null,null,null,null,null,null,null,null,null,null,null,null,null,null,null,null,null,null,null,null,null,null,null,null,null,null,null,null,null,null,null,null,null,null,null,null,null,null,null,null,null,null,null,null,null,null,null,null,null,null,null,null,null,null,null,null,null,null,null,null,null,null,null,null,null,null,{"$f":"\"Ø Futtertage:\"","v":"Ø Futtertage:"},{"$f":"$Q$261","v":0},null,{"$f":"\"Ø Lebendgewicht:\"","v":"Ø Lebendgewicht:"},{"$f":"IF($J$39=0,0,$R$38/$J$39)","v":0},"kg"]
[null,null,null,null,null,null,null,null,null,null,null,null,null,null,null,null,null,null,null,{"$f":"IF(I43=\"\",0,(I43*J43))","v":0},null,null,null,null,null,{"$f":"IF(I44<>\"\",\"\",IF(I43=\"\",\"\",I43))","v":""},{"$f":"IF(I43<>\"\",0,IF(J43<>\"\",1,0))","v":0},null,null,null,null,null,null,null,null,null,null,null,null,null,null,null,null,null,null,null,null,null,null,null,null,null,null,null,null,null,null,null,null,null,null,null,null,null,null,null,null,null,null,null,null,null,null,null,null,null,null,null,null,null,null,null,null,null,null,null,null,null,null,null,null,null,null,null,null,null,null,null,null,null,null,null,null,null,null,null,null,null,"tägl. Zunahmen:",{"$f":"IF((($R$38+$K$48+$K$83)-$K$20)=0,0,(($R$38+$K$48+$K$83)-$K$20)/$Q$237*1000)","v":{"$error":"#DIV/0!"}},null,{"$f":"\"Ø Schlachtgewicht:\"","v":"Ø Schlachtgewicht:"},{"$f":"IF($J$39=0,0,$P$39/$J$39)","v":0},"kg"]
[null,null,null,null,null,null,null,null,null,null,null,null,null,null,null,null,null,null,null,{"$f":"IF(I44=\"\",0,(I44*J44))","v":0},null,null,null,null,null,{"$f":"IF(I45<>\"\",\"\",IF(I44=\"\",\"\",I44))","v":""},{"$f":"IF(I44<>\"\",0,IF(J44<>\"\",1,0))","v":0},null,null,null,null,null,null,null,null,null,null,null,null,null,null,null,null,null,null,null,null,null,null,null,null,null,null,null,null,null,null,null,null,null,null,null,null,null,null,null,null,null,null,null,null,null,null,null,null,null,null,null,null,null,null,null,null,null,null,null,null,null,null,null,null,null,null,null,null,null,null,null,null,null,null,null,null,null,null,null,null,null,"Futterverwertung:",{"$f":"IF($AO$42=0,0,\"1\"&\" \"&\":\"&\" \"&ROUND($AO$42*100/(($R$38+$K$83+$K$48)-$K$20),2))","v":0},null,"Verluste:",{"$f":"IF($J$83=0,0,$J$83/$J$20*100)","v":{"$error":"#DIV/0!"}},"%"]
[null,null,null,null,null,null,null,null,null,null,null,null,null,null,null,null,null,null,null,{"$f":"IF(I45=\"\",0,(I45*J45))","v":0},null,null,null,null,null,{"$f":"IF(I46<>\"\",\"\",IF(I45=\"\",\"\",I45))","v":""},{"$f":"IF(I45<>\"\",0,IF(J45<>\"\",1,0))","v":0},null,null,null,null,null,null,null,null,null,null,null,null,null,null,null,null,null,null,null,null,null,null,null,null,null,null,null,null,null,null,null,null,null,null,null,null,null,null,null,null,null,null,null,null,null,null,null,null,null,null,null,null,null,null,null,null,null,null,null,null,null,null,null,null,null,null,null,null,null,null,null,null,null,null,null,null,null,null,null,null,null,"Futter/Tier/Tag:",{"$f":"IF($Q$237=0,0,$AO$42*100/$Q$237)","v":0},null,"Ausschlachtung:",{"$f":"IF($P$39=0,0,$P$39/$R$38*100)","v":0},"%"]
[null,null,null,null,null,null,null,null,null,null,null,null,null,null,null,null,null,null,null,{"$f":"IF(I46=\"\",0,(I46*J46))","v":0},"Gesamt Stck.","Ø kg/Tier:","Gesamt-Euro",null,"Brutto Preis",{"$f":"IF(I47<>\"\",\"\",IF(I46=\"\",\"\",I46))","v":""},{"$f":"IF(I46<>\"\",0,IF(J46<>\"\",1,0))","v":0},null,null,null,null,null,null,null,null,null,null,null,null,null,null,null,null,null,null,null,null,null,null,null,null,null,null,null,null,null,null,null,null,null,null,null,null,null,null,null,null,null,null,null,null,null,null,null,null,null,null,null,null,null,null,null,null,null,null,null,null,null,null,null,null,null,null,null,null,null,null,null,null,null,null,null,null,null,null,null,null,null,"Futterkosten/kg Zuwachs:",{"$f":"IF($F$32=0,0,$F$32/($R$38+$K$48+$K$83-$K$20))","v":0},null,"Magerfleischanteil:",{"$f":"$K$239","v":0},"%"]
[null,null,null,null,null,null,null,null,null,null,null,null,null,null,null,null,null,null,null,{"$f":"IF(I47=\"\",0,(I47*J47))","v":0},{"$f":"SUM(J43:J47)","v":0},{"$f":"IF(U47=0,0,SUM(K43:K47)/U47)","v":0},{"$f":"SUM(L43:L47)","v":0},null,{"$f":"IF(Auswertung!N8=\"J\",(W47*Q9)+W47,W47)","v":0},{"$f":"IF(I47=\"\",\"\",I47)","v":""},{"$f":"IF(I47<>\"\",0,IF(J47<>\"\",1,0))","v":0}]
[null,null,null,null,null,null,null,null,"Gesamt:",{"$f":"SUM(J43:J47)","v":0},{"$f":"SUM(K43:K47)","v":0},{"$f":"SUM(L43:L47)","v":0},{"$f":"IF(L48=0,\"\",IF(J48=0,\"\",L48/J48))","v":""},null,null,null,null,null,null,{"$f":"SUM(T43:T47)","v":0},null,null,null,null,null,{"$f":"SUM(Z43:Z47)","v":0},{"$f":"SUM(AA43:AA47)","v":0},null,null,null,null,null,null,null,null,null,null,null,null,null,null,null,null,null,null,null,null,null,null,null,null,null,null,null,null,null,null,null,null,null,null,null,null,null,null,null,null,null,null,null,null,null,null,null,null,null,null,null,null,null,null,null,null,null,null,null,null,null,null,null,null,null,null,null,null,null,null,null,null,null,null,null,null,null,null,null,null,null,"3.: Deckungsbeitragsrechnung"]
[]
[null,null,null,null,null,null,null,null,"Verluste:"]
[null,null,null,null,null,null,null,null,null,null,"Gesamt-gewicht","Verlust-ursache","aus Stall Nr.",null,null,null,null,null,null,null,null,null,null,null,null,null,null,null,null,null,null,null,null,null,null,null,null,null,null,null,null,null,null,null,null,null,null,null,null,null,null,null,null,null,null,null,null,null,null,null,null,null,null,null,null,null,null,null,null,null,null,null,null,null,null,null,null,null,null,null,null,null,null,null,null,null,null,null,null,null,null,null,null,null,null,null,null,null,null,null,null,null,null,null,null,null,null,null,"1.: Ertrag",null,"Gesamt",null,"je verk. Mastschwein"]
[null,null,null,null,null,null,null,null,"Datum","Stück",null,null,null,"Abnehmer",null,null,null,null,null,null,null,null,null,null,null,null,null,null,null,null,null,null,null,null,null,null,null,null,null,null,null,null,null,null,null,null,null,null,null,null,null,null,null,null,null,null,null,null,null,null,null,null,null,null,null,null,null,null,null,null,null,null,null,null,null,null,null,null,null,null,null,null,null,null,null,null,null,null,null,null,null,null,null,null,null,null,null,null,null,null,null,null,null,null,null,null,null,null,"Mastschweine:",null,{"$f":"$F$23","v":0},null,{"$f":"IF($D$52=0,0,$D$52/$C$23)","v":0}]
[null,null,null,null,null,null,null,"By Heinrich-Bernhard Münzebrock Version 2019","2020-08-15",5,1600,null,null,null,null,null,null,null,null,{"$f":"IF(I53=\"\",0,(I53*J53))","v":220290},null,{"$f":"IF(I53<>\"\",0,IF(J53<>\"\",1,0))","v":0},null,null,null,null,null,null,null,null,null,null,null,null,null,null,null,null,null,null,null,null,null,null,null,null,null,null,null,null,null,null,null,null,null,null,null,null,null,null,null,null,null,null,null,null,null,null,null,null,null,null,null,null,null,null,null,null,null,null,null,null,null,null,null,null,null,null,null,null,null,null,null,null,null,null,null,null,null,null,null,null,null,null,null,null,null,null,"Notschlachtungen:",null,{"$f":"$F$24","v":0},null,{"$f":"IF($D$53=0,0,$D$53/$C$23)","v":0}]
[null,null,null,null,null,null,null,null,null,null,null,null,null,null,null,null,null,null,null,0,null,{"$f":"IF(I54=\"\",IF(J54<>\"\",1,0))","v":0},null,null,null,null,null,null,null,null,null,null,null,null,null,null,null,null,null,null,null,null,null,null,null,null,null,null,null,null,null,null,null,null,null,null,null,null,null,null,null,null,null,null,null,null,null,null,null,null,null,null,null,null,null,null,null,null,null,null,null,null,null,null,null,null,null,null,null,null,null,null,null,null,null,null,null,null,null,null,null,null,null,null,null,null,null,null,"Gesamtertrag:",null,{"$f":"SUM($D$52:$D$53)","v":0},null,{"$f":"SUM($F$52:$F$53)","v":0}]
[null,null,null,null,null,null,null,null,null,null,null,null,null,null,null,null,null,null,null,0,null,0]
[null,null,null,null,null,null,null,null,null,null,null,null,null,null,null,null,null,null,null,0,null,0,null,null,null,null,null,null,null,null,null,null,null,null,null,null,null,null,null,null,null,null,null,null,null,null,null,null,null,null,null,null,null,null,null,null,null,null,null,null,null,null,null,null,null,null,null,null,null,null,null,null,null,null,null,null,null,null,null,null,null,null,null,null,null,null,null,null,null,null,null,null,null,null,null,null,null,null,null,null,null,null,null,null,null,null,null,null,"2.: Aufwand"]
[null,null,null,null,null,null,null,null,null,null,null,null,null,null,null,null,null,null,null,0,null,0,null,null,null,null,null,null,null,null,null,null,null,null,null,null,null,null,null,null,null,null,null,null,null,null,null,null,null,null,null,null,null,null,null,null,null,null,null,null,null,null,null,null,null,null,null,null,null,null,null,null,null,null,null,null,null,null,null,null,null,null,null,null,null,null,null,null,null,null,null,null,null,null,null,null,null,null,null,null,null,null,null,null,null,null,null,null,"Ferkel:",null,{"$f":"$F$22","v":0},null,{"$f":"IF($D$57=0,0,$D$57/$C$23)","v":0}]
[null,null,null,null,null,null,null,null,null,null,null,null,null,null,null,null,null,null,null,0,null,0,null,null,null,null,null,null,null,null,null,null,null,null,null,null,null,null,null,null,null,null,null,null,null,null,null,null,null,null,null,null,null,null,null,null,null,null,null,null,null,null,null,null,null,null,null,null,null,null,null,null,null,null,null,null,null,null,null,null,null,null,null,null,null,null,null,null,null,null,null,null,null,null,null,null,null,null,null,null,null,null,null,null,null,null,null,null,"Futtermittel:",null,{"$f":"$F$32","v":0},null,{"$f":"IF($D$58=0,0,$D$58/$C$23)","v":0}]
[null,null,null,null,null,null,null,null,null,null,null,null,null,null,null,null,null,null,null,0,null,0,null,null,null,null,null,null,null,null,null,null,null,null,null,null,null,null,null,null,null,null,null,null,null,null,null,null,null,null,null,null,null,null,null,null,null,null,null,null,null,null,null,null,null,null,null,null,null,null,null,null,null,null,null,null,null,null,null,null,null,null,null,null,null,null,null,null,null,null,null,null,null,null,null,null,null,null,null,null,null,null,null,null,null,null,null,null,"Tierarzt, Medizin, Hygiene:",null,{"$f":"$C$35","v":0},null,{"$f":"IF($D$59=0,0,$D$59/$C$23)","v":0}]
[null,null,null,null,null,null,null,null,null,null,null,null,null,null,null,null,null,null,null,0,null,0,null,null,null,null,null,null,null,null,null,null,null,null,null,null,null,null,null,null,null,null,null,null,null,null,null,null,null,null,null,null,null,null,null,null,null,null,null,null,null,null,null,null,null,null,null,null,null,null,null,null,null,null,null,null,null,null,null,null,null,null,null,null,null,null,null,null,null,null,null,null,null,null,null,null,null,null,null,null,null,null,null,null,null,null,null,null,"Strom, Wasser, Geräte:",null,{"$f":"$C$36","v":0},null,{"$f":"IF($D$60=0,0,$D$60/$C$23)","v":0}]
[null,null,null,null,null,null,null,null,null,null,null,null,null,null,null,null,null,null,null,0,null,0,null,null,null,null,null,null,null,null,null,null,null,null,null,null,null,null,null,null,null,null,null,null,null,null,null,null,null,null,null,null,null,null,null,null,null,null,null,null,null,null,null,null,null,null,null,null,null,null,null,null,null,null,null,null,null,null,null,null,null,null,null,null,null,null,null,null,null,null,null,null,null,null,null,null,null,null,null,null,null,null,null,null,null,null,null,null,"Beiträge (Tierseuchenkasse):",null,{"$f":"$C$37","v":0},null,{"$f":"IF($D$61=0,0,$D$61/$C$23)","v":0}]
[null,null,null,null,null,null,null,null,null,null,null,null,null,null,null,null,null,null,null,0,null,0,null,null,null,null,null,null,null,null,null,null,null,null,null,null,null,null,null,null,null,null,null,null,null,null,null,null,null,null,null,null,null,null,null,null,null,null,null,null,null,null,null,null,null,null,null,null,null,null,null,null,null,null,null,null,null,null,null,null,null,null,null,null,null,null,null,null,null,null,null,null,null,null,null,null,null,null,null,null,null,null,null,null,null,null,null,null,"Heizung, Gas:",null,{"$f":"$AQ$65","v":0},null,{"$f":"IF($D$62=0,0,$D$62/$C$23)","v":0}]
[null,null,null,null,null,null,null,null,null,null,null,null,null,null,null,null,null,null,null,0,null,0,null,null,null,null,null,null,null,null,null,null,null,null,null,null,null,null,null,null,null,null,null,null,null,null,null,null,null,null,null,null,null,null,null,null,null,null,null,null,null,null,null,null,null,null,null,null,null,null,null,null,null,null,null,null,null,null,null,null,null,null,null,null,null,null,null,null,null,null,null,null,null,null,null,null,null,null,null,null,null,null,null,null,null,null,null,null,"Gesamtaufwand:",null,{"$f":"SUM($D$57:$D$62)","v":0},null,{"$f":"SUM($F$57:$F$62)","v":0}]
[null,null,null,null,null,null,null,null,null,null,null,null,null,null,null,null,null,null,null,0,null,0]
[null,null,null,null,null,null,null,null,null,null,null,null,null,null,null,null,null,null,null,0,null,0,null,null,null,null,null,null,null,null,null,null,null,null,null,null,null,null,null,null,null,null,null,null,null,null,null,null,null,null,null,null,null,null,null,null,null,null,null,null,null,null,null,null,null,null,null,null,null,null,null,null,null,null,null,null,null,null,null,null,null,null,null,null,null,null,null,null,null,null,null,null,null,null,null,null,null,null,null,null,null,null,null,null,null,null,null,null,"3.: Deckungsbeitrag"]
[null,null,null,null,null,null,null,null,null,null,null,null,null,null,null,null,null,null,null,0,null,0]
[null,null,null,null,null,null,null,null,null,null,null,null,null,null,null,null,null,null,null,0,null,0]
[null,null,null,null,null,null,null,null,null,null,null,null,null,null,null,null,null,null,null,0,null,0]
[null,null,null,null,null,null,null,null,null,null,null,null,null,null,null,null,null,null,null,0,null,0]
[null,null,null,null,null,null,null,null,null,null,null,null,null,null,null,null,null,null,null,0,null,0]
[null,null,null,null,null,null,null,null,null,null,null,null,null,null,null,null,null,null,null,0,null,0]
[null,null,null,null,null,null,null,null,null,null,null,null,null,null,null,null,null,null,null,0,null,0]
[null,null,null,null,null,null,null,null,null,null,null,null,null,null,null,null,null,null,null,0,null,0]
[null,null,null,null,null,null,null,null,null,null,null,null,null,null,null,null,null,null,null,0,null,0]
[null,null,null,null,null,null,null,null,null,null,null,null,null,null,null,null,null,null,null,0,null,0]
[null,null,null,null,null,null,null,null,null,null,null,null,null,null,null,null,null,null,null,0,null,0]
[null,null,null,null,null,null,null,null,null,null,null,null,null,null,null,null,null,null,null,0,null,0]
[null,null,null,null,null,null,null,null,null,null,null,null,null,null,null,null,null,null,null,0]
[null,null,null,null,null,null,null,null,null,null,null,null,null,null,null,null,null,null,null,0]
[null,null,null,null,null,null,null,null,null,null,null,null,null,null,null,null,null,null,null,0]
[null,null,null,null,null,null,null,null,null,null,null,null,null,null,null,null,null,null,null,0]
[null,null,null,null,null,null,null,null,null,null,null,null,null,null,null,null,null,null,null,0,"Ø kg/Tier:"]
[null,null,null,null,null,null,null,null,"Gesamt:",{"$f":"SUM(J53:J82)","v":5},{"$f":"SUM(K53:K82)","v":1600},null,null,null,null,null,null,null,null,{"$f":"SUM(T53:T82)","v":220290},{"$f":"IF(K83=0,0,K83/J83)","v":320},{"$f":"SUM(V53:V77)+Y21+AA39+AA48","v":0},null,null,null,null,null,null,null,null,null,null,null,null,null,null,null,null,null,null,null,null,null,null,null,null,null,null,null,null,null,null,null,null,null,null,null,null,null,null,null,null,null,null,null,null,null,null,null,null,null,null,null,null,null,null,null,null,null,null,null,null,null,null,null,null,null,null,null,null,null,null,null,null,null,null,null,null,null,null,null,null,null,null,null,null,null,null,{"$f":"\"=> Deckungsbeitrag 1:\"","v":"=> Deckungsbeitrag 1:"},null,{"$f":"$D$54-$D$63","v":0},null,{"$f":"$F$54-$F$63","v":0}]
[]
[null,null,null,null,null,null,null,null,null,null,null,null,null,null,null,null,null,null,null,null,null,null,null,null,null,null,null,null,null,null,null,null,null,null,null,null,null,null,null,null,null,null,null,null,null,null,null,null,null,null,null,null,null,null,null,null,null,null,null,null,null,null,null,null,null,null,null,null,null,null,null,null,null,null,null,null,null,null,null,null,null,null,null,null,null,null,null,null,null,null,null,null,null,null,null,null,null,null,null,null,null,null,null,null,null,null,null,null,"Pacht:",null,{"$f":"$F$35","v":0},null,{"$f":"IF($D$85=0,0,$D$85/$C$23)","v":0}]
[null,null,null,null,null,null,null,null,null,null,null,null,null,null,null,null,null,null,null,null,null,null,null,null,null,null,null,null,null,null,null,null,null,null,null,null,null,null,null,null,null,null,null,null,null,null,null,null,null,null,null,null,null,null,null,null,null,null,null,null,null,null,null,null,null,null,null,null,null,null,null,null,null,null,null,null,null,null,null,null,null,null,null,null,null,null,null,null,null,null,null,null,null,null,null,null,null,null,null,null,null,null,null,null,null,null,null,null,"Lohn:",null,{"$f":"$F$36","v":0},null,{"$f":"IF($D$86=0,0,$D$86/$C$23)","v":0}]
[null,null,null,null,null,null,null,null,null,null,null,null,null,null,null,null,null,null,null,null,null,null,null,null,null,null,null,null,null,null,null,null,null,null,null,null,null,null,null,null,null,null,null,null,null,null,null,null,null,null,null,null,null,null,null,null,null,null,null,null,null,null,null,null,null,null,null,null,null,null,null,null,null,null,null,null,null,null,null,null,null,null,null,null,null,null,null,null,null,null,null,null,null,null,null,null,null,null,null,null,null,null,null,null,null,null,null,null,{"$f":"\"=> Deckungsbeitrag 2:\"","v":"=> Deckungsbeitrag 2:"},null,{"$f":"$D$83-$D$85-$D$86","v":0},null,{"$f":"$F$83-$F$85-$F$86","v":0}]
[]
[null,null,null,null,null,null,null,null,null,null,null,null,null,null,null,null,null,null,null,null,null,null,null,null,null,null,null,null,null,null,null,null,null,null,null,null,null,null,null,null,null,null,null,null,null,null,null,null,null,null,null,null,null,null,null,null,null,null,null,null,null,null,null,null,null,null,null,null,null,null,null,null,null,null,null,null,null,null,null,null,null,null,null,null,null,null,null,null,null,null,null,null,null,null,null,null,null,null,null,null,null,null,null,null,null,null,null,null,"Deckungsbeitrag je Mastplatz:",null,{"$f":"IF($D$83=0,0,$D$83/$C$22)","v":0}]
[null,null,null,null,null,null,null,null,null,null,null,null,null,null,null,null,null,null,null,null,null,null,null,null,null,null,null,null,null,null,null,null,null,null,null,null,null,null,null,null,null,null,null,null,null,null,null,null,null,null,null,null,null,null,null,null,null,null,null,null,null,null,null,null,null,null,null,null,null,null,null,null,null,null,null,null,null,null,null,null,null,null,null,null,null,null,null,null,null,null,null,null,null,null,null,null,null,null,null,null,null,null,null,null,null,null,null,null,"Deckungsbeitrag je Mastplatz & Jahr",null,{"$f":"IF($D$83=0,0,$D$83/$C$22*365/($F$15-$F$14))","v":0}]
[]
[]
[null,null,null,null,null,null,null,null,null,null,null,null,null,null,null,null,null,null,{"$f":"IF(R98=\"\",R97,IF(R98=0,R97,IF(R98>R97,R98,R97)))","v":"2020-08-20"},null,null,null,null,null,null,null,null,null,null,null,null,null,null,null,null,null,null,null,null,null,null,null,null,null,null,null,null,null,null,null,null,null,null,null,null,null,null,null,null,null,null,null,null,null,null,null,null,null,null,null,null,null,null,null,null,null,null,null,null,null,null,null,null,null,null,null,null,null,null,null,null,null,null,null,null,null,null,null,null,null,null,null,null,null,null,null,null,null,null,"Erfassungsbogen für die Betriebszweigabrechnung Schweinemast"]
[null,null,null,null,null,null,null,null,null,null,null,null,null,null,null,null,null,null,{"$f":"IF(R99>R98,R99,R98)","v":"00:00:00"}]
[null,null,null,null,null,null,null,null,null,null,null,null,null,null,null,null,null,null,"00:00:00",null,null,null,null,null,null,null,null,null,null,null,null,null,null,null,null,null,null,null,null,null,null,null,null,null,null,null,null,null,null,null,null,null,null,null,null,null,null,null,null,null,null,null,null,null,null,null,null,null,null,null,null,null,null,null,null,null,null,null,null,null,null,null,null,null,null,null,null,null,null,null,null,null,null,null,null,null,null,null,null,null,null,null,null,null,null,null,null,null,"Betrieb:",{"$f":"B13","v":0},null,"Stall:",{"$f":"DG13","v":1}]
[null,null,null,null,null,null,null,null,null,null,null,null,null,null,null,null,null,null,"00:00:00"]
[null,null,null,null,null,null,null,null,{"$f":"I26","v":"2020-08-20"},null,{"$f":"IF(I98>I97,I98,I97)","v":"2020-08-20"},{"$f":"IF(K98=\"\",K97,IF(K98=0,K97,IF(K98>K97,K98,K97)))","v":"2020-08-20"},null,null,{"$f":"IF(L98=\"\",L97,IF(L98=0,L97,IF(L98>L97,L98,L97)))","v":"2020-08-20"},{"$f":"IF(O98=\"\",O97,IF(O98=0,O97,IF(O98>O97,O98,O97)))","v":"2020-08-20"},{"$f":"IF(P98=\"\",P97,IF(P98=0,P97,IF(P98>P97,P98,P97)))","v":"2020-08-20"},{"$f":"IF(Q98=\"\",Q97,IF(Q98=0,Q97,IF(Q98>Q97,Q98,Q97)))","v":"2020-08-20"},"00:00:00",{"$f":"IF(S94=\"\",S93,IF(S94=0,S93,IF(S94>S93,S94,S93)))","v":"2020-08-20"},{"$f":"IF(T98=\"\",T97,IF(T98=0,T97,IF(T98>T97,T98,T97)))","v":"2020-08-20"},{"$f":"IF(U98=\"\",U97,IF(U98=0,U97,IF(U98>U97,U98,U97)))","v":"2020-08-20"},{"$f":"IF(V98=\"\",V97,IF(V98=0,V97,IF(V98>V97,V98,V97)))","v":"2020-08-20"},{"$f":"IF(W98=\"\",W97,IF(W98=0,W97,IF(W98>W97,W98,W97)))","v":"2020-08-20"},{"$f":"IF(X98=\"\",X97,IF(X98=0,X97,IF(X98>X97,X98,X97)))","v":"2020-08-20"},null,null,null,null,null,null,null,null,null,null,null,null,null,null,null,null,null,null,null,null,null,null,null,null,null,null,null,null,null,null,null,null,null,null,null,null,null,null,null,null,null,null,null,null,null,null,null,null,null,null,null,null,null,null,null,null,null,null,null,null,null,null,null,null,null,null,null,null,null,null,null,null,null,null,null,null,null,null,null,null,null,null,null,"Zukauf Ferkel:"]
[null,null,null,null,null,null,null,null,"00:00:00",null,"00:00:00",{"$f":"IF(K99>K98,K99,K98)","v":"00:00:00"},null,null,{"$f":"IF(L99>L98,L99,L98)","v":"00:00:00"},{"$f":"IF(O99>O98,O99,O98)","v":"00:00:00"},"00:00:00","00:00:00","00:00:00",{"$f":"IF(S95>S94,S95,S94)","v":"00:00:00"},{"$f":"IF(T99>T98,T99,T98)","v":"00:00:00"},"00:00:00","00:00:00","00:00:00","00:00:00",null,null,null,null,null,null,null,null,null,null,null,null,null,null,null,null,null,null,null,null,null,null,null,null,null,null,null,null,null,null,null,null,null,null,null,null,null,null,null,null,null,null,null,null,null,null,null,null,null,null,null,null,null,null,null,null,null,null,null,null,null,null,null,null,null,null,null,null,null,null,null,null,null,null,null,null,null,null,null,null,null,null,null,"Datum","Stück","Gewicht","DM gesamt","Rasse","Händler"]
[null,null,null,null,null,null,null,null,"00:00:00",null,"00:00:00","00:00:00",null,null,"00:00:00","00:00:00","00:00:00","00:00:00","00:00:00","00:00:00","00:00:00","00:00:00","00:00:00","00:00:00","00:00:00",null,null,null,null,null,null,null,null,null,null,null,null,null,null,null,null,null,null,null,null,null,null,null,null,null,null,null,null,null,null,null,null,null,null,null,null,null,null,null,null,null,null,null,null,null,null,null,null,null,null,null,null,null,null,null,null,null,null,null,null,null,null,null,null,null,null,null,null,null,null,null,null,null,null,null,null,null,null,null,null,null,null,null,{"$f":"DI14","v":""},{"$f":"DF22","v":0},{"$f":"K20","v":0},{"$f":"DI22","v":0},{"$f":"DG15","v":""},{"$f":"DI13","v":""}]
[null,null,null,null,null,null,null,null,"00:00:00",null,"00:00:00","00:00:00",null,null,"00:00:00","00:00:00","00:00:00","00:00:00","00:00:00","00:00:00","00:00:00","00:00:00","00:00:00","00:00:00","00:00:00"]
[null,null,null,null,null,null,null,null,"00:00:00",null,"00:00:00","00:00:00",null,null,"00:00:00","00:00:00","00:00:00","00:00:00","00:00:00","00:00:00","00:00:00","00:00:00","00:00:00","00:00:00","00:00:00",null,null,null,null,null,null,null,null,null,null,null,null,null,null,null,null,null,null,null,null,null,null,null,null,null,null,null,null,null,null,null,null,null,null,null,null,null,null,null,null,null,null,null,null,null,null,null,null,null,null,null,null,null,null,null,null,null,null,null,null,null,null,null,null,null,null,null,null,null,null,null,null,null,null,null,null,null,null,null,null,null,null,null,"Verkauf Mastschweine:"]
[null,null,null,null,null,null,null,null,"00:00:00",null,"00:00:00","00:00:00",null,null,"00:00:00","00:00:00","00:00:00","00:00:00","00:00:00","00:00:00","00:00:00","00:00:00","00:00:00","00:00:00","00:00:00",null,null,null,null,null,null,null,null,null,null,null,null,null,null,null,null,null,null,null,null,null,null,null,null,null,null,null,null,null,null,null,null,null,null,null,null,null,null,null,null,null,null,null,null,null,null,null,null,null,null,null,null,null,null,null,null,null,null,null,null,null,null,null,null,null,null,null,null,null,null,null,null,null,null,null,null,null,null,null,null,null,null,null,"Datum","Stück","Lebendgewicht","Schlachtgewicht","MFA","DM gesamt"]
[null,null,null,null,null,null,null,null,"00:00:00",null,"00:00:00","00:00:00",null,null,"00:00:00","00:00:00","00:00:00","00:00:00","00:00:00","00:00:00","00:00:00","00:00:00","00:00:00","00:00:00","00:00:00",null,null,null,null,null,null,null,null,null,null,null,null,null,null,null,null,null,null,null,null,null,null,null,null,null,null,null,null,null,null,null,null,null,null,null,null,null,null,null,null,null,null,null,null,null,null,null,null,null,null,null,null,null,null,null,null,null,null,null,null,null,null,null,null,null,null,null,null,null,null,null,null,null,null,null,null,null,null,null,null,null,null,null,{"$f":"IF(I16435=\"\",\"\",I16435)","v":""},{"$f":"IF(J16435=\"\",\"\",J16435)","v":""},{"$f":"IF(K16435=\"\",\"\",K16435)","v":""},{"$f":"IF(L16435=\"\",\"\",L16435)","v":""},{"$f":"IF(O16435=\"\",\"\",O16435)","v":""},{"$f":"IF(P16435=\"\",\"\",P16435)","v":""}]
[null,null,null,null,null,null,null,null,"00:00:00",null,"00:00:00","00:00:00",null,null,"00:00:00","00:00:00","00:00:00","00:00:00","00:00:00","00:00:00","00:00:00","00:00:00","00:00:00","00:00:00","00:00:00",null,null,null,null,null,null,null,null,null,null,null,null,null,null,null,null,null,null,null,null,null,null,null,null,null,null,null,null,null,null,null,null,null,null,null,null,null,null,null,null,null,null,null,null,null,null,null,null,null,null,null,null,null,null,null,null,null,null,null,null,null,null,null,null,null,null,null,null,null,null,null,null,null,null,null,null,null,null,null,null,null,null,null,"","","","","",""]
[null,null,null,null,null,null,null,null,"00:00:00",null,"00:00:00","00:00:00",null,null,"00:00:00","00:00:00","00:00:00","00:00:00",null,"00:00:00","00:00:00","00:00:00","00:00:00","00:00:00","00:00:00",null,null,null,null,null,null,null,null,null,null,null,null,null,null,null,null,null,null,null,null,null,null,null,null,null,null,null,null,null,null,null,null,null,null,null,null,null,null,null,null,null,null,null,null,null,null,null,null,null,null,null,null,null,null,null,null,null,null,null,null,null,null,null,null,null,null,null,null,null,null,null,null,null,null,null,null,null,null,null,null,null,null,null,"","","","","",""]
[null,null,null,null,null,null,null,null,"00:00:00",null,"00:00:00","00:00:00",null,null,"00:00:00","00:00:00","00:00:00","00:00:00",null,"00:00:00","00:00:00","00:00:00","00:00:00","00:00:00","00:00:00",null,null,null,null,null,null,null,null,null,null,null,null,null,null,null,null,null,null,null,null,null,null,null,null,null,null,null,null,null,null,null,null,null,null,null,null,null,null,null,null,null,null,null,null,null,null,null,null,null,null,null,null,null,null,null,null,null,null,null,null,null,null,null,null,null,null,null,null,null,null,null,null,null,null,null,null,null,null,null,null,null,null,null,"","","","","",""]
[null,null,null,null,null,null,null,null,"00:00:00",null,"00:00:00","00:00:00",null,null,"00:00:00","00:00:00","00:00:00","00:00:00",null,"00:00:00","00:00:00","00:00:00","00:00:00","00:00:00","00:00:00",null,null,null,null,null,null,null,null,null,null,null,null,null,null,null,null,null,null,null,null,null,null,null,null,null,null,null,null,null,null,null,null,null,null,null,null,null,null,null,null,null,null,null,null,null,null,null,null,null,null,null,null,null,null,null,null,null,null,null,null,null,null,null,null,null,null,null,null,null,null,null,null,null,null,null,null,null,null,null,null,null,null,null,"","","","","",""]
[null,null,null,null,null,null,null,null,"00:00:00",null,"00:00:00","00:00:00",null,null,"00:00:00","00:00:00","00:00:00","00:00:00",null,"00:00:00","00:00:00","00:00:00","00:00:00","00:00:00","00:00:00",null,null,null,null,null,null,null,null,null,null,null,null,null,null,null,null,null,null,null,null,null,null,null,null,null,null,null,null,null,null,null,null,null,null,null,null,null,null,null,null,null,null,null,null,null,null,null,null,null,null,null,null,null,null,null,null,null,null,null,null,null,null,null,null,null,null,null,null,null,null,null,null,null,null,null,null,null,null,null,null,null,null,null,"","","","","",""]
[null,null,null,null,null,null,null,null,null,null,null,null,null,null,null,null,null,null,null,null,null,null,null,null,null,null,null,null,null,null,null,null,null,null,null,null,null,null,null,null,null,null,null,null,null,null,null,null,null,null,null,null,null,null,null,null,null,null,null,null,null,null,null,null,null,null,null,null,null,null,null,null,null,null,null,null,null,null,null,null,null,null,null,null,null,null,null,null,null,null,null,null,null,null,null,null,null,null,null,null,null,null,null,null,null,null,null,null,"","","","","",""]
[null,null,null,null,null,null,null,null,null,null,null,null,null,null,null,null,null,null,null,null,null,null,null,null,null,null,null,null,null,null,null,null,null,null,null,null,null,null,null,null,null,null,null,null,null,null,null,null,null,null,null,null,null,null,null,null,null,null,null,null,null,null,null,null,null,null,null,null,null,null,null,null,null,null,null,null,null,null,null,null,null,null,null,null,null,null,null,null,null,null,null,null,null,null,null,null,null,null,null,null,null,null,null,null,null,null,null,null,"","","","","",""]
[null,null,null,null,null,null,null,null,null,null,null,null,null,null,null,null,null,null,null,null,null,null,null,null,null,null,null,null,null,null,null,null,null,null,null,null,null,null,null,null,null,null,null,null,null,null,null,null,null,null,null,null,null,null,null,null,null,null,null,null,null,null,null,null,null,null,null,null,null,null,null,null,null,null,null,null,null,null,null,null,null,null,null,null,null,null,null,null,null,null,null,null,null,null,null,null,null,null,null,null,null,null,null,null,null,null,null,null,"","","","","",""]
[null,null,null,null,null,null,null,null,null,null,null,null,null,null,null,null,null,null,null,null,null,null,null,null,null,null,null,null,null,null,null,null,null,null,null,null,null,null,null,null,null,null,null,null,null,null,null,null,null,null,null,null,null,null,null,null,null,null,null,null,null,null,null,null,null,null,null,null,null,null,null,null,null,null,null,null,null,null,null,null,null,null,null,null,null,null,null,null,null,null,null,null,null,null,null,null,null,null,null,null,null,null,null,null,null,null,null,null,"","","","","",""]
[null,null,null,null,null,null,null,null,null,null,null,null,null,null,null,null,null,null,null,null,null,null,null,null,null,null,null,null,null,null,null,null,null,null,null,null,null,null,null,null,null,null,null,null,null,null,null,null,null,null,null,null,null,null,null,null,null,null,null,null,null,null,null,null,null,null,null,null,null,null,null,null,null,null,null,null,null,null,null,null,null,null,null,null,null,null,null,null,null,null,null,null,null,null,null,null,null,null,null,null,null,null,null,null,null,null,null,null,"","","","","",""]
[]
[null,null,null,null,null,null,null,null,null,null,null,null,null,null,null,null,null,null,null,null,null,null,null,null,null,null,null,null,null,null,null,null,null,null,null,null,null,null,null,null,null,null,null,null,null,null,null,null,null,null,null,null,null,null,null,null,null,null,null,null,null,null,null,null,null,null,null,null,null,null,null,null,null,null,null,null,null,null,null,null,null,null,null,null,null,null,null,null,null,null,null,null,null,null,null,null,null,null,null,null,null,null,null,null,null,null,null,null,"Notschlachtungen:"]
[null,null,null,null,null,null,null,null,null,null,null,null,null,null,null,null,null,null,null,null,null,null,null,null,null,null,null,null,null,null,null,null,null,null,null,null,null,null,null,null,null,null,null,null,null,null,null,null,null,null,null,null,null,null,null,null,null,null,null,null,null,null,null,null,null,null,null,null,null,null,null,null,null,null,null,null,null,null,null,null,null,null,null,null,null,null,null,null,null,null,null,null,null,null,null,null,null,null,null,null,null,null,null,null,null,null,null,null,"Datum","Stück","Gewicht","DM gesamt"]
[null,null,null,null,null,null,null,null,null,null,null,null,null,null,null,null,null,null,null,null,null,null,null,null,null,null,null,null,null,null,null,null,null,null,null,null,null,null,null,null,null,null,null,null,null,null,null,null,null,null,null,null,null,null,null,null,null,null,null,null,null,null,null,null,null,null,null,null,null,null,null,null,null,null,null,null,null,null,null,null,null,null,null,null,null,null,null,null,null,null,null,null,null,null,null,null,null,null,null,null,null,null,null,null,null,null,null,null,{"$f":"IF(I43=\"\",\"\",I43)","v":""},{"$f":"IF(J43=\"\",\"\",J43)","v":""},{"$f":"IF(K43=\"\",\"\",K43)","v":""},{"$f":"IF(L43=\"\",\"\",L43)","v":""}]
[null,null,null,null,null,null,null,null,null,null,null,null,null,null,null,null,null,null,null,null,null,null,null,null,null,null,null,null,null,null,null,null,null,null,null,null,null,null,null,null,null,null,null,null,null,null,null,null,null,null,null,null,null,null,null,null,null,null,null,null,null,null,null,null,null,null,null,null,null,null,null,null,null,null,null,null,null,null,null,null,null,null,null,null,null,null,null,null,null,null,null,null,null,null,null,null,null,null,null,null,null,null,null,null,null,null,null,null,{"$f":"IF(J16453=\"\",\"\",J16453)","v":""},"","",{"$f":"IF(O16453=\"\",\"\",O16453)","v":""}]
[null,null,null,null,null,null,null,null,null,null,null,null,null,null,null,null,null,null,null,null,null,null,null,null,null,null,null,null,null,null,null,null,null,null,null,null,null,null,null,null,null,null,null,null,null,null,null,null,null,null,null,null,null,null,null,null,null,null,null,null,null,null,null,null,null,null,null,null,null,null,null,null,null,null,null,null,null,null,null,null,null,null,null,null,null,null,null,null,null,null,null,null,null,null,null,null,null,null,null,null,null,null,null,null,null,null,null,null,"","","",{"$f":"IF(O16454=\"\",\"\",O16454)","v":""}]
[null,null,null,null,null,null,null,null,null,null,null,null,null,null,null,null,null,null,null,null,null,null,null,null,null,null,null,null,null,null,null,null,null,null,null,null,null,null,null,null,null,null,null,null,null,null,null,null,null,null,null,null,null,null,null,null,null,null,null,null,null,null,null,null,null,null,null,null,null,null,null,null,null,null,null,null,null,null,null,null,null,null,null,null,null,null,null,null,null,null,null,null,null,null,null,null,null,null,null,null,null,null,null,null,null,null,null,null,"","","",{"$f":"IF(O16455=\"\",\"\",O16455)","v":""}]
[null,null,null,null,null,null,null,null,null,null,null,null,null,null,null,null,null,null,null,null,null,null,null,null,null,null,null,null,null,null,null,null,null,null,null,null,null,null,null,null,null,null,null,null,null,null,null,null,null,null,null,null,null,null,null,null,null,null,null,null,null,null,null,null,null,null,null,null,null,null,null,null,null,null,null,null,null,null,null,null,null,null,null,null,null,null,null,null,null,null,null,null,null,null,null,null,null,null,null,null,null,null,null,null,null,null,null,null,"","","",{"$f":"IF(O16456=\"\",\"\",O16456)","v":""}]
[]
[null,null,null,null,null,null,null,null,null,null,null,null,null,null,null,null,null,null,null,null,null,null,null,null,null,null,null,null,null,null,null,null,null,null,null,null,null,null,null,null,null,null,null,null,null,null,null,null,null,null,null,null,null,null,null,null,null,null,null,null,null,null,null,null,null,null,null,null,null,null,null,null,null,null,null,null,null,null,null,null,null,null,null,null,null,null,null,null,null,null,null,null,null,null,null,null,null,null,null,null,null,null,null,null,null,null,null,null,"Verluste:"]
[null,null,null,null,null,null,null,null,null,null,null,null,null,null,null,null,null,null,null,null,null,null,null,null,null,null,null,null,null,null,null,null,null,null,null,null,null,null,null,null,null,null,null,null,null,null,null,null,null,null,null,null,null,null,null,null,null,null,null,null,null,null,null,null,null,null,null,null,null,null,null,null,null,null,null,null,null,null,null,null,null,null,null,null,null,null,null,null,null,null,null,null,null,null,null,null,null,null,null,null,null,null,null,null,null,null,null,null,"Datum","Stück","Gewicht"]
[null,null,null,null,null,null,null,null,null,null,null,null,null,null,null,null,null,null,null,null,null,null,null,null,null,null,null,null,null,null,null,null,null,null,null,null,null,null,null,null,null,null,null,null,null,null,null,null,null,null,null,null,null,null,null,null,null,null,null,null,null,null,null,null,null,null,null,null,null,null,null,null,null,null,null,null,null,null,null,null,null,null,null,null,null,null,null,null,null,null,null,null,null,null,null,null,null,null,null,null,null,null,null,null,null,null,null,null,{"$f":"IF(I53=\"\",\"\",I53)","v":"2020-08-15"},{"$f":"IF(J53=\"\",\"\",J53)","v":5},{"$f":"IF(K53=\"\",\"\",K53)","v":1600}]
[null,null,null,null,null,null,null,null,null,null,null,null,null,null,null,null,null,null,null,null,null,null,null,null,null,null,null,null,null,null,null,null,null,null,null,null,null,null,null,null,null,null,null,null,null,null,null,null,null,null,null,null,null,null,null,null,null,null,null,null,null,null,null,null,null,null,null,null,null,null,null,null,null,null,null,null,null,null,null,null,null,null,null,null,null,null,null,null,null,null,null,null,null,null,null,null,null,null,null,null,null,null,null,null,null,null,null,null,{"$f":"IF(J16464=\"\",\"\",J16464)","v":""},{"$f":"IF(K16464=\"\",\"\",K16464)","v":""},{"$f":"IF(L16464=\"\",\"\",L16464)","v":""}]
[null,null,null,null,null,null,null,null,null,null,null,null,null,null,null,null,null,null,null,null,null,null,null,null,null,null,null,null,null,null,null,null,null,null,null,null,null,null,null,null,null,null,null,null,null,null,null,null,null,null,null,null,null,null,null,null,null,null,null,null,null,null,null,null,null,null,null,null,null,null,null,null,null,null,null,null,null,null,null,null,null,null,null,null,null,null,null,null,null,null,null,null,null,null,null,null,null,null,null,null,null,null,null,null,null,null,null,null,"","",""]
[null,null,null,null,null,null,null,null,null,null,null,null,null,null,null,null,null,null,null,null,null,null,null,null,null,null,null,null,null,null,null,null,null,null,null,null,null,null,null,null,null,null,null,null,null,null,null,null,null,null,null,null,null,null,null,null,null,null,null,null,null,null,null,null,null,null,null,null,null,null,null,null,null,null,null,null,null,null,null,null,null,null,null,null,null,null,null,null,null,null,null,null,null,null,null,null,null,null,null,null,null,null,null,null,null,null,null,null,"","",""]
[null,null,null,null,null,null,null,null,null,null,null,null,null,null,null,null,null,null,null,null,null,null,null,null,null,null,null,null,null,null,null,null,null,null,null,null,null,null,null,null,null,null,null,null,null,null,null,null,null,null,null,null,null,null,null,null,null,null,null,null,null,null,null,null,null,null,null,null,null,null,null,null,null,null,null,null,null,null,null,null,null,null,null,null,null,null,null,null,null,null,null,null,null,null,null,null,null,null,null,null,null,null,null,null,null,null,null,null,"","",""]
[null,null,null,null,null,null,null,null,null,null,null,null,null,null,null,null,null,null,null,null,null,null,null,null,null,null,null,null,null,null,null,null,null,null,null,null,null,null,null,null,null,null,null,null,null,null,null,null,null,null,null,null,null,null,null,null,null,null,null,null,null,null,null,null,null,null,null,null,null,null,null,null,null,null,null,null,null,null,null,null,null,null,null,null,null,null,null,null,null,null,null,null,null,null,null,null,null,null,null,null,null,null,null,null,null,null,null,null,"","",""]
[null,null,null,null,null,null,null,null,null,null,null,null,null,null,null,null,null,null,null,null,null,null,null,null,null,null,null,null,null,null,null,null,null,null,null,null,null,null,null,null,null,null,null,null,null,null,null,null,null,null,null,null,null,null,null,null,null,null,null,null,null,null,null,null,null,null,null,null,null,null,null,null,null,null,null,null,null,null,null,null,null,null,null,null,null,null,null,null,null,null,null,null,null,null,null,null,null,null,null,null,null,null,null,null,null,null,null,null,"","",""]
[null,null,null,null,null,null,null,null,null,null,null,null,null,null,null,null,null,null,null,null,null,null,null,null,null,null,null,null,null,null,null,null,null,null,null,null,null,null,null,null,null,null,null,null,null,null,null,null,null,null,null,null,null,null,null,null,null,null,null,null,null,null,null,null,null,null,null,null,null,null,null,null,null,null,null,null,null,null,null,null,null,null,null,null,null,null,null,null,null,null,null,null,null,null,null,null,null,null,null,null,null,null,null,null,null,null,null,null,"","",""]
[null,null,null,null,null,null,null,null,null,null,null,null,null,null,null,null,null,null,null,null,null,null,null,null,null,null,null,null,null,null,null,null,null,null,null,null,null,null,null,null,null,null,null,null,null,null,null,null,null,null,null,null,null,null,null,null,null,null,null,null,null,null,null,null,null,null,null,null,null,null,null,null,null,null,null,null,null,null,null,null,null,null,null,null,null,null,null,null,null,null,null,null,null,null,null,null,null,null,null,null,null,null,null,null,null,null,null,null,"","",""]
[null,null,null,null,null,null,null,null,null,null,null,null,null,null,null,null,null,null,null,null,null,null,null,null,null,null,null,null,null,null,null,null,null,null,null,null,null,null,null,null,null,null,null,null,null,null,null,null,null,null,null,null,null,null,null,null,null,null,null,null,null,null,null,null,null,null,null,null,null,null,null,null,null,null,null,null,null,null,null,null,null,null,null,null,null,null,null,null,null,null,null,null,null,null,null,null,null,null,null,null,null,null,null,null,null,null,null,null,"","",""]
[]
[null,null,null,null,null,null,null,null,null,null,null,null,null,null,null,null,null,null,null,null,null,null,null,null,null,null,null,null,null,null,null,null,null,null,null,null,null,null,null,null,null,null,null,null,null,null,null,null,null,null,null,null,null,null,null,null,null,null,null,null,null,null,null,null,null,null,null,null,null,null,null,null,null,null,null,null,null,null,null,null,null,null,null,null,null,null,null,null,null,null,null,null,null,null,null,null,null,null,null,null,null,null,null,null,null,null,null,null,"Spezialkosten:"]
[null,null,null,null,null,null,null,null,null,null,null,null,null,null,null,null,null,null,null,null,null,null,null,null,null,null,null,null,null,null,null,null,null,null,null,null,null,null,null,null,null,null,null,null,null,null,null,null,null,null,null,null,null,null,null,null,null,null,null,null,null,null,null,null,null,null,null,null,null,null,null,null,null,null,null,null,null,null,null,null,null,null,null,null,null,null,null,null,null,null,null,null,null,null,null,null,null,null,null,null,null,null,null,null,null,null,null,null,"Tierarzt, Medizin, Hygiene:",{"$f":"DF35","v":0},null,"Pacht:",{"$f":"DI35","v":0}]
[]
[null,null,null,null,null,null,null,null,null,null,null,null,null,null,null,null,null,null,null,null,null,null,null,null,null,null,null,null,null,null,null,null,null,null,null,null,null,null,null,null,null,null,null,null,null,null,null,null,null,null,null,null,null,null,null,null,null,null,null,null,null,null,null,null,null,null,null,null,null,null,null,null,null,null,null,null,null,null,null,null,null,null,null,null,null,null,null,null,null,null,null,null,null,null,null,null,null,null,null,null,null,null,null,null,null,null,null,null,"Strom, Wasser, Geräte:",{"$f":"DF36","v":0},null,"Lohn:",{"$f":"DI36","v":0}]
[]
[null,null,null,null,null,null,null,null,null,null,null,null,null,null,null,null,null,null,null,null,null,null,null,null,null,null,null,null,null,null,null,null,null,null,null,null,null,null,null,null,null,null,null,null,null,null,null,null,null,null,null,null,null,null,null,null,null,null,null,null,null,null,null,null,null,null,null,null,null,null,null,null,null,null,null,null,null,null,null,null,null,null,null,null,null,null,null,null,null,null,null,null,null,null,null,null,null,null,null,null,null,null,null,null,null,null,null,null,"Beiträge:",{"$f":"DF37","v":0},null,"Heizung, Gas:",{"$f":"DI37","v":0}]
[]
[null,null,null,null,null,null,null,null,null,null,null,null,null,null,null,null,null,null,null,null,null,null,null,null,null,null,null,null,null,null,null,null,null,null,null,null,null,null,null,null,null,null,null,null,null,null,null,null,null,null,null,null,null,null,null,null,null,null,null,null,null,null,null,null,null,null,null,null,null,null,null,null,null,null,null,null,null,null,null,null,null,null,null,null,null,null,null,null,null,null,null,null,null,null,null,null,null,null,null,null,null,null,null,null,null,null,null,null,"Futtermittellieferungen:"]
[null,null,null,null,null,null,null,null,null,null,null,null,null,null,null,null,null,null,null,null,null,null,null,null,null,null,null,null,null,null,null,null,null,null,null,null,null,null,null,null,null,null,null,null,null,null,null,null,null,null,null,null,null,null,null,null,null,null,null,null,null,null,null,null,null,null,null,null,null,null,null,null,null,null,null,null,null,null,null,null,null,null,null,null,null,null,null,null,null,null,null,null,null,null,null,null,null,null,null,null,null,null,null,null,null,null,null,null,"Datum","Futterart",null,"dt","DM gesamt","Firma"]
[]
[null,null,null,null,null,null,null,null,null,null,null,null,null,null,null,null,null,null,null,null,null,null,null,null,null,null,null,null,null,null,null,null,null,null,null,null,null,null,null,null,null,null,null,null,null,null,null,null,null,null,null,null,null,null,null,null,null,null,null,null,null,null,null,null,null,null,null,null,null,null,null,null,null,null,null,null,null,null,null,null,null,null,null,null,null,null,null,null,null,null,null,null,null,null,null,null,null,null,null,null,null,null,null,null,null,null,null,null,{"$f":"IF(AN23=\"\",\"\",AN23)","v":""},"Starter",{"$f":"IF(AN11=\"\",\"\",AN11)","v":""},{"$f":"AO24","v":0},{"$f":"AQ24","v":0},{"$f":"IF(AN11=\"\",\"\",AL12)","v":""}]
[]
[null,null,null,null,null,null,null,null,null,null,null,null,null,null,null,null,null,null,null,null,null,null,null,null,null,null,null,null,null,null,null,null,null,null,null,null,null,null,null,null,null,null,null,null,null,null,null,null,null,null,null,null,null,null,null,null,null,null,null,null,null,null,null,null,null,null,null,null,null,null,null,null,null,null,null,null,null,null,null,null,null,null,null,null,null,null,null,null,null,null,null,null,null,null,null,null,null,null,null,null,null,null,null,null,null,null,null,null,{"$f":"IF(AN28=\"\",\"\",AN28)","v":""},"Vormast",{"$f":"IF(AP11=\"\",\"\",AP11)","v":""},{"$f":"AO29","v":0},{"$f":"AQ29","v":0},{"$f":"IF(AP11=\"\",\"\",AL12)","v":""}]
[]
[null,null,null,null,null,null,null,null,null,null,null,null,null,null,null,null,null,null,null,null,null,null,null,null,null,null,null,null,null,null,null,null,null,null,null,null,null,null,null,null,null,null,null,null,null,null,null,null,null,null,null,null,null,null,null,null,null,null,null,null,null,null,null,null,null,null,null,null,null,null,null,null,null,null,null,null,null,null,null,null,null,null,null,null,null,null,null,null,null,null,null,null,null,null,null,null,null,null,null,null,null,null,null,null,null,null,null,null,{"$f":"IF(AN33=\"\",\"\",AN33)","v":""},"Endmast I.",{"$f":"IF(AN13=\"\",\"\",AN13)","v":""},{"$f":"AO34","v":0},{"$f":"AQ34","v":0},{"$f":"IF(AN13=\"\",\"\",AL12)","v":""}]
[]
[null,null,null,null,null,null,null,null,null,null,null,null,null,null,null,null,null,null,null,null,null,null,null,null,null,null,null,null,null,null,null,null,null,null,null,null,null,null,null,null,null,null,null,null,null,null,null,null,null,null,null,null,null,null,null,null,null,null,null,null,null,null,null,null,null,null,null,null,null,null,null,null,null,null,null,null,null,null,null,null,null,null,null,null,null,null,null,null,null,null,null,null,null,null,null,null,null,null,null,null,null,null,null,null,null,null,null,null,{"$f":"IF(AN39=\"\",\"\",AN39)","v":""},"Endmast II.",{"$f":"IF(AP13=\"\",\"\",AP13)","v":""},{"$f":"AO40","v":0},{"$f":"AQ40","v":0},{"$f":"IF(AP13=\"\",\"\",AL12)","v":""}]

{"sheet":"Futter","index":2,"n_rows":136,"n_cols":47,"rows_kept":136,"cut":false,"hidden":false,"merged":[[118,1,133,1],[135,4,135,5],[135,9,135,10],[135,14,135,15],[135,19,135,20],[98,18,98,19],[99,2,99,3],[99,7,99,8],[99,12,99,13],[99,17,99,18],[92,13,92,17],[94,3,94,7],[98,3,98,4],[98,8,98,9],[98,13,98,14],[73,1,88,1],[90,4,90,5],[90,9,90,10],[90,14,90,15],[90,19,90,20],[53,18,53,19],[54,2,54,3],[54,7,54,8],[54,12,54,13],[54,17,54,18],[47,13,47,17],[49,3,49,7],[53,3,53,4],[53,8,53,9],[53,13,53,14],[27,1,42,1],[44,4,44,5],[44,9,44,10],[44,14,44,15],[44,19,44,20],[7,18,7,19],[8,2,8,3],[8,7,8,8],[8,12,8,13],[8,17,8,18],[2,13,2,17],[4,3,4,7],[7,3,7,4],[7,8,7,9],[7,13,7,14]]}
[]
[]
[null,null,"Auswertung Schweinemast / Erfassungsbogen Futter",null,null,null,null,null,null,null,null,null,"Name:",{"$f":"Tiere_Zu_Abgang!J6","v":""},null,null,null,null,"          Strg+k=Eingaben löschen"]
[null,null,null,null,null,null,null,null,null,{"$f":"TODAY()","v":"2020-09-01"},null,null,"Stall/Ställe/Partie Nr.:",null,{"$f":"Tiere_Zu_Abgang!Q5","v":1}]
[null,null,"Lieferant:","Futtermittelfirma",null,null,null,null,null,null,null,null,"Silo Nr.:",null,13,null,null,null,"Blatt 1"]
[null,null,null,null,null,null,null,{"$f":"IF(O6=\"\",\"    Bitte EK - Steuersatz angeben!!! --->\",\"\")","v":""},null,null,null,null,"EK – Steuersatz:",null,7.0000000000000007E-2]
[null,null,"* = Bitte nur angeben, wenn der Preis für den gesamten Durchgang gültig ist! - hierbei entfällt die Eingabe des Gesampreises!.",null,null,null,null,null,null,null,null,null,null,null,null,null,null,null,null,null,null,null,null,null,null,null,null,null,null,null,null,null,null,null,null,{"$f":"D45","v":180},{"$f":"I45","v":5},{"$f":"N45","v":6},{"$f":"S45","v":7},{"$f":"D91","v":8},{"$f":"I91","v":9},{"$f":"N91","v":25},{"$f":"S91","v":0},{"$f":"D136","v":0},{"$f":"I136","v":0},{"$f":"N136","v":0},{"$f":"S136","v":0}]
[null,null,"Futtersorte","Vormast",null,null,null,"Futtersorte","Mittelmast",null,null,null,"Futtersorte","Endmast I",null,null,null,"Futtersorte","Endmast II",null,null,null,null,null,null,null,null,null,null,null,null,null,null,null,null,{"$f":"IF($I$8=$D$8,$I$45,0)","v":0},{"$f":"IF($N$8=$I$8,$N$45,0)","v":0},{"$f":"IF($S$8=$N$8,$S$45,0)","v":0},{"$f":"IF($D$54=$S$8,$D$91,0)","v":0},{"$f":"IF($I$54=$D$54,$I$91,0)","v":0},{"$f":"IF($N$54=$I$54,$N$91,0)","v":0},{"$f":"IF($S$54=$N$54,$S$91,0)","v":0},{"$f":"IF($D$99=$S$54,$D$136,0)","v":0},{"$f":"IF($I$99=$D$99,$I$136,0)","v":0},{"$f":"IF($N$99=$I$99,$N$136,0)","v":0},{"$f":"IF($S$99=$N$99,$S$136,0)","v":0}]
[null,null,"*Kontraktpreis?/dt:",null,null,null,null,"*Kontraktpreis?/dt:",null,null,null,null,"*Kontraktpreis?/dt:",null,null,null,null,"*Kontraktpreis?/dt:",null,null,null,null,null,null,null,null,null,null,null,null,null,null,null,null,null,{"$f":"IF($N$8=$D$8,$N$45,0)","v":0},{"$f":"IF($S$8=$I$8,$S$45,0)","v":0},{"$f":"IF($D$54=$N$8,$D$91,0)","v":0},{"$f":"IF($I$54=$S$8,$I$91,0)","v":0},{"$f":"IF($N$54=$D$54,$N$91,0)","v":0},{"$f":"IF($S$54=$I$54,$S$91,0)","v":0},{"$f":"IF($D$99=$N$54,$D$136,0)","v":0},{"$f":"IF($I$99=$S$54,$I$136,0)","v":0},{"$f":"IF($N$99=$D$99,$N$136,0)","v":0},{"$f":"IF($S$99=$I$99,$S$136,0)","v":0}]
[null,null,"Achtung: bitte Nettopreise eingeben = o Steuer",null,null,null,null,{"$f":"IF(J12=\"\",\"\",\"Achtung: bitte Nettopreise eingeben = o Steuer\")","v":"Achtung: bitte Nettopreise eingeben = o Steuer"},null,null,null,null,{"$f":"IF(O12=\"\",\"\",\"Achtung: bitte Nettopreise eingeben = o Steuer\")","v":"Achtung: bitte Nettopreise eingeben = o Steuer"},null,null,null,null,{"$f":"IF(T12=\"\",\"\",\"Achtung: bitte Nettopreise eingeben = o Steuer\")","v":"Achtung: bitte Nettopreise eingeben = o Steuer"},null,null,null,null,null,null,null,null,null,null,null,null,null,null,null,null,null,{"$f":"IF($S$8=$D$8,$S$45,0)","v":0},{"$f":"IF($D$54=$I$8,$D$91,0)","v":0},{"$f":"IF($I$54=$N$8,$I$91,0)","v":0},{"$f":"IF($N$54=$S$8,$N$91,0)","v":0},{"$f":"IF($S$54=$D$54,$S$91,0)","v":0},{"$f":"IF($D$99=$I$54,$D$136,0)","v":0},{"$f":"IF($I$99=$N$54,$I$136,0)","v":0},{"$f":"IF($N$99=$S$54,$N$136,0)","v":0},{"$f":"IF($S$99=$D$99,$S$136,0)","v":0}]
[null,null,"Lieferdatum","Menge/dt","Gesamtpreis",null,null,"Lieferdatum","Menge/dt","Gesamtpreis",null,null,"Lieferdatum","Menge/dt","Gesamtpreis",null,null,"Lieferdatum","Menge/dt","Gesamtpreis",null,null,null,null,null,null,null,null,null,null,null,null,null,null,null,{"$f":"IF($D$54=$D$8,$D$91,0)","v":0},{"$f":"IF($I$54=$I$8,$I$91,0)","v":0},{"$f":"IF($N$54=$N$8,$N$91,0)","v":0},{"$f":"IF($S$54=$S$8,$S$91,0)","v":0},{"$f":"IF($D$99=$D$54,$D$136,0)","v":0},{"$f":"IF($I$99=$I$54,$I$136,0)","v":0},{"$f":"IF($N$99=$N$54,$N$136,0)","v":0},{"$f":"IF($S$99=$S$54,$S$136,0)","v":0}]
[null,null,null,180,1500,null,null,null,5,150,null,null,null,6,90,null,null,null,7,150,null,null,null,{"$f":"IF($D$8=\"\",\"\",$D$8)","v":"Vormast"},{"$f":"IF($I$8=\"\",\"\",IF($I$8=$D$8,\"\",$I$8))","v":"Mittelmast"},{"$f":"IF($N$8=\"\",\"\",IF($N$8=$D$8,\"\",IF(N8=I8,\"\",$N$8)))","v":"Endmast I"},{"$f":"IF($S$8=\"\",\"\",IF($S$8=$D$8,\"\",IF(S8=I8,\"\",IF(S8=N8,\"\",$S$8))))","v":"Endmast II"},{"$f":"IF($D$54=\"\",\"\",IF($D$54=$D$8,\"\",IF($D$54=$I$8,\"\",IF($D$54=$N$8,\"\",IF($D$54=$S$8,\"\",$D$54)))))","v":"ddd"},{"$f":"IF($I$54=\"\",\"\",IF($I$54=$D$8,\"\",IF($I$54=$I$8,\"\",IF($I$54=$N$8,\"\",IF($I$54=$S$8,\"\",IF($I$54=$D$54,\"\",$I$54))))))","v":"dddd"},{"$f":"IF($N$54=\"\",\"\",IF($N$54=$D$8,\"\",IF($N$54=$I$8,\"\",IF($N$54=$N$8,\"\",IF($N$54=$S$8,\"\",IF($N$54=$D$54,\"\",IF($N$54=$I$54,\"\",$N$54)))))))","v":"erer"},{"$f":"IF($S$54=\"\",\"\",IF($S$54=$D$8,\"\",IF($S$54=$I$8,\"\",IF($S$54=$N$8,\"\",IF($S$54=$S$8,\"\",IF($S$54=$D$54,\"\",IF($S$54=$I$54,\"\",IF($S$54=$N$54,\"\",$S$54))))))))","v":""},{"$f":"IF($D$99=\"\",\"\",IF($D$99=$I$8,\"\",IF($D$99=$N$8,\"\",IF($D$99=$S$8,\"\",IF($D$99=$D$54,\"\",IF($D$99=$I$54,\"\",IF($D$99=$N$54,\"\",IF($D$99=$S$54,\"\",$D$99))))))))","v":""},{"$f":"IF($I$99=\"\",\"\",IF($I$99=$N$8,\"\",IF($I$99=$S$8,\"\",IF($I$99=$D$54,\"\",IF($I$99=$I$54,\"\",IF($I$99=$N$54,\"\",IF($I$99=$S$54,\"\",IF($I$99=$D$99,\"\",$I$99))))))))","v":""},{"$f":"IF($N$99=\"\",\"\",IF($N$99=$S$8,\"\",IF($N$99=$D$54,\"\",IF($N$99=$I$54,\"\",IF($N$99=$N$54,\"\",IF($N$99=$S$54,\"\",IF($N$99=$D$99,\"\",IF($N$99=$I$99,\"\",$N$99))))))))","v":""},{"$f":"IF($S$99=\"\",\"\",IF($S$99=$D$54,\"\",IF($S$99=$I$54,\"\",IF($S$99=$N$54,\"\",IF($S$99=$S$54,\"\",IF($S$99=$D$99,\"\",IF($S$99=$I$99,\"\",IF($S$99=$N$99,\"\",$S$99))))))))","v":""},{"$f":"IF($I$54=$D$8,$I$91,0)","v":0},{"$f":"IF($N$54=$I$8,$N$91,0)","v":0},{"$f":"IF($S$54=$N$8,$S$91,0)","v":0},{"$f":"IF($D$99=$S$8,$D$136,0)","v":0},{"$f":"IF($I$99=$D$54,$I$136,0)","v":0},{"$f":"IF($N$99=$I$54,$N$136,0)","v":0},{"$f":"IF($S$99=$N$54,$S$136,0)","v":0}]
[null,null,null,null,null,null,null,null,null,null,null,null,null,null,null,null,null,null,null,null,null,null,null,{"$f":"IF(X12=\"\",Y12,X12)","v":"Vormast"},"Mittelmast","Endmast I","Endmast II","ddd","dddd","erer","","","","",0,{"$f":"IF($N$54=$D$8,$N$91,0)","v":0},{"$f":"IF($S$54=$I$8,$S$91,0)","v":0},{"$f":"IF($D$99=$N$8,$D$136,0)","v":0},{"$f":"IF($I$99=$S$8,$I$136,0)","v":0},{"$f":"IF($N$99=$D$54,$N$136,0)","v":0},{"$f":"IF($S$99=$I$54,$S$136,0)","v":0}]
[null,null,null,null,null,null,null,null,null,null,null,null,null,null,null,null,null,null,null,null,null,null,null,{"$f":"IF(W14=X13,Y13,IF(X13=\"\",Y13,X13))","v":"Vormast"},{"$f":"IF(X14=Y13,Z13,IF(Y13=\"\",Z13,Y13))","v":"Mittelmast"},{"$f":"IF(Y14=Z13,AA13,IF(Z13=\"\",AA13,Z13))","v":"Endmast I"},{"$f":"IF(Z14=AA13,AB13,IF(AA13=\"\",AB13,AA13))","v":"Endmast II"},{"$f":"IF(AA14=AB13,AC13,IF(AB13=\"\",AC13,AB13))","v":"ddd"},{"$f":"IF(AB14=AC13,AD13,IF(AC13=\"\",AD13,AC13))","v":"dddd"},{"$f":"IF(AC14=AD13,AE13,IF(AD13=\"\",AE13,AD13))","v":"erer"},{"$f":"IF(AD14=AE13,AF13,IF(AE13=\"\",AF13,AE13))","v":""},{"$f":"IF(AE14=AF13,AG13,IF(AF13=\"\",AG13,AF13))","v":""},{"$f":"IF(AF14=AG13,AH13,IF(AG13=\"\",AH13,AG13))","v":""},{"$f":"IF(AG14=AH13,AI13,IF(AH13=\"\",AI13,AH13))","v":0},{"$f":"IF(AH14=AI13,0,IF(AI13=\"\",0,AI13))","v":0},{"$f":"IF($S$54=$D$8,$S$91,0)","v":0},{"$f":"IF($D$99=$I$8,$D$136,0)","v":0},{"$f":"IF($I$99=$N$8,$I$136,0)","v":0},{"$f":"IF($N$99=$S$8,$N$136,0)","v":0},{"$f":"IF($S$99=$D$54,$S$136,0)","v":0}]
[null,null,null,null,null,null,null,null,null,null,null,null,null,null,null,null,null,null,null,null,null,null,null,"Vormast","Mittelmast","Endmast I","Endmast II","ddd","dddd","erer","","",0,0,0,{"$f":"IF($D$99=$D$8,$D$136,0)","v":0},{"$f":"IF($I$99=$I$8,$I$136,0)","v":0},{"$f":"IF($N$99=$N$8,$N$136,0)","v":0},{"$f":"IF($S$99=$S$8,$S$136,0)","v":0}]
[null,null,null,null,null,null,null,null,null,null,null,null,null,null,null,null,null,null,null,null,null,null,null,"Vormast","Mittelmast","Endmast I","Endmast II","ddd","dddd","erer","",0,0,0,0,{"$f":"IF($I$99=$D$8,$I$136,0)","v":0},{"$f":"IF($N$99=$I$8,$N$136,0)","v":0},{"$f":"IF($S$99=$N$8,$S$136,0)","v":0}]
[null,null,null,null,null,null,null,null,null,null,null,null,null,null,null,null,null,null,null,null,null,null,null,"Vormast","Mittelmast","Endmast I","Endmast II","ddd","dddd","erer",0,0,0,0,0,{"$f":"IF($N$99=$D$8,$N$136,0)","v":0},{"$f":"IF($S$99=$I$8,$S$136,0)","v":0}]
[null,null,null,null,null,null,null,null,null,null,null,null,null,null,null,null,null,null,null,null,null,null,null,"Vormast","Mittelmast","Endmast I","Endmast II","ddd","dddd","erer",0,0,0,0,0,{"$f":"IF($S$99=$D$8,$S$136,0)","v":0}]
[null,null,null,null,null,null,null,null,null,null,null,null,null,null,null,null,null,null,null,null,null,null,null,"Vormast","Mittelmast","Endmast I","Endmast II","ddd","dddd","erer",0,0,0,0,0,{"$f":"SUM(AJ7:AJ18)","v":180},5,6,7,8,9,25,0,0,0,0,0]
[null,null,null,null,null,null,null,null,null,null,null,null,null,null,null,null,null,null,null,null,null,null,null,"Vormast","Mittelmast","Endmast I","Endmast II","ddd","dddd","erer",0,0,0,0,0]
[null,null,null,null,null,null,null,null,null,null,null,null,null,null,null,null,null,null,null,null,null,null,null,"Vormast","Mittelmast","Endmast I","Endmast II","ddd","dddd","erer",0,0,0,0,0]
[null,null,null,null,null,null,null,null,null,null,null,null,null,null,null,null,null,null,null,null,null,null,null,"Vormast","Mittelmast","Endmast I","Endmast II","ddd","dddd","erer",0,0,0,0,0]
[null,null,null,null,null,null,null,null,null,null,null,null,null,null,null,null,null,null,null,null,null,null,null,"Vormast","Mittelmast","Endmast I","Endmast II","ddd","dddd","erer",0,0,0,0,0]
[null,null,null,null,null,null,null,null,null,null,null,null,null,null,null,null,null,null,null,null,null,null,null,{"$f":"IF(X23=0,0,IF(X23=$D$8,$AJ$19,IF(X23=$I$8,$AK$19,IF(X23=$N$8,$AL$19,IF(X23=$S$8,$AM$19,IF(X23=$D$54,$AN$19,IF(X23=$I$54,$AO$19,IF(X23=$N$54,$AP$19,\"\"))))))))","v":180},{"$f":"IF(Y23=0,0,IF(Y23=$D$8,$AJ$19,IF(Y23=$I$8,$AK$19,IF(Y23=$N$8,$AL$19,IF(Y23=$S$8,$AM$19,IF(Y23=$D$54,$AN$19,IF(Y23=$I$54,$AO$19,IF(Y23=$N$54,$AP$19,\"\"))))))))","v":5},{"$f":"IF(Z23=0,0,IF(Z23=$D$8,$AJ$19,IF(Z23=$I$8,$AK$19,IF(Z23=$N$8,$AL$19,IF(Z23=$S$8,$AM$19,IF(Z23=$D$54,$AN$19,IF(Z23=$I$54,$AO$19,IF(Z23=$N$54,$AP$19,\"\"))))))))","v":6},{"$f":"IF(AA23=0,0,IF(AA23=$D$8,$AJ$19,IF(AA23=$I$8,$AK$19,IF(AA23=$N$8,$AL$19,IF(AA23=$S$8,$AM$19,IF(AA23=$D$54,$AN$19,IF(AA23=$I$54,$AO$19,IF(AA23=$N$54,$AP$19,\"\"))))))))","v":7},{"$f":"IF(AB23=0,0,IF(AB23=$I$8,$AK$19,IF(AB23=$N$8,$AL$19,IF(AB23=$S$8,$AM$19,IF(AB23=$D$54,$AN$19,IF(AB23=$I$54,$AO$19,IF(AB23=$N$54,$AP$19,IF(AB23=$S$54,$AQ$19,\"\"))))))))","v":8},{"$f":"IF(AC23=0,0,IF(AC23=$N$8,$AL$19,IF(AC23=$S$8,$AM$19,IF(AC23=$D$54,$AN$19,IF(AC23=$I$54,$AO$19,IF(AC23=$N$54,$AP$19,IF(AC23=$S$54,$AQ$19,IF(AC23=$D$99,$AR$19,\"\"))))))))","v":9},{"$f":"IF(AD23=0,0,IF(AD23=$S$8,$AM$19,IF(AD23=$D$54,$AN$19,IF(AD23=$I$54,$AO$19,IF(AD23=$N$54,$AP$19,IF(AD23=$S$54,$AQ$19,IF(AD23=$D$99,$AR$19,IF(AD23=$I$99,$AS$19,\"\"))))))))","v":25},{"$f":"IF(AE23=0,0,IF(AE23=$D$54,$AN$19,IF(AE23=$I$54,$AO$19,IF(AE23=$N$54,$AP$19,IF(AE23=$S$54,$AQ$19,IF(AE23=$D$99,$AR$19,IF(AE23=$I$99,$AS$19,IF(AE23=$N$99,$AT$19,\"\"))))))))","v":0},{"$f":"IF(AF23=0,0,IF(AF23=$I$54,$AO$19,IF(AF23=$N$54,$AP$19,IF(AF23=$S$54,$AQ$19,IF(AF23=$D$99,$AR$19,IF(AF23=$I$99,$AS$19,IF(AF23=$N$99,$AT$19,IF(AF23=$S$99,$AU$19,\"\"))))))))","v":0},{"$f":"IF(AG23=0,0,IF(AG23=$I$54,$AO$19,IF(AG23=$N$54,$AP$19,IF(AG23=$S$54,$AQ$19,IF(AG23=$D$99,$AR$19,IF(AG23=$I$99,$AS$19,IF(AG23=$N$99,$AT$19,IF(AG23=$S$99,$AU$19,\"\"))))))))","v":0},{"$f":"IF(AH23=0,0,IF(AH23=$I$54,$AO$19,IF(AH23=$N$54,$AP$19,IF(AH23=$S$54,$AQ$19,IF(AH23=$D$99,$AR$19,IF(AH23=$I$99,$AS$19,IF(AH23=$N$99,$AT$19,IF(AH23=$S$99,$AU$19,\"\"))))))))","v":0},{"$f":"IF(AI23=0,0,IF(AI23=$I$54,$AO$19,IF(AI23=$N$54,$AP$19,IF(AI23=$S$54,$AQ$19,IF(AI23=$D$99,$AR$19,IF(AI23=$I$99,$AS$19,IF(AI23=$N$99,$AT$19,IF(AI23=$S$99,$AU$19,\"\"))))))))","v":0}]
[null,null,null,null,null,null,null,null,null,null,null,null,null,null,null,null,null,null,null,null,null,null,null,{"$f":"IF(X23=0,0,IF(X23=$D$8,$AJ$37,IF(X23=$I$8,$AK$37,IF(X23=$N$8,$AL$37,IF(X23=$S$8,$AM$37,IF(X23=$D$54,$AN$37,IF(X23=$I$54,$AO$37,IF(X23=$N$54,$AP$37,\"\"))))))))","v":1500},{"$f":"IF(Y23=0,0,IF(Y23=$D$8,$AJ$37,IF(Y23=$I$8,$AK$37,IF(Y23=$N$8,$AL$37,IF(Y23=$S$8,$AM$37,IF(Y23=$D$54,$AN$37,IF(Y23=$I$54,$AO$37,IF(Y23=$N$54,$AP$37,\"\"))))))))","v":150},{"$f":"IF(Z23=0,0,IF(Z23=$D$8,$AJ$37,IF(Z23=$I$8,$AK$37,IF(Z23=$N$8,$AL$37,IF(Z23=$S$8,$AM$37,IF(Z23=$D$54,$AN$37,IF(Z23=$I$54,$AO$37,IF(Z23=$N$54,$AP$37,\"\"))))))))","v":90},{"$f":"IF(AA23=0,0,IF(AA23=$D$8,$AJ$37,IF(AA23=$I$8,$AK$37,IF(AA23=$N$8,$AL$37,IF(AA23=$S$8,$AM$37,IF(AA23=$D$54,$AN$37,IF(AA23=$I$54,$AO$37,IF(AA23=$N$54,$AP$37,\"\"))))))))","v":150},{"$f":"IF(AB23=0,0,IF(AB23=$I$8,$AK$37,IF(AB23=$N$8,$AL$37,IF(AB23=$S$8,$AM$37,IF(AB23=$D$54,$AN$37,IF(AB23=$I$54,$AO$37,IF(AB23=$N$54,$AP$37,IF(AB23=$S$54,$AQ$37,\"\"))))))))","v":250},{"$f":"IF(AC23=0,0,IF(AC23=$N$8,$AL$37,IF(AC23=$S$8,$AM$37,IF(AC23=$D$54,$AN$37,IF(AC23=$I$54,$AO$37,IF(AC23=$N$54,$AP$37,IF(AC23=$S$54,$AQ$37,IF(AC23=$D$99,$AR$37,\"\"))))))))","v":210},{"$f":"IF(AD23=0,0,IF(AD23=$S$8,$AM$37,IF(AD23=$D$54,$AN$37,IF(AD23=$I$54,$AO$37,IF(AD23=$N$54,$AP$37,IF(AD23=$S$54,$AQ$37,IF(AD23=$D$99,$AR$37,IF(AD23=$I$99,$AS$37,\"\"))))))))","v":590},{"$f":"IF(AE23=0,0,IF(AE23=$D$54,$AN$37,IF(AE23=$I$54,$AO$37,IF(AE23=$N$54,$AP$37,IF(AE23=$S$54,$AQ$37,IF(AE23=$D$99,$AR$37,IF(AE23=$I$99,$AS$37,IF(AE23=$N$99,$AT$37,\"\"))))))))","v":0},{"$f":"IF(AF23=0,0,IF(AF23=$I$54,$AO$37,IF(AF23=$N$54,$AP$37,IF(AF23=$S$54,$AQ$37,IF(AF23=$D$99,$AR$37,IF(AF23=$I$99,$AS$37,IF(AF23=$N$99,$AT$37,IF(AF23=$S$99,$AU$37,\"\"))))))))","v":0},{"$f":"IF(AG23=0,0,IF(AG23=$I$54,$AO$37,IF(AG23=$N$54,$AP$37,IF(AG23=$S$54,$AQ$37,IF(AG23=$D$99,$AR$37,IF(AG23=$I$99,$AS$37,IF(AG23=$N$99,$AT$37,IF(AG23=$S$99,$AU$37,\"\"))))))))","v":0},{"$f":"IF(AH23=0,0,IF(AH23=$I$54,$AO$37,IF(AH23=$N$54,$AP$37,IF(AH23=$S$54,$AQ$37,IF(AH23=$D$99,$AR$37,IF(AH23=$I$99,$AS$37,IF(AH23=$N$99,$AT$37,IF(AH23=$S$99,$AU$37,\"\"))))))))","v":0},{"$f":"IF(AI23=0,0,IF(AI23=$I$54,$AO$37,IF(AI23=$N$54,$AP$37,IF(AI23=$S$54,$AQ$37,IF(AI23=$D$99,$AR$37,IF(AI23=$I$99,$AS$37,IF(AI23=$N$99,$AT$37,IF(AI23=$S$99,$AU$37,\"\"))))))))","v":0},{"$f":"E45","v":1500},{"$f":"J45","v":150},{"$f":"O45","v":90},{"$f":"T45","v":150},{"$f":"E91","v":250},{"$f":"J91","v":210},{"$f":"O91","v":590},{"$f":"T91","v":0},{"$f":"E136","v":0},{"$f":"J136","v":0},{"$f":"O136","v":0},{"$f":"T136","v":0}]
[null,null,null,null,null,null,null,null,null,null,null,null,null,null,null,null,null,null,null,null,null,null,null,{"$f":"IF(X25=0,0,IF(Auswertung!$N$8=\"J\",(X25*$O$6)+X25,X25))","v":1500},{"$f":"IF(Y25=0,0,IF(Auswertung!$N$8=\"J\",(Y25*$O$6)+Y25,Y25))","v":150},{"$f":"IF(Z25=0,0,IF(Auswertung!$N$8=\"J\",(Z25*$O$6)+Z25,Z25))","v":90},{"$f":"IF(AA25=0,0,IF(Auswertung!$N$8=\"J\",(AA25*$O$6)+AA25,AA25))","v":150},{"$f":"IF(AB25=0,0,IF(Auswertung!$N$8=\"J\",(AB25*$O$6)+AB25,AB25))","v":250},{"$f":"IF(AC25=0,0,IF(Auswertung!$N$8=\"J\",(AC25*$O$6)+AC25,AC25))","v":210},{"$f":"IF(AD25=0,0,IF(Auswertung!$N$8=\"J\",(AD25*$O$6)+AD25,AD25))","v":590},{"$f":"IF(AE25=0,0,IF(Auswertung!$N$8=\"J\",(AE25*$O$6)+AE25,AE25))","v":0},{"$f":"IF(AF25=0,0,IF(Auswertung!$N$8=\"J\",(AF25*$O$6)+AF25,AF25))","v":0},{"$f":"IF(AG25=0,0,IF(Auswertung!$N$8=\"J\",(AG25*$O$6)+AG25,AG25))","v":0},{"$f":"IF(AH25=0,0,IF(Auswertung!$N$8=\"J\",(AH25*$O$6)+AH25,AH25))","v":0},{"$f":"IF(AI25=0,0,IF(Auswertung!$N$8=\"J\",(AI25*$O$6)+AI25,AI25))","v":0},{"$f":"IF($I$8=$D$8,$J$45,0)","v":0},{"$f":"IF($N$8=$I$8,$O$45,0)","v":0},{"$f":"IF($S$8=$N$8,$T$45,0)","v":0},{"$f":"IF($D$54=$S$8,$E$91,0)","v":0},{"$f":"IF($I$54=$D$54,$J$91,0)","v":0},{"$f":"IF($N$54=$I$54,$O$91,0)","v":0},{"$f":"IF($S$54=$N$54,$T$91,0)","v":0},{"$f":"IF($D$99=$S$54,$E$136,0)","v":0},{"$f":"IF($I$99=$D$99,$J$136,0)","v":0},{"$f":"IF($N$99=$I$99,$O$136,0)","v":0},{"$f":"IF($S$99=$N$99,$T$136,0)","v":0}]
[null,null,null,null,null,null,null,null,null,null,null,null,null,null,null,null,null,null,null,null,null,null,null,null,null,null,null,null,null,null,null,null,null,null,null,{"$f":"IF($N$8=$D$8,$O$45,0)","v":0},{"$f":"IF($S$8=$I$8,$T$45,0)","v":0},{"$f":"IF($D$54=$N$8,$E$91,0)","v":0},{"$f":"IF($I$54=$S$8,$J$91,0)","v":0},{"$f":"IF($N$54=$D$54,$O$91,0)","v":0},{"$f":"IF($S$54=$I$54,$T$91,0)","v":0},{"$f":"IF($D$99=$N$54,$E$136,0)","v":0},{"$f":"IF($I$99=$S$54,$J$136,0)","v":0},{"$f":"IF($N$99=$D$99,$O$136,0)","v":0},{"$f":"IF($S$99=$I$99,$T$136,0)","v":0}]
[null,"By Heinrich-Bernhard Münzebrock Version 2019",null,null,null,null,null,null,null,null,null,null,null,null,null,null,null,null,null,null,null,null,null,{"$f":"IF(X24=0,\"\",X23)","v":"Vormast"},"Mittelmast","Endmast I","Endmast II","ddd","dddd","erer","","","","","",{"$f":"IF($S$8=$D$8,$T$45,0)","v":0},{"$f":"IF($D$54=$I$8,$E$91,0)","v":0},{"$f":"IF($I$54=$N$8,$J$91,0)","v":0},{"$f":"IF($N$54=$S$8,$O$91,0)","v":0},{"$f":"IF($S$54=$D$54,$T$91,0)","v":0},{"$f":"IF($D$99=$I$54,$E$136,0)","v":0},{"$f":"IF($I$99=$N$54,$J$136,0)","v":0},{"$f":"IF($N$99=$S$54,$O$136,0)","v":0},{"$f":"IF($S$99=$D$99,$T$136,0)","v":0}]
[null,null,null,null,null,null,null,null,null,null,null,null,null,null,null,null,null,null,null,null,null,null,null,{"$f":"IF(X28=\"\",Y28,X28)","v":"Vormast"},"Mittelmast","Endmast I","Endmast II","ddd","dddd","erer","","","","",{"$f":"IF(AI28=\"\",\"\",AI28)","v":""},{"$f":"IF($D$54=$D$8,$E$91,0)","v":0},{"$f":"IF($I$54=$I$8,$J$91,0)","v":0},{"$f":"IF($N$54=$N$8,$O$91,0)","v":0},{"$f":"IF($S$54=$S$8,$T$91,0)","v":0},{"$f":"IF($D$99=$D$54,$E$136,0)","v":0},{"$f":"IF($I$99=$I$54,$J$136,0)","v":0},{"$f":"IF($N$99=$N$54,$O$136,0)","v":0},{"$f":"IF($S$99=$S$54,$T$136,0)","v":0}]
[null,null,null,null,null,null,null,null,null,null,null,null,null,null,null,null,null,null,null,null,null,null,null,{"$f":"IF(W30=X29,Y29,IF(X29=\"\",Y29,X29))","v":"Vormast"},{"$f":"IF(X30=Y29,Z29,IF(Y29=\"\",Z29,Y29))","v":"Mittelmast"},{"$f":"IF(Y30=Z29,AA29,IF(Z29=\"\",AA29,Z29))","v":"Endmast I"},{"$f":"IF(Z30=AA29,AB29,IF(AA29=\"\",AB29,AA29))","v":"Endmast II"},{"$f":"IF(AA30=AB29,AC29,IF(AB29=\"\",AC29,AB29))","v":"ddd"},{"$f":"IF(AB30=AC29,AD29,IF(AC29=\"\",AD29,AC29))","v":"dddd"},{"$f":"IF(AC30=AD29,AE29,IF(AD29=\"\",AE29,AD29))","v":"erer"},{"$f":"IF(AD30=AE29,AF29,IF(AE29=\"\",AF29,AE29))","v":""},{"$f":"IF(AE30=AF29,AG29,IF(AF29=\"\",AG29,AF29))","v":""},{"$f":"IF(AF30=AG29,AH29,IF(AG29=\"\",AH29,AG29))","v":""},{"$f":"IF(AG30=AH29,AI29,IF(AH29=\"\",AI29,AH29))","v":""},{"$f":"IF(AH30=AI29,\"\",IF(AI29=\"\",\"\",AI29))","v":""},{"$f":"IF($I$54=$D$8,$J$91,0)","v":0},{"$f":"IF($N$54=$I$8,$O$91,0)","v":0},{"$f":"IF($S$54=$N$8,$T$91,0)","v":0},{"$f":"IF($D$99=$S$8,$E$136,0)","v":0},{"$f":"IF($I$99=$D$54,$J$136,0)","v":0},{"$f":"IF($N$99=$I$54,$O$136,0)","v":0},{"$f":"IF($S$99=$N$54,$T$136,0)","v":0}]
[null,null,null,null,null,null,null,null,null,null,null,null,null,null,null,null,null,null,null,null,null,null,null,"Vormast","Mittelmast","Endmast I","Endmast II","ddd","dddd","erer","","","","","",{"$f":"IF($N$54=$D$8,$O$91,0)","v":0},{"$f":"IF($S$54=$I$8,$T$91,0)","v":0},{"$f":"IF($D$99=$N$8,$E$136,0)","v":0},{"$f":"IF($I$99=$S$8,$J$136,0)","v":0},{"$f":"IF($N$99=$D$54,$O$136,0)","v":0},{"$f":"IF($S$99=$I$54,$T$136,0)","v":0}]
[null,null,null,null,null,null,null,null,null,null,null,null,null,null,null,null,null,null,null,null,null,null,null,"Vormast","Mittelmast","Endmast I","Endmast II","ddd","dddd","erer","","","","","",{"$f":"IF($S$54=$D$8,$T$91,0)","v":0},{"$f":"IF($D$99=$I$8,$E$136,0)","v":0},{"$f":"IF($I$99=$N$8,$J$136,0)","v":0},{"$f":"IF($N$99=$S$8,$O$136,0)","v":0},{"$f":"IF($S$99=$D$54,$T$136,0)","v":0}]
[null,null,null,null,null,null,null,null,null,null,null,null,null,null,null,null,null,null,null,null,null,null,null,"Vormast","Mittelmast","Endmast I","Endmast II","ddd","dddd","erer","","","","","",{"$f":"IF($D$99=$D$8,$E$136,0)","v":0},{"$f":"IF($I$99=$I$8,$J$136,0)","v":0},{"$f":"IF($N$99=$N$8,$O$136,0)","v":0},{"$f":"IF($S$99=$S$8,$T$136,0)","v":0}]
[null,null,null,null,null,null,null,null,null,null,null,null,null,null,null,null,null,null,null,null,null,null,null,"Vormast","Mittelmast","Endmast I","Endmast II","ddd","dddd","erer","","","","","",{"$f":"IF($I$99=$D$8,$J$136,0)","v":0},{"$f":"IF($N$99=$I$8,$O$136,0)","v":0},{"$f":"IF($S$99=$N$8,$T$136,0)","v":0}]
[null,null,null,null,null,null,null,null,null,null,null,null,null,null,null,null,null,null,null,null,null,null,null,"Vormast","Mittelmast","Endmast I","Endmast II","ddd","dddd","erer","","","","","",{"$f":"IF($N$99=$D$8,$O$136,0)","v":0},{"$f":"IF($S$99=$I$8,$T$136,0)","v":0}]
[null,null,null,null,null,null,null,null,null,null,null,null,null,null,null,null,null,null,null,null,null,null,null,"Vormast","Mittelmast","Endmast I","Endmast II","ddd","dddd","erer","","","","","",{"$f":"IF($S$99=$D$8,$T$136,0)","v":0}]
[null,null,null,null,null,null,null,null,null,null,null,null,null,null,null,null,null,null,null,null,null,null,null,"Vormast","Mittelmast","Endmast I","Endmast II","ddd","dddd","erer","","","","","",{"$f":"SUM(AJ25:AJ36)","v":1500},150,90,150,250,210,590,0,0,0,0,0]
[null,null,null,null,null,null,null,null,null,null,null,null,null,null,null,null,null,null,null,null,null,null,null,"Vormast","Mittelmast","Endmast I","Endmast II","ddd","dddd","erer","","","","",""]
[null,null,null,null,null,null,null,null,null,null,null,null,null,null,null,null,null,null,null,null,null,null,null,"Vormast","Mittelmast","Endmast I","Endmast II","ddd","dddd","erer","","","","",""]
[null,null,null,null,null,null,null,null,null,null,null,null,null,null,null,null,null,null,null,null,null,null,null,"Vormast","Mittelmast","Endmast I","Endmast II","ddd","dddd","erer","","","","",""]
[null,null,null,null,null,null,null,null,null,null,null,null,null,null,null,null,null,null,null,null,null,null,null,"Vormast","Mittelmast","Endmast I","Endmast II","ddd","dddd","erer","","","","",""]
[]
[]
[]
[null,null,"Gesamt:",{"$f":"SUM(D12:D44)","v":180},{"$f":"IF(E9=\"\",SUM(E12:E44),(E9*D45))","v":1500},null,null,"Gesamt:",{"$f":"SUM(I12:I44)","v":5},{"$f":"IF(J9=\"\",SUM(J12:J44),(J9*I45))","v":150},null,null,"Gesamt:",{"$f":"SUM(N12:N44)","v":6},{"$f":"IF(O9=\"\",SUM(O12:O44),(O9*N45))","v":90},null,null,"Gesamt:",{"$f":"SUM(S12:S44)","v":7},{"$f":"IF(T9=\"\",SUM(T12:T44),(T9*S45))","v":150},null,null,null,{"$f":"IF(X24=0,\"\",X24)","v":180},5,6,7,8,9,25,"","","","",""]
[null,null,null,null,null,null,null,null,null,null,null,null,null,null,null,null,null,null,null,null,null,null,null,{"$f":"IF(X45=\"\",Y45,X45)","v":180},5,6,7,8,9,25,"","","","",{"$f":"IF(AI45=\"\",\"\",AI45)","v":""}]
[null,null,null,null,null,null,null,null,null,null,null,null,null,null,null,null,null,null,"          Strg+d=Seite drucken",null,null,null,null,{"$f":"IF(W47=X46,Y46,IF(X46=\"\",Y46,X46))","v":180},{"$f":"IF(X47=Y46,Z46,IF(Y46=\"\",Z46,Y46))","v":5},{"$f":"IF(Y47=Z46,AA46,IF(Z46=\"\",AA46,Z46))","v":6},{"$f":"IF(Z47=AA46,AB46,IF(AA46=\"\",AB46,AA46))","v":7},{"$f":"IF(AA47=AB46,AC46,IF(AB46=\"\",AC46,AB46))","v":8},{"$f":"IF(AB47=AC46,AD46,IF(AC46=\"\",AD46,AC46))","v":9},{"$f":"IF(AC47=AD46,AE46,IF(AD46=\"\",AE46,AD46))","v":25},{"$f":"IF(AD47=AE46,AF46,IF(AE46=\"\",AF46,AE46))","v":""},{"$f":"IF(AE47=AF46,AG46,IF(AF46=\"\",AG46,AF46))","v":""},{"$f":"IF(AF47=AG46,AH46,IF(AG46=\"\",AH46,AG46))","v":""},{"$f":"IF(AG47=AH46,AI46,IF(AH46=\"\",AI46,AH46))","v":""},{"$f":"IF(AH47=AI46,\"\",IF(AI46=\"\",\"\",AI46))","v":""}]
[null,null,"Auswertung Schweinemast / Erfassungsbogen Futter",null,null,null,null,null,null,null,null,null,"Name:",{"$f":"Tiere_Zu_Abgang!J6","v":""},null,null,null,null,"          Strg+c=Eingaben löschen",null,null,null,null,180,5,6,7,8,9,25,"","","","",""]
[null,null,null,null,null,null,null,null,null,{"$f":"TODAY()","v":"2020-09-01"},null,null,"Stall/Ställe/Partie Nr.:",null,{"$f":"Tiere_Zu_Abgang!Q5","v":1},null,null,null,null,null,null,null,null,180,5,6,7,8,9,25,"","","","",""]
[null,null,"Lieferant:",null,null,null,null,null,null,null,null,null,"Silo Nr.:",null,null,null,null,null,"Blatt 2",null,null,null,null,180,5,6,7,8,9,25,"","","","",""]
[null,null,{"$f":"IF(E58=\"\",\"\",\"Achtung: bitte nur Nettopreise eingeben = ohne Steuer\")","v":"Achtung: bitte nur Nettopreise eingeben = ohne Steuer"},null,null,null,null,null,null,{"$f":"IF(O6=\"\",\"bitte den Steuersatz für Futtereinkauf eingeben!!\",\"\")","v":""},null,null,null,null,null,null,null,null,null,null,null,null,null,180,5,6,7,8,9,25,"","","","",""]
[null,null,"* = Bitte nur angeben, wenn der Preis für den gesamten Durchgang gültig ist! - hierbei entfällt die Eingabe des Gesampreises!.",null,null,null,null,null,null,null,null,null,null,null,null,null,null,null,null,null,null,null,null,180,5,6,7,8,9,25,"","","","",""]
[null,null,null,null,null,null,null,null,null,null,null,null,null,null,null,null,null,null,null,null,null,null,null,180,5,6,7,8,9,25,"","","","",""]
[null,null,"Futtersorte","ddd",null,null,null,"Futtersorte","dddd",null,null,null,"Futtersorte","erer",null,null,null,"Futtersorte",null,null,null,null,null,180,5,6,7,8,9,25,"","","","",""]
[null,null,"*Kontraktpreis?/dt:",null,null,null,null,"*Kontraktpreis?/dt:",null,null,null,null,"*Kontraktpreis?/dt:",null,null,null,null,"*Kontraktpreis?/dt:",null,null,null,null,null,180,5,6,7,8,9,25,"","","","",""]
[null,null,{"$f":"IF(E58=\"\",\"\",\"Achtung: bitte Nettopreise eingeben = o Steuer\")","v":"Achtung: bitte Nettopreise eingeben = o Steuer"},null,null,null,null,{"$f":"IF(J58=\"\",\"\",\"Achtung: bitte Nettopreise eingeben = o Steuer\")","v":"Achtung: bitte Nettopreise eingeben = o Steuer"},null,null,null,null,{"$f":"IF(O58=\"\",\"\",\"Achtung: bitte Nettopreise eingeben = o Steuer\")","v":"Achtung: bitte Nettopreise eingeben = o Steuer"},null,null,null,null,{"$f":"IF(T58=\"\",\"\",\"Achtung: bitte Nettopreise eingeben = o Steuer\")","v":""},null,null,null,null,null,180,5,6,7,8,9,25,"","","","",""]
[null,null,"Lieferdatum","Menge/dt","Gesamtpreis",null,null,"Lieferdatum","Menge/dt","Gesamtpreis",null,null,"Lieferdatum","Menge/dt","Gesamtpreis",null,null,"Lieferdatum","Menge/dt","Gesamtpreis",null,null,null,180,5,6,7,8,9,25,"","","","",""]
[null,null,null,8,250,null,null,null,9,210,null,null,null,10,240,null,null,null,null,null,null,null,null,180,5,6,7,8,9,25,"","","","",""]
[null,null,null,null,null,null,null,null,null,null,null,null,null,15,350,null,null,null,null,null,null,null,null,180,5,6,7,8,9,25,"","","","",""]
[null,null,null,null,null,null,null,null,null,null,null,null,null,null,null,null,null,null,null,null,null,null,null,180,5,6,7,8,9,25,"","","","",""]
[null,null,null,null,null,null,null,null,null,null,null,null,null,null,null,null,null,null,null,null,null,null,null,180,5,6,7,8,9,25,"","","","","",{"$f":"SUM(X61:AI61)","v":240}]
[]
[]
[]
[]
[null,null,null,null,null,null,null,null,null,null,null,null,null,null,null,null,null,null,null,null,null,null,null,{"$f":"IF(X24=0,\"\",X26)","v":1500},150,90,150,250,210,590,"","","","",""]
[null,null,null,null,null,null,null,null,null,null,null,null,null,null,null,null,null,null,null,null,null,null,null,{"$f":"IF(X66=\"\",Y66,X66)","v":1500},150,90,150,250,210,590,"","","","",{"$f":"IF(AI66=\"\",\"\",AI66)","v":""}]
[null,null,null,null,null,null,null,null,null,null,null,null,null,null,null,null,null,null,null,null,null,null,null,{"$f":"IF(W68=X67,Y67,IF(X67=\"\",Y67,X67))","v":1500},{"$f":"IF(X68=Y67,Z67,IF(Y67=\"\",Z67,Y67))","v":150},{"$f":"IF(Y68=Z67,AA67,IF(Z67=\"\",AA67,Z67))","v":90},{"$f":"IF(Z68=AA67,AB67,IF(AA67=\"\",AB67,AA67))","v":150},{"$f":"IF(AA68=AB67,AC67,IF(AB67=\"\",AC67,AB67))","v":250},{"$f":"IF(AB68=AC67,AD67,IF(AC67=\"\",AD67,AC67))","v":210},{"$f":"IF(AC68=AD67,AE67,IF(AD67=\"\",AE67,AD67))","v":590},{"$f":"IF(AD68=AE67,AF67,IF(AE67=\"\",AF67,AE67))","v":""},{"$f":"IF(AE68=AF67,AG67,IF(AF67=\"\",AG67,AF67))","v":""},{"$f":"IF(AF68=AG67,AH67,IF(AG67=\"\",AH67,AG67))","v":""},{"$f":"IF(AG68=AH67,AI67,IF(AH67=\"\",AI67,AH67))","v":""},{"$f":"IF(AH68=AI67,\"\",IF(AI67=\"\",\"\",AI67))","v":""}]
[null,null,null,null,null,null,null,null,null,null,null,null,null,null,null,null,null,null,null,null,null,null,null,1500,150,90,150,250,210,590,"","","","",""]
[null,null,null,null,null,null,null,null,null,null,null,null,null,null,null,null,null,null,null,null,null,null,null,1500,150,90,150,250,210,590,"","","","",""]
[null,null,null,null,null,null,null,null,null,null,null,null,null,null,null,null,null,null,null,null,null,null,null,1500,150,90,150,250,210,590,"","","","",""]
[null,null,null,null,null,null,null,null,null,null,null,null,null,null,null,null,null,null,null,null,null,null,null,1500,150,90,150,250,210,590,"","","","",""]
[null,null,null,null,null,null,null,null,null,null,null,null,null,null,null,null,null,null,null,null,null,null,null,1500,150,90,150,250,210,590,"","","","",""]
[null,"By Heinrich-Bernhard Münzebrock Version 2019",null,null,null,null,null,null,null,null,null,null,null,null,null,null,null,null,null,null,null,null,null,1500,150,90,150,250,210,590,"","","","",""]
[null,null,null,null,null,null,null,null,null,null,null,null,null,null,null,null,null,null,null,null,null,null,null,1500,150,90,150,250,210,590,"","","","",""]
[null,null,null,null,null,null,null,null,null,null,null,null,null,null,null,null,null,null,null,null,null,null,null,1500,150,90,150,250,210,590,"","","","",""]
[null,null,null,null,null,null,null,null,null,null,null,null,null,null,null,null,null,null,null,null,null,null,null,1500,150,90,150,250,210,590,"","","","",""]
[null,null,null,null,null,null,null,null,null,null,null,null,null,null,null,null,null,null,null,null,null,null,null,1500,150,90,150,250,210,590,"","","","",""]
[null,null,null,null,null,null,null,null,null,null,null,null,null,null,null,null,null,null,null,null,null,null,null,1500,150,90,150,250,210,590,"","","","",""]
[null,null,null,null,null,null,null,null,null,null,null,null,null,null,null,null,null,null,null,null,null,null,null,1500,150,90,150,250,210,590,"","","","",""]
[null,null,null,null,null,null,null,null,null,null,null,null,null,null,null,null,null,null,null,null,null,null,null,1500,150,90,150,250,210,590,"","","","","",{"$f":"SUM(X81:AI81)","v":2940}]
[]
[]
[]
[]
[]
[]
[]
[]
[]
[null,null,"Gesamt:",{"$f":"SUM(D58:D90)","v":8},{"$f":"IF(E55=\"\",SUM(E58:E90),(D91*E55))","v":250},null,null,"Gesamt:",{"$f":"SUM(I58:I90)","v":9},{"$f":"IF(J55=\"\",SUM(J58:J90),(I91*J55))","v":210},null,null,"Gesamt:",{"$f":"SUM(N58:N90)","v":25},{"$f":"IF(O55=\"\",SUM(O58:O90),(N91*O55))","v":590},null,null,"Gesamt:",{"$f":"SUM(S58:S90)","v":0},{"$f":"IF(T55=\"\",SUM(T58:T90),(S91*T55))","v":0}]
[]
[null,null,"Auswertung Schweinemast / Erfassungsbogen Futter",null,null,null,null,null,null,null,null,null,"Name:",{"$f":"N3","v":""},null,null,null,null,"          Strg+c=Eingaben löschen"]
[null,null,null,null,null,null,null,null,null,{"$f":"TODAY()","v":"2020-09-01"},null,null,"Stall/Ställe/Partie Nr.:",null,{"$f":"O4","v":1}]
[null,null,"Lieferant:",null,null,null,null,null,null,null,null,null,"Silo Nr.:",null,null,null,null,null,"Blatt 3"]
[null,null,{"$f":"IF(E103=\"\",\"\",\"Achtung: bitte nur Nettopreise eingeben = ohne Steuer\")","v":""},null,null,null,null,null,null,{"$f":"IF(O6=\"\",\"bitte den Steuersatz für Futtereinkauf eingeben!!\",\"\")","v":""}]
[null,null,"* = Bitte nur angeben, wenn der Preis für den gesamten Durchgang gültig ist! - hierbei entfällt die Eingabe des Gesampreises!."]
[]
[null,null,"Futtersorte",null,null,null,null,"Futtersorte",null,null,null,null,"Futtersorte",null,null,null,null,"Futtersorte"]
[null,null,"*Kontraktpreis?/dt:",null,null,null,null,"*Kontraktpreis?/dt:",null,null,null,null,"*Kontraktpreis?/dt:",null,null,null,null,"*Kontraktpreis?/dt:"]
[null,null,{"$f":"IF(E103=\"\",\"\",\"Achtung: bitte Nettopreise eingeben = o Steuer\")","v":""},null,null,null,null,{"$f":"IF(J103=\"\",\"\",\"Achtung: bitte Nettopreise eingeben = o Steuer\")","v":""},null,null,null,null,{"$f":"IF(O103=\"\",\"\",\"Achtung: bitte Nettopreise eingeben = o Steuer\")","v":""},null,null,null,null,"   Zusätze wie Molke, Quellwasser usw."]
[null,null,"Lieferdatum","Menge/dt","Gesamtpreis",null,null,"Lieferdatum","Menge/dt","Gesamtpreis",null,null,"Lieferdatum","Menge/dt","Gesamtpreis",null,null,"Lieferdatum","Menge/dt","Gesamtpreis"]
[]
[]
[]
[]
[]
[]
[]
[]
[]
[]
[]
[]
[]
[]
[]
[]
[null,"By Heinrich-Bernhard Münzebrock Version 2019"]
[]
[]
[]
[]
[]
[]
[]
[]
[]
[]
[]
[]
[]
[]
[]
[]
[null,null,"Gesamt:",{"$f":"SUM(D103:D135)","v":0},{"$f":"IF(E100=\"\",SUM(E103:E135),(D136*E100))","v":0},null,null,"Gesamt:",{"$f":"SUM(I103:I135)","v":0},{"$f":"IF(J100=\"\",SUM(J103:J135),(I136*J100))","v":0},null,null,"Gesamt:",{"$f":"SUM(N103:N135)","v":0},{"$f":"IF(O100=\"\",SUM(O103:O135),(N136*O100))","v":0},null,null,"Gesamt:",{"$f":"SUM(S103:S135)","v":0},{"$f":"IF(T100=\"\",SUM(T103:T135),(S136*T100))","v":0}]

{"sheet":"Kosten","index":3,"n_rows":62,"n_cols":44,"rows_kept":62,"cut":false,"hidden":false,"merged":[[25,7,26,7],[6,11,8,11],[8,2,8,3],[8,7,8,8],[9,6,9,8],[10,2,11,2]]}
[]
[null,null,null,null,null,null,null,null,null,null,null,null,null,null,null,null,null,null,null,null,null,null,null,null,null,null,null,null,null,null,null,null,null,null,null,null,null,null,null,null,null,null,null,"B"]
[null,null,"Auswertung Schweinemast / Erfassungsbogen Kosten"]
[null,null,null,null,null,null,null,{"$f":"TODAY()","v":"2020-09-01"}]
[null,null,"Name:",{"$f":"Tiere_Zu_Abgang!J6","v":""}]
[null,null,"Stall/Ställe/Partie Nr.:",{"$f":"Tiere_Zu_Abgang!Q5","v":1},null,null,null,null,"Strg+o=Eingaben löschen"]
[null,null,"Stallplätze:",{"$f":"Auswertung!N5","v":0},null,null,null,"         EK – Steuersatz: ",null,null,null,{"$f":"IF(I7=\"\",\"<--- bitte an-geben\",\"\")","v":"<--- bitte an-geben"}]
[]
[null,null,"Variable Kosten",null,null,null,null,"Feste  Kosten / Jahr"]
[null,null,{"$f":"\"Achtung: bitte nur Nettopreise eingeben = ohne Mwst\"","v":"Achtung: bitte nur Nettopreise eingeben = ohne Mwst"},null,609.48,null,"  * = Berechnung erfolgt ohne Steuer",null,null,null,null,null,null,null,null,null,"Var. Kostenerrechnung",null,null,null,null,null,null,null,null,"Feste Kostenberechnung"]
[null,"*","Tierarzt u. Medikamente: ",500,null,null,"*","Pacht:",500,null,null,null,null,null,{"$f":"IF($D$21>0,$C$11,\"\")","v":"Tierarzt u. Medikamente: "},{"$f":"IF($D$29>0,$C$23,\"\")","v":"Heizung:"},{"$f":"IF($D$36>0,$C$31,\"\")","v":""},{"$f":"IF($D$44>0,$C$40,\"\")","v":""},{"$f":"IF($D$50>0,$C$46,\"\")","v":""},{"$f":"IF($D$56>0,$C$52,\"\")","v":""},{"$f":"IF($D$61>0,$C$58,\"\")","v":""},null,{"$f":"IF($I$14>0,$H$11,\"\")","v":"Pacht:"},{"$f":"IF($I$19>0,$H$16,\"\")","v":""},{"$f":"IF($I$24>0,$H$21,\"\")","v":"Gülleabgabe"},{"$f":"IF($I$29>0,$H$26,\"\")","v":""},{"$f":"IF($I$36>0,$H$31,\"\")","v":""},{"$f":"IF($I$44>0,$H$40,\"\")","v":""},{"$f":"IF($I$50>0,$H$46,\"\")","v":""},{"$f":"IF($I$56>0,$H$52,\"\")","v":""},{"$f":"IF($I$61>0,$H$58,\"\")","v":""},null,{"$f":"IF($I$14>0,$H$11,\"\")","v":"Pacht:"},{"$f":"IF($I$19>0,$H$16,\"\")","v":""},{"$f":"IF($I$24>0,$H$31,\"\")","v":"Filteranlage:"},{"$f":"IF($I$29>0,$H$21,\"\")","v":""},{"$f":"IF($I$36>0,$H$26,\"\")","v":""},{"$f":"IF($I$44>0,$H$40,\"\")","v":""},{"$f":"IF($I$50>0,$H$46,\"\")","v":""},{"$f":"IF($I$56>0,$H$52,\"\")","v":""},{"$f":"IF($I$61>0,$H$58,\"\")","v":""}]
[null,null,null,null,null,null,null,null,null,null,null,null,null,null,{"$f":"IF(O11=\"\",P11,O11)","v":"Tierarzt u. Medikamente: "},{"$f":"IF(P11=\"\",Q11,IF(O12=P11,Q11,P11))","v":"Heizung:"},"","","","",0,null,{"$f":"IF(W11=\"\",X11,W11)","v":"Pacht:"},"Gülleabgabe","Gülleabgabe","","","","","",0]
[null,null,null,null,null,null,null,null,null,null,null,null,null,null,{"$f":"IF(O12=P12,P12,IF(O12=\"\",P12,O12))","v":"Tierarzt u. Medikamente: "},"Heizung:","","",{"$f":"IF(R13=S12,T12,IF(S12=\"\",T12,S12))","v":""},0,0,null,{"$f":"IF(W12=X12,X12,IF(W12=\"\",X12,W12))","v":"Pacht:"},{"$f":"IF(W13=X12,Y12,IF(X12=\"\",Y12,X12))","v":"Gülleabgabe"},{"$f":"IF(X13=Y12,Z12,IF(Y12=\"\",Z12,Y12))","v":""},{"$f":"IF(Y13=Z12,AA12,IF(Z12=\"\",AA12,Z12))","v":""},{"$f":"IF(Z13=AA12,AB12,IF(AA12=\"\",AB12,AA12))","v":""},{"$f":"IF(AA13=AB12,AC12,IF(AB12=\"\",AC12,AB12))","v":""},{"$f":"IF(AB13=AC12,AD12,IF(AC12=\"\",AD12,AC12))","v":""},{"$f":"IF(AC13=AD12,AE12,IF(AD12=\"\",AE12,AD12))","v":0},{"$f":"IF(AD13=AE12,AF12,IF(AE12=\"\",AF12,AE12))","v":0}]
[null,null,null,null,null,null,null,{"$f":"IF(Auswertung!$N$8<>\"J\",\"Gesamt:\",IF(G11<>\"*\",\"Gesamt incl. Mwst:\",\"Gesamt:\"))","v":"Gesamt:"},{"$f":"IF(G11=\"*\",SUM(I11:I13),IF(Auswertung!$N$8<>\"J\",SUM(I11:I13),(SUM(I11:I13)*$I$7)+SUM(I11:I13)))","v":500},null,null,null,null,null,"Tierarzt u. Medikamente: ","Heizung:","","",0,0,0,null,"Pacht:","Gülleabgabe","","","","",0,0,0]
[null,null,null,null,{"$f":"SUM(E10:E14)","v":609.48},null,null,null,null,null,{"$f":"SUM(K10:K14)","v":0},null,null,null,"Tierarzt u. Medikamente: ","Heizung:","",0,0,0,0,null,"Pacht:","Gülleabgabe","","","",0,0,0,0]
[null,null,null,null,null,null,"*","Futterlohn:",null,null,null,null,null,null,"Tierarzt u. Medikamente: ","Heizung:",0,0,0,0,0,null,"Pacht:","Gülleabgabe","","",0,0,0,0,0]
[null,null,null,null,null,null,null,null,null,null,null,null,null,null,"Tierarzt u. Medikamente: ","Heizung:",0,0,0,0,0,null,"Pacht:","Gülleabgabe","",0,0,0,0,0,0]
[null,null,null,null,null,null,null,null,null,null,null,null,null,null,"Tierarzt u. Medikamente: ","Heizung:",0,0,0,0,0,null,"Pacht:","Gülleabgabe",0,0,0,0,0,0,0]
[null,null,null,null,null,null,null,{"$f":"IF(Auswertung!$N$8<>\"J\",\"Gesamt:\",IF(G16<>\"*\",\"Gesamt incl. Mwst:\",\"Gesamt:\"))","v":"Gesamt:"},{"$f":"IF(G16=\"*\",SUM(I16:I18),IF(Auswertung!$N$8<>\"J\",SUM(I16:I18),(SUM(I16:I18)*$I$7)+SUM(I16:I18)))","v":0},null,null,null,null,null,{"$f":"IF(O18=$C$11,$D21,IF(O18=$C$23,$D$29,IF(O18=$C$31,$D$36,IF(O18=$C$40,$D$44,IF(O18=$C$46,$D$50,IF(O18=$C$52,$D$56,IF(O18=$C$58,$D$61,\"\")))))))","v":500},150,0,0,0,0,0,null,"Pacht:","Gülleabgabe",0,0,0,0,0,0,0]
[null,null,null,null,null,null,null,null,null,null,null,null,null,null,null,null,null,null,null,null,null,null,"Pacht:","Gülleabgabe",0,0,0,0,0,0,0]
[null,null,{"$f":"IF(Auswertung!$N$8=\"J\",\"Gesamt incl. Mwst:\",\"Gesamt netto\")","v":"Gesamt netto"},{"$f":"IF(B11=\"*\",SUM(D11:D20),IF(Auswertung!$N$8=\"J\",(SUM(D11:D20)*$I$7)+SUM(D11:D20),SUM(D11:D20)))","v":500},null,null,null,"Gülleabgabe",100,null,null,null,null,null,null,null,null,null,null,null,null,null,"Pacht:","Gülleabgabe",0,0,0,0,0,0,0]
[null,null,null,null,240,null,null,null,null,null,null,null,null,null,null,null,null,null,null,null,null,null,{"$f":"IF(W21=$H$11,$I14,IF(W21=$H$16,$I$19,IF(W21=$H$21,$I$24,IF(W21=$H$26,$I$29,IF(W21=$H$31,$I$36,IF(W21=$H$40,$I$44,IF(W21=$H$46,$I$50,IF(W21=$H$52,$I$56,\"\"))))))))","v":500},100,0,0,0,0,0,0,0,0]
[null,"*","Heizung:",150]
[null,null,null,null,null,null,null,{"$f":"IF(Auswertung!$N$8<>\"J\",\"Gesamt:\",IF(G21<>\"*\",\"Gesamt incl. Mwst:\",\"Gesamt:\"))","v":"Gesamt:"},{"$f":"IF(G21=\"*\",SUM(I21:I23),IF(Auswertung!$N$8<>\"J\",SUM(I21:I23),(SUM(I21:I23)*$I$7)+SUM(I21:I23)))","v":100},null,{"$f":"SUM(K21:K23)","v":0}]
[]
[null,null,null,null,null,null,"*"]
[]
[]
[null,null,{"$f":"IF(Auswertung!$N$8<>\"J\",\"Gesamt:\",IF(B26<>\"*\",\"Gesamt incl. Mwst:\",\"Gesamt:\"))","v":"Gesamt:"},{"$f":"IF(B23=\"*\",SUM(D23:D28),IF(Auswertung!$N$8=\"J\",(SUM(D23:D28)*$I$7)+SUM(D23:D28),SUM(D23:D28)))","v":150},{"$f":"SUM(E26:E28)","v":0},null,null,{"$f":"IF(Auswertung!$N$8<>\"J\",\"Gesamt:\",IF(G26<>\"*\",\"Gesamt incl. Mwst:\",\"Gesamt:\"))","v":"Gesamt:"},{"$f":"IF(G26=\"*\",SUM(I26:I28),IF(Auswertung!$N$8<>\"J\",SUM(I26:I28),(SUM(I26:I28)*$I$7)+SUM(I26:I28)))","v":0}]
[null,null,null,null,609.48,null,null,null,null,null,{"$f":"SUM(K25:K29)","v":0}]
[null,"*","Stallreinigung:",null,null,null,"*","Filteranlage:"]
[]
[]
[]
[null,null,null,null,{"$f":"SUM(E30:E34)","v":609.48}]
[null,null,{"$f":"IF(Auswertung!$N$8<>\"J\",\"Gesamt:\",IF(B31<>\"*\",\"Gesamt incl. Mwst:\",\"Gesamt:\"))","v":"Gesamt:"},{"$f":"IF(B31=\"*\",SUM(D31:D35),IF(Auswertung!$N$8=\"J\",(SUM(D31:D35)*$I$7)+SUM(D31:D35),SUM(D31:D35)))","v":0},null,null,null,{"$f":"IF(Auswertung!$N$8<>\"J\",\"Gesamt:\",IF(G31<>\"*\",\"Gesamt incl. Mwst:\",\"Gesamt:\"))","v":"Gesamt:"},{"$f":"IF(G31=\"*\",SUM(I31:I35),IF(Auswertung!$N$8<>\"J\",SUM(I31:I35),(SUM(I31:I35)*$I$7)+SUM(I31:I35)))","v":0}]
[]
[null,null,"Nachfolgend können Sie weitere Kosten",null,null,null,null,"Nachfolgend können Sie weitere Kosten"]
[null,null,"und Beträge eingeben:",null,null,null,null,"und Beträge eingeben:"]
[null,"*","Strom",null,240,null,"*"]
[]
[]
[]
[null,null,{"$f":"IF(Auswertung!$N$8<>\"J\",\"Gesamt:\",IF(B40<>\"*\",\"Gesamt incl. Mwst:\",\"Gesamt:\"))","v":"Gesamt:"},{"$f":"IF(B40=\"*\",SUM(D40:D43),IF(Auswertung!$N$8=\"J\",(SUM(D40:D43)*$I$7)+SUM(D40:D43),SUM(D40:D43)))","v":0},null,null,null,{"$f":"IF(Auswertung!$N$8<>\"J\",\"Gesamt:\",IF(G40<>\"*\",\"Gesamt incl. Mwst:\",\"Gesamt:\"))","v":"Gesamt:"},{"$f":"IF(G40=\"*\",SUM(I40:I43),IF(Auswertung!$N$8<>\"J\",SUM(I40:I43),(SUM(I40:I43)*$I$7)+SUM(I40:I43)))","v":0}]
[]
[null,"*",null,null,null,null,"*"]
[]
[]
[]
[null,null,{"$f":"IF(Auswertung!$N$8<>\"J\",\"Gesamt:\",IF(B46<>\"*\",\"Gesamt incl. Mwst:\",\"Gesamt:\"))","v":"Gesamt:"},{"$f":"IF(B46=\"*\",SUM(D46:D49),IF(Auswertung!$N$8=\"J\",(SUM(D46:D49)*$I$7)+SUM(D46:D49),SUM(D46:D49)))","v":0},null,null,null,{"$f":"IF(Auswertung!$N$8<>\"J\",\"Gesamt:\",IF(G46<>\"*\",\"Gesamt incl. Mwst:\",\"Gesamt:\"))","v":"Gesamt:"},{"$f":"IF(G46=\"*\",SUM(I46:I49),IF(Auswertung!$N$8<>\"J\",SUM(I46:I49),(SUM(I46:I49)*$I$7)+SUM(I46:I49)))","v":0}]
[]
[null,"*",null,null,null,null,"*"]
[]
[]
[]
[null,null,{"$f":"IF(Auswertung!$N$8<>\"J\",\"Gesamt:\",IF(B52<>\"*\",\"Gesamt incl. Mwst:\",\"Gesamt:\"))","v":"Gesamt:"},{"$f":"IF(B52=\"*\",SUM(D52:D55),IF(Auswertung!$N$8=\"J\",(SUM(D52:D55)*$I$7)+SUM(D52:D55),SUM(D52:D55)))","v":0},null,null,null,{"$f":"IF(Auswertung!$N$8<>\"J\",\"Gesamt:\",IF(G52<>\"*\",\"Gesamt incl. Mwst:\",\"Gesamt:\"))","v":"Gesamt:"},{"$f":"IF(G52=\"*\",SUM(I52:I55),IF(Auswertung!$N$8<>\"J\",SUM(I52:I55),(SUM(I52:I55)*$I$7)+SUM(I52:I55)))","v":0}]
[]
[null,"*",null,null,null,null,"*"]
[]
[]
[null,null,{"$f":"IF(Auswertung!$N$8<>\"J\",\"Gesamt:\",IF(B58<>\"*\",\"Gesamt incl. Mwst:\",\"Gesamt:\"))","v":"Gesamt:"},{"$f":"IF(B58=\"*\",SUM(D58:D60),IF(Auswertung!$N$8=\"J\",(SUM(D58:D60)*$I$7)+SUM(D58:D60),SUM(D58:D60)))","v":0},null,null,null,{"$f":"IF(Auswertung!$N$8<>\"J\",\"Gesamt:\",IF(G58<>\"*\",\"Gesamt incl. Mwst:\",\"Gesamt:\"))","v":"Gesamt:"},{"$f":"IF(G58=\"*\",SUM(I58:I60),IF(Auswertung!$N$8<>\"J\",SUM(I58:I60),(SUM(I58:I60)*$I$7)+SUM(I58:I60)))","v":0}]
[null,null,null,"By Heinr.-Bernh. Muenzebrock Version 2019"]

{"sheet":"Bestandsregister","index":4,"n_rows":55,"n_cols":26,"rows_kept":55,"cut":false,"hidden":false,"merged":[[93,1,107,1],[52,6,52,7],[53,6,53,7],[54,6,54,7],[63,1,77,1],[78,1,92,1],[47,6,47,7],[48,6,48,7],[49,6,49,7],[50,6,50,7],[51,6,51,7],[23,6,23,7],[24,1,47,1],[24,6,24,7],[25,6,25,7],[26,6,26,7],[27,6,27,7],[28,6,28,7],[29,6,29,7],[30,6,30,7],[31,6,31,7],[32,6,32,7],[33,6,33,7],[43,6,43,7],[44,6,44,7],[45,6,45,7],[46,6,46,7],[18,6,18,7],[19,6,19,7],[20,6,20,7],[21,6,21,7],[22,6,22,7],[13,6,13,7],[14,6,14,7],[15,6,15,7],[16,6,16,7],[17,6,17,7],[8,6,8,7],[9,6,9,7],[10,6,10,7],[11,6,11,7],[11,10,12,10],[12,6,12,7],[4,3,4,8],[4,10,4,11],[6,5,7,5],[6,6,6,7],[6,8,7,8],[7,6,7,7]]}
[]
[null,null,null,null,null,null,null,null,null,null,null,null,"   Strg+d=Seite drucken",{"$f":"TODAY()","v":"2020-09-01"}]
[null,null,"B  e  s  t  a  n  d  s  r  e  g  i  s  t  e  r    M  a  s  t  s  c  h  w  e  i  n  e",null,null,null,null,null,null,null,"Seite Nr.:",null,"Stall/Ställe/Partie:",{"$f":"Auswertung!N3","v":1}]
[]
[null,null,"Name:",{"$f":"CONCATENATE(Auswertung!D5,\" , \",Auswertung!D6)","v":" , "},null,null,null,null,null,"Betriebsnr.:",{"$f":"Auswertung!D8","v":0},null,"Tiere im Bestand:",{"$f":"IF(D9=\"\",0,SUM(D9:D13)-SUM(F14:F38)-SUM(E39:E55))","v":0}]
[]
[null,null,"Zu-Abgang","Zugang"," Abgang"," Tote Anzahl","Betriebs/Ohrmarken",null,"Adresse                        Woher - Wohin","Stall","Reinigung","Desinfekt","Kontr. d. T-Arzt","Bemerkungen"]
[null,null,"     Datum ","Anzahl","Anzahl",null,"Nummer/n",null,null,"Nr.","Datum","Datum","Datum / Name"]
[null,null,{"$f":"IF(Tiere_Zu_Abgang!I16=\"\",\"\",Tiere_Zu_Abgang!I16)","v":"2020-05-15"},{"$f":"IF(Tiere_Zu_Abgang!J16=\"\",\"\",Tiere_Zu_Abgang!J16)","v":100},null,null,{"$f":"IF(Tiere_Zu_Abgang!P16=\"\",\"\",Tiere_Zu_Abgang!P16)","v":""},null,{"$f":"IF(Tiere_Zu_Abgang!Q16=\"\",\"\",Tiere_Zu_Abgang!Q16)","v":""},{"$f":"IF(Tiere_Zu_Abgang!AB16=\"\",\"\",Tiere_Zu_Abgang!AB16)","v":""}]
[null,null,{"$f":"IF(Tiere_Zu_Abgang!I17=\"\",\"\",Tiere_Zu_Abgang!I17)","v":""},{"$f":"IF(Tiere_Zu_Abgang!J17=\"\",\"\",Tiere_Zu_Abgang!J17)","v":""},null,null,{"$f":"IF(Tiere_Zu_Abgang!P17=\"\",\"\",Tiere_Zu_Abgang!P17)","v":""}]
[null,null,{"$f":"IF(Tiere_Zu_Abgang!I18=\"\",\"\",Tiere_Zu_Abgang!I18)","v":""},{"$f":"IF(Tiere_Zu_Abgang!J18=\"\",\"\",Tiere_Zu_Abgang!J18)","v":""},null,null,{"$f":"IF(Tiere_Zu_Abgang!P18=\"\",\"\",Tiere_Zu_Abgang!P18)","v":""}]
[null,null,{"$f":"IF(Tiere_Zu_Abgang!I19=\"\",\"\",Tiere_Zu_Abgang!I19)","v":""},{"$f":"IF(Tiere_Zu_Abgang!J19=\"\",\"\",Tiere_Zu_Abgang!J19)","v":""},null,null,{"$f":"IF(Tiere_Zu_Abgang!P19=\"\",\"\",Tiere_Zu_Abgang!P19)","v":""},null,null,null,"Restmenge"]
[null,null,{"$f":"IF(Tiere_Zu_Abgang!I20=\"\",\"\",Tiere_Zu_Abgang!I20)","v":""},{"$f":"IF(Tiere_Zu_Abgang!J20=\"\",\"\",Tiere_Zu_Abgang!J20)","v":""},null,null,{"$f":"IF(Tiere_Zu_Abgang!P20=\"\",\"\",Tiere_Zu_Abgang!P20)","v":""},null,null,null,null,null,null,null,null,null,null,{"$f":"SUM(D9:D13)","v":100}]
[null,null,{"$f":"IF(Tiere_Zu_Abgang!I53=\"\",\"\",Tiere_Zu_Abgang!I53)","v":"2020-08-15"},null,null,{"$f":"IF(Tiere_Zu_Abgang!J53=\"\",\"\",Tiere_Zu_Abgang!J53)","v":5},null,null,{"$f":"IF(Tiere_Zu_Abgang!N53=\"\",\"\",Tiere_Zu_Abgang!N53)","v":""},{"$f":"IF(Tiere_Zu_Abgang!M53=\"\",\"\",Tiere_Zu_Abgang!M53)","v":""},{"$f":"IF(D9=\"\",\"\",IF(F14=\"\",\"\",SUM(D9:D13)-F14))","v":95},null,null,null,null,null,null,null,null,null,null,null,null,null,{"$f":"IF(K14=\"\",\"\",IF(K15<>\"\",\"\",K14))","v":95}]
[null,null,{"$f":"IF(Tiere_Zu_Abgang!I54=\"\",\"\",Tiere_Zu_Abgang!I54)","v":""},null,null,{"$f":"IF(Tiere_Zu_Abgang!J54=\"\",\"\",Tiere_Zu_Abgang!J54)","v":""},null,null,{"$f":"IF(Tiere_Zu_Abgang!N54=\"\",\"\",Tiere_Zu_Abgang!N54)","v":""},{"$f":"IF(Tiere_Zu_Abgang!M54=\"\",\"\",Tiere_Zu_Abgang!M54)","v":""},{"$f":"IF($D$9=\"\",\"\",IF(F15=\"\",\"\",SUM($D$9:$D$13)-SUM($F$14:F15)))","v":""},null,null,null,null,null,null,null,null,null,null,null,null,null,""]
[null,null,{"$f":"IF(Tiere_Zu_Abgang!I55=\"\",\"\",Tiere_Zu_Abgang!I55)","v":""},null,null,{"$f":"IF(Tiere_Zu_Abgang!J55=\"\",\"\",Tiere_Zu_Abgang!J55)","v":""},null,null,{"$f":"IF(Tiere_Zu_Abgang!N55=\"\",\"\",Tiere_Zu_Abgang!N55)","v":""},{"$f":"IF(Tiere_Zu_Abgang!M55=\"\",\"\",Tiere_Zu_Abgang!M55)","v":""},{"$f":"IF($D$9=\"\",\"\",IF(F16=\"\",\"\",SUM($D$9:$D$13)-SUM($F$14:F16)))","v":""},null,null,null,null,null,null,null,null,null,null,null,null,null,""]
[null,null,{"$f":"IF(Tiere_Zu_Abgang!I56=\"\",\"\",Tiere_Zu_Abgang!I56)","v":""},null,null,{"$f":"IF(Tiere_Zu_Abgang!J56=\"\",\"\",Tiere_Zu_Abgang!J56)","v":""},null,null,{"$f":"IF(Tiere_Zu_Abgang!N56=\"\",\"\",Tiere_Zu_Abgang!N56)","v":""},{"$f":"IF(Tiere_Zu_Abgang!M56=\"\",\"\",Tiere_Zu_Abgang!M56)","v":""},{"$f":"IF($D$9=\"\",\"\",IF(F17=\"\",\"\",SUM($D$9:$D$13)-SUM($F$14:F17)))","v":""},null,null,null,null,null,null,null,null,null,null,null,null,null,""]
[null,null,{"$f":"IF(Tiere_Zu_Abgang!I57=\"\",\"\",Tiere_Zu_Abgang!I57)","v":""},null,null,{"$f":"IF(Tiere_Zu_Abgang!J57=\"\",\"\",Tiere_Zu_Abgang!J57)","v":""},null,null,{"$f":"IF(Tiere_Zu_Abgang!N57=\"\",\"\",Tiere_Zu_Abgang!N57)","v":""},{"$f":"IF(Tiere_Zu_Abgang!M57=\"\",\"\",Tiere_Zu_Abgang!M57)","v":""},{"$f":"IF($D$9=\"\",\"\",IF(F18=\"\",\"\",SUM($D$9:$D$13)-SUM($F$14:F18)))","v":""},null,null,null,null,null,null,null,null,null,null,null,null,null,""]
[null,null,{"$f":"IF(Tiere_Zu_Abgang!I58=\"\",\"\",Tiere_Zu_Abgang!I58)","v":""},null,null,{"$f":"IF(Tiere_Zu_Abgang!J58=\"\",\"\",Tiere_Zu_Abgang!J58)","v":""},null,null,{"$f":"IF(Tiere_Zu_Abgang!N58=\"\",\"\",Tiere_Zu_Abgang!N58)","v":""},{"$f":"IF(Tiere_Zu_Abgang!M58=\"\",\"\",Tiere_Zu_Abgang!M58)","v":""},{"$f":"IF($D$9=\"\",\"\",IF(F19=\"\",\"\",SUM($D$9:$D$13)-SUM($F$14:F19)))","v":""},null,null,null,null,null,null,null,null,null,null,null,null,null,""]
[null,null,{"$f":"IF(Tiere_Zu_Abgang!I59=\"\",\"\",Tiere_Zu_Abgang!I59)","v":""},null,null,{"$f":"IF(Tiere_Zu_Abgang!J59=\"\",\"\",Tiere_Zu_Abgang!J59)","v":""},null,null,{"$f":"IF(Tiere_Zu_Abgang!N59=\"\",\"\",Tiere_Zu_Abgang!N59)","v":""},{"$f":"IF(Tiere_Zu_Abgang!M59=\"\",\"\",Tiere_Zu_Abgang!M59)","v":""},{"$f":"IF($D$9=\"\",\"\",IF(F20=\"\",\"\",SUM($D$9:$D$13)-SUM($F$14:F20)))","v":""},null,null,null,null,null,null,null,null,null,null,null,null,null,""]
[null,null,{"$f":"IF(Tiere_Zu_Abgang!I60=\"\",\"\",Tiere_Zu_Abgang!I60)","v":""},null,null,{"$f":"IF(Tiere_Zu_Abgang!J60=\"\",\"\",Tiere_Zu_Abgang!J60)","v":""},null,null,{"$f":"IF(Tiere_Zu_Abgang!N60=\"\",\"\",Tiere_Zu_Abgang!N60)","v":""},{"$f":"IF(Tiere_Zu_Abgang!M60=\"\",\"\",Tiere_Zu_Abgang!M60)","v":""},{"$f":"IF($D$9=\"\",\"\",IF(F21=\"\",\"\",SUM($D$9:$D$13)-SUM($F$14:F21)))","v":""},null,null,null,null,null,null,null,null,null,null,null,null,null,""]
[null,null,{"$f":"IF(Tiere_Zu_Abgang!I61=\"\",\"\",Tiere_Zu_Abgang!I61)","v":""},null,null,{"$f":"IF(Tiere_Zu_Abgang!J61=\"\",\"\",Tiere_Zu_Abgang!J61)","v":""},null,null,{"$f":"IF(Tiere_Zu_Abgang!N61=\"\",\"\",Tiere_Zu_Abgang!N61)","v":""},{"$f":"IF(Tiere_Zu_Abgang!M61=\"\",\"\",Tiere_Zu_Abgang!M61)","v":""},{"$f":"IF($D$9=\"\",\"\",IF(F22=\"\",\"\",SUM($D$9:$D$13)-SUM($F$14:F22)))","v":""},null,null,null,null,null,null,null,null,null,null,null,null,null,""]
[null,null,{"$f":"IF(Tiere_Zu_Abgang!I62=\"\",\"\",Tiere_Zu_Abgang!I62)","v":""},null,null,{"$f":"IF(Tiere_Zu_Abgang!J62=\"\",\"\",Tiere_Zu_Abgang!J62)","v":""},null,null,{"$f":"IF(Tiere_Zu_Abgang!N62=\"\",\"\",Tiere_Zu_Abgang!N62)","v":""},{"$f":"IF(Tiere_Zu_Abgang!M62=\"\",\"\",Tiere_Zu_Abgang!M62)","v":""},{"$f":"IF($D$9=\"\",\"\",IF(F23=\"\",\"\",SUM($D$9:$D$13)-SUM($F$14:F23)))","v":""},null,null,null,null,null,null,null,null,null,null,null,null,null,""]
[null,null,{"$f":"IF(Tiere_Zu_Abgang!I63=\"\",\"\",Tiere_Zu_Abgang!I63)","v":""},null,null,{"$f":"IF(Tiere_Zu_Abgang!J63=\"\",\"\",Tiere_Zu_Abgang!J63)","v":""},null,null,{"$f":"IF(Tiere_Zu_Abgang!N63=\"\",\"\",Tiere_Zu_Abgang!N63)","v":""},{"$f":"IF(Tiere_Zu_Abgang!M63=\"\",\"\",Tiere_Zu_Abgang!M63)","v":""},{"$f":"IF($D$9=\"\",\"\",IF(F24=\"\",\"\",SUM($D$9:$D$13)-SUM($F$14:F24)))","v":""},null,null,null,null,null,null,null,null,null,null,null,null,null,""]
[null,"By Heinr.-Bernh. Münzebrock Version 4.5",{"$f":"IF(Tiere_Zu_Abgang!I64=\"\",\"\",Tiere_Zu_Abgang!I64)","v":""},null,null,{"$f":"IF(Tiere_Zu_Abgang!J64=\"\",\"\",Tiere_Zu_Abgang!J64)","v":""},null,null,{"$f":"IF(Tiere_Zu_Abgang!N64=\"\",\"\",Tiere_Zu_Abgang!N64)","v":""},{"$f":"IF(Tiere_Zu_Abgang!M64=\"\",\"\",Tiere_Zu_Abgang!M64)","v":""},{"$f":"IF($D$9=\"\",\"\",IF(F25=\"\",\"\",SUM($D$9:$D$13)-SUM($F$14:F25)))","v":""},null,null,null,null,null,null,null,null,null,null,null,null,null,""]
[null,null,{"$f":"IF(Tiere_Zu_Abgang!I65=\"\",\"\",Tiere_Zu_Abgang!I65)","v":""},null,null,{"$f":"IF(Tiere_Zu_Abgang!J65=\"\",\"\",Tiere_Zu_Abgang!J65)","v":""},null,null,{"$f":"IF(Tiere_Zu_Abgang!N65=\"\",\"\",Tiere_Zu_Abgang!N65)","v":""},{"$f":"IF(Tiere_Zu_Abgang!M65=\"\",\"\",Tiere_Zu_Abgang!M65)","v":""},{"$f":"IF($D$9=\"\",\"\",IF(F26=\"\",\"\",SUM($D$9:$D$13)-SUM($F$14:F26)))","v":""},null,null,null,null,null,null,null,null,null,null,null,null,null,""]
[null,null,{"$f":"IF(Tiere_Zu_Abgang!I66=\"\",\"\",Tiere_Zu_Abgang!I66)","v":""},null,null,{"$f":"IF(Tiere_Zu_Abgang!J66=\"\",\"\",Tiere_Zu_Abgang!J66)","v":""},null,null,{"$f":"IF(Tiere_Zu_Abgang!N66=\"\",\"\",Tiere_Zu_Abgang!N66)","v":""},{"$f":"IF(Tiere_Zu_Abgang!M66=\"\",\"\",Tiere_Zu_Abgang!M66)","v":""},{"$f":"IF($D$9=\"\",\"\",IF(F27=\"\",\"\",SUM($D$9:$D$13)-SUM($F$14:F27)))","v":""},null,null,null,null,null,null,null,null,null,null,null,null,null,""]
[null,null,{"$f":"IF(Tiere_Zu_Abgang!I67=\"\",\"\",Tiere_Zu_Abgang!I67)","v":""},null,null,{"$f":"IF(Tiere_Zu_Abgang!J67=\"\",\"\",Tiere_Zu_Abgang!J67)","v":""},null,null,{"$f":"IF(Tiere_Zu_Abgang!N67=\"\",\"\",Tiere_Zu_Abgang!N67)","v":""},{"$f":"IF(Tiere_Zu_Abgang!M67=\"\",\"\",Tiere_Zu_Abgang!M67)","v":""},{"$f":"IF($D$9=\"\",\"\",IF(F28=\"\",\"\",SUM($D$9:$D$13)-SUM($F$14:F28)))","v":""},null,null,null,null,null,null,null,null,null,null,null,null,null,""]
[null,null,{"$f":"IF(Tiere_Zu_Abgang!I68=\"\",\"\",Tiere_Zu_Abgang!I68)","v":""},null,null,{"$f":"IF(Tiere_Zu_Abgang!J68=\"\",\"\",Tiere_Zu_Abgang!J68)","v":""},null,null,{"$f":"IF(Tiere_Zu_Abgang!N68=\"\",\"\",Tiere_Zu_Abgang!N68)","v":""},{"$f":"IF(Tiere_Zu_Abgang!M68=\"\",\"\",Tiere_Zu_Abgang!M68)","v":""},{"$f":"IF($D$9=\"\",\"\",IF(F29=\"\",\"\",SUM($D$9:$D$13)-SUM($F$14:F29)))","v":""},null,null,null,null,null,null,{"$f":"R13-Tiere_Zu_Abgang!J83","v":95},null,null,null,null,null,null,""]
[null,null,{"$f":"IF(Tiere_Zu_Abgang!I69=\"\",\"\",Tiere_Zu_Abgang!I69)","v":""},null,null,{"$f":"IF(Tiere_Zu_Abgang!J69=\"\",\"\",Tiere_Zu_Abgang!J69)","v":""},null,null,{"$f":"IF(Tiere_Zu_Abgang!N69=\"\",\"\",Tiere_Zu_Abgang!N69)","v":""},{"$f":"IF(Tiere_Zu_Abgang!M69=\"\",\"\",Tiere_Zu_Abgang!M69)","v":""},{"$f":"IF($D$9=\"\",\"\",IF(F30=\"\",\"\",SUM($D$9:$D$13)-SUM($F$14:F30)))","v":""},null,null,null,null,null,null,null,null,null,null,null,null,null,""]
[null,null,{"$f":"IF(Tiere_Zu_Abgang!I70=\"\",\"\",Tiere_Zu_Abgang!I70)","v":""},null,null,{"$f":"IF(Tiere_Zu_Abgang!J70=\"\",\"\",Tiere_Zu_Abgang!J70)","v":""},null,null,{"$f":"IF(Tiere_Zu_Abgang!N70=\"\",\"\",Tiere_Zu_Abgang!N70)","v":""},{"$f":"IF(Tiere_Zu_Abgang!M70=\"\",\"\",Tiere_Zu_Abgang!M70)","v":""},{"$f":"IF($D$9=\"\",\"\",IF(F31=\"\",\"\",SUM($D$9:$D$13)-SUM($F$14:F31)))","v":""},null,null,null,null,null,null,null,null,null,null,null,null,null,""]
[null,null,{"$f":"IF(Tiere_Zu_Abgang!I71=\"\",\"\",Tiere_Zu_Abgang!I71)","v":""},null,null,{"$f":"IF(Tiere_Zu_Abgang!J71=\"\",\"\",Tiere_Zu_Abgang!J71)","v":""},null,null,{"$f":"IF(Tiere_Zu_Abgang!N71=\"\",\"\",Tiere_Zu_Abgang!N71)","v":""},{"$f":"IF(Tiere_Zu_Abgang!M71=\"\",\"\",Tiere_Zu_Abgang!M71)","v":""},{"$f":"IF($D$9=\"\",\"\",IF(F32=\"\",\"\",SUM($D$9:$D$13)-SUM($F$14:F32)))","v":""},null,null,null,null,null,null,null,null,null,null,null,null,null,""]
[null,null,{"$f":"IF(Tiere_Zu_Abgang!I72=\"\",\"\",Tiere_Zu_Abgang!I72)","v":""},null,null,{"$f":"IF(Tiere_Zu_Abgang!J72=\"\",\"\",Tiere_Zu_Abgang!J72)","v":""},null,null,{"$f":"IF(Tiere_Zu_Abgang!N72=\"\",\"\",Tiere_Zu_Abgang!N72)","v":""},{"$f":"IF(Tiere_Zu_Abgang!M72=\"\",\"\",Tiere_Zu_Abgang!M72)","v":""},{"$f":"IF($D$9=\"\",\"\",IF(F33=\"\",\"\",SUM($D$9:$D$13)-SUM($F$14:F33)))","v":""},null,null,null,null,null,null,null,null,null,null,null,null,null,""]
[null,null,{"$f":"IF(Tiere_Zu_Abgang!I73=\"\",\"\",Tiere_Zu_Abgang!I73)","v":""},null,null,{"$f":"IF(Tiere_Zu_Abgang!J73=\"\",\"\",Tiere_Zu_Abgang!J73)","v":""},null,null,{"$f":"IF(Tiere_Zu_Abgang!N73=\"\",\"\",Tiere_Zu_Abgang!N73)","v":""},{"$f":"IF(Tiere_Zu_Abgang!M73=\"\",\"\",Tiere_Zu_Abgang!M73)","v":""},{"$f":"IF($D$9=\"\",\"\",IF(F34=\"\",\"\",SUM($D$9:$D$13)-SUM($F$14:F34)))","v":""},null,null,null,null,null,null,{"$f":"R29-SUM(R39:R55)","v":95},null,null,null,null,null,null,""]
[null,null,{"$f":"IF(Tiere_Zu_Abgang!I74=\"\",\"\",Tiere_Zu_Abgang!I74)","v":""},null,null,{"$f":"IF(Tiere_Zu_Abgang!J74=\"\",\"\",Tiere_Zu_Abgang!J74)","v":""},null,null,{"$f":"IF(Tiere_Zu_Abgang!N74=\"\",\"\",Tiere_Zu_Abgang!N74)","v":""},{"$f":"IF(Tiere_Zu_Abgang!M74=\"\",\"\",Tiere_Zu_Abgang!M74)","v":""},{"$f":"IF($D$9=\"\",\"\",IF(F35=\"\",\"\",SUM($D$9:$D$13)-SUM($F$14:F35)))","v":""},null,null,null,null,null,null,null,null,null,null,null,null,null,""]
[null,null,{"$f":"IF(Tiere_Zu_Abgang!I75=\"\",\"\",Tiere_Zu_Abgang!I75)","v":""},null,null,{"$f":"IF(Tiere_Zu_Abgang!J75=\"\",\"\",Tiere_Zu_Abgang!J75)","v":""},null,null,{"$f":"IF(Tiere_Zu_Abgang!N75=\"\",\"\",Tiere_Zu_Abgang!N75)","v":""},{"$f":"IF(Tiere_Zu_Abgang!M75=\"\",\"\",Tiere_Zu_Abgang!M75)","v":""},{"$f":"IF($D$9=\"\",\"\",IF(F36=\"\",\"\",SUM($D$9:$D$13)-SUM($F$14:F36)))","v":""},null,null,null,null,null,null,null,null,null,null,null,null,null,""]
[null,null,{"$f":"IF(Tiere_Zu_Abgang!I76=\"\",\"\",Tiere_Zu_Abgang!I76)","v":""},null,null,{"$f":"IF(Tiere_Zu_Abgang!J76=\"\",\"\",Tiere_Zu_Abgang!J76)","v":""},null,null,{"$f":"IF(Tiere_Zu_Abgang!N76=\"\",\"\",Tiere_Zu_Abgang!N76)","v":""},{"$f":"IF(Tiere_Zu_Abgang!M76=\"\",\"\",Tiere_Zu_Abgang!M76)","v":""},{"$f":"IF($D$9=\"\",\"\",IF(F37=\"\",\"\",SUM($D$9:$D$13)-SUM($F$14:F37)))","v":""},null,null,null,null,null,null,null,null,null,null,null,null,null,""]
[null,null,{"$f":"IF(Tiere_Zu_Abgang!I82=\"\",\"\",Tiere_Zu_Abgang!I82)","v":""},null,null,{"$f":"IF(Tiere_Zu_Abgang!J77=\"\",\"\",Tiere_Zu_Abgang!J77)","v":""},null,null,{"$f":"IF(Tiere_Zu_Abgang!N77=\"\",\"\",Tiere_Zu_Abgang!N77)","v":""},{"$f":"IF(Tiere_Zu_Abgang!M77=\"\",\"\",Tiere_Zu_Abgang!M77)","v":""},{"$f":"IF($D$9=\"\",\"\",IF(F38=\"\",\"\",SUM($D$9:$D$13)-SUM($F$14:F38)))","v":""},null,null,null,null,null,null,null,null,null,null,null,null,null,"",{"$f":"IF(SUM(Y14:Y38)=0,R29,SUM(Y14:Y35))","v":95}]
[null,null,{"$f":"IF(Tiere_Zu_Abgang!I43=\"\",\"\",Tiere_Zu_Abgang!I43)","v":""},null,{"$f":"IF(Tiere_Zu_Abgang!J43=\"\",\"\",Tiere_Zu_Abgang!J43)","v":""},null,null,null,{"$f":"IF(Tiere_Zu_Abgang!N43=\"\",\"\",Tiere_Zu_Abgang!N43)","v":""},null,{"$f":"IF($D$9=\"\",\"\",IF(E39=\"\",\"\",Z38-E39))","v":""},null,null,null,null,null,null,null,null,null,null,null,null,null,""]
[null,null,{"$f":"IF(Tiere_Zu_Abgang!I44=\"\",\"\",Tiere_Zu_Abgang!I44)","v":""},null,{"$f":"IF(Tiere_Zu_Abgang!J44=\"\",\"\",Tiere_Zu_Abgang!J44)","v":""},null,null,null,{"$f":"IF(Tiere_Zu_Abgang!N44=\"\",\"\",Tiere_Zu_Abgang!N44)","v":""},null,{"$f":"IF($D$9=\"\",\"\",IF(K39=\"\",\"\",IF(E40=\"\",\"\",K39-E40)))","v":""},null,null,null,null,null,null,null,null,null,null,null,null,null,""]
[null,null,{"$f":"IF(Tiere_Zu_Abgang!I45=\"\",\"\",Tiere_Zu_Abgang!I45)","v":""},null,{"$f":"IF(Tiere_Zu_Abgang!J45=\"\",\"\",Tiere_Zu_Abgang!J45)","v":""},null,null,null,{"$f":"IF(Tiere_Zu_Abgang!N45=\"\",\"\",Tiere_Zu_Abgang!N45)","v":""},null,{"$f":"IF($D$9=\"\",\"\",IF(K40=\"\",\"\",IF(E41=\"\",\"\",K40-E41)))","v":""},null,null,null,null,null,null,null,null,null,null,null,null,null,""]
[null,null,{"$f":"IF(Tiere_Zu_Abgang!I46=\"\",\"\",Tiere_Zu_Abgang!I46)","v":""},null,{"$f":"IF(Tiere_Zu_Abgang!J46=\"\",\"\",Tiere_Zu_Abgang!J46)","v":""},null,null,null,{"$f":"IF(Tiere_Zu_Abgang!N46=\"\",\"\",Tiere_Zu_Abgang!N46)","v":""},null,{"$f":"IF($D$9=\"\",\"\",IF(K41=\"\",\"\",IF(E42=\"\",\"\",K41-E42)))","v":""},null,null,null,null,null,null,null,null,null,null,null,null,null,""]
[null,null,{"$f":"IF(Tiere_Zu_Abgang!I47=\"\",\"\",Tiere_Zu_Abgang!I47)","v":""},null,{"$f":"IF(Tiere_Zu_Abgang!J47=\"\",\"\",Tiere_Zu_Abgang!J47)","v":""},null,null,null,{"$f":"IF(Tiere_Zu_Abgang!N47=\"\",\"\",Tiere_Zu_Abgang!N47)","v":""},null,{"$f":"IF($D$9=\"\",\"\",IF(K42=\"\",\"\",IF(E43=\"\",\"\",K42-E43)))","v":""},null,null,null,null,null,null,null,null,null,null,null,null,null,"",{"$f":"SUM(Y39:Y43)","v":0}]
[null,null,{"$f":"IF(Tiere_Zu_Abgang!I26=\"\",\"\",Tiere_Zu_Abgang!I26)","v":"2020-08-20"},null,{"$f":"IF(Tiere_Zu_Abgang!J26=\"\",\"\",Tiere_Zu_Abgang!J26)","v":95},null,null,null,{"$f":"IF(Tiere_Zu_Abgang!AG26=\"\",\"\",Tiere_Zu_Abgang!AG26)","v":""},{"$f":"IF(Tiere_Zu_Abgang!AE26=\"\",\"\",Tiere_Zu_Abgang!AE26)","v":"1"},{"$f":"IF($D$9=\"\",\"\",IF(E44=\"\",\"\",Z38-E44))","v":0},null,null,null,null,null,null,null,null,null,null,null,null,null,0]
[null,null,{"$f":"IF(Tiere_Zu_Abgang!I27=\"\",\"\",Tiere_Zu_Abgang!I27)","v":""},null,{"$f":"IF(Tiere_Zu_Abgang!J27=\"\",\"\",Tiere_Zu_Abgang!J27)","v":""},null,null,null,{"$f":"IF(Tiere_Zu_Abgang!AG27=\"\",\"\",Tiere_Zu_Abgang!AG27)","v":""},{"$f":"IF(Tiere_Zu_Abgang!AE27=\"\",\"\",Tiere_Zu_Abgang!AE27)","v":""},{"$f":"IF($D$9=\"\",\"\",IF(K44=\"\",\"\",IF(E45=\"\",\"\",K44-E45)))","v":""},null,null,null,null,null,null,null,null,null,null,null,null,null,""]
[null,null,{"$f":"IF(Tiere_Zu_Abgang!I28=\"\",\"\",Tiere_Zu_Abgang!I28)","v":""},null,{"$f":"IF(Tiere_Zu_Abgang!J28=\"\",\"\",Tiere_Zu_Abgang!J28)","v":""},null,null,null,{"$f":"IF(Tiere_Zu_Abgang!AG28=\"\",\"\",Tiere_Zu_Abgang!AG28)","v":""},{"$f":"IF(Tiere_Zu_Abgang!AE28=\"\",\"\",Tiere_Zu_Abgang!AE28)","v":""},"",null,null,null,null,null,null,null,null,null,null,null,null,null,""]
[null,null,{"$f":"IF(Tiere_Zu_Abgang!I29=\"\",\"\",Tiere_Zu_Abgang!I29)","v":""},null,{"$f":"IF(Tiere_Zu_Abgang!J29=\"\",\"\",Tiere_Zu_Abgang!J29)","v":""},null,null,null,{"$f":"IF(Tiere_Zu_Abgang!AG29=\"\",\"\",Tiere_Zu_Abgang!AG29)","v":""},{"$f":"IF(Tiere_Zu_Abgang!AE29=\"\",\"\",Tiere_Zu_Abgang!AE29)","v":""},"",null,null,null,null,null,null,null,null,null,null,null,null,null,""]
[null,null,{"$f":"IF(Tiere_Zu_Abgang!I30=\"\",\"\",Tiere_Zu_Abgang!I30)","v":""},null,{"$f":"IF(Tiere_Zu_Abgang!J30=\"\",\"\",Tiere_Zu_Abgang!J30)","v":""},null,null,null,{"$f":"IF(Tiere_Zu_Abgang!AG30=\"\",\"\",Tiere_Zu_Abgang!AG30)","v":""},{"$f":"IF(Tiere_Zu_Abgang!AE30=\"\",\"\",Tiere_Zu_Abgang!AE30)","v":""},"",null,null,null,null,null,null,null,null,null,null,null,null,null,""]
[null,null,{"$f":"IF(Tiere_Zu_Abgang!I31=\"\",\"\",Tiere_Zu_Abgang!I31)","v":""},null,{"$f":"IF(Tiere_Zu_Abgang!J31=\"\",\"\",Tiere_Zu_Abgang!J31)","v":""},null,null,null,{"$f":"IF(Tiere_Zu_Abgang!AG31=\"\",\"\",Tiere_Zu_Abgang!AG31)","v":""},{"$f":"IF(Tiere_Zu_Abgang!AE31=\"\",\"\",Tiere_Zu_Abgang!AE31)","v":""},"",null,null,null,null,null,null,null,null,null,null,null,null,null,""]
[null,null,{"$f":"IF(Tiere_Zu_Abgang!I32=\"\",\"\",Tiere_Zu_Abgang!I32)","v":""},null,{"$f":"IF(Tiere_Zu_Abgang!J32=\"\",\"\",Tiere_Zu_Abgang!J32)","v":""},null,null,null,{"$f":"IF(Tiere_Zu_Abgang!AG32=\"\",\"\",Tiere_Zu_Abgang!AG32)","v":""},{"$f":"IF(Tiere_Zu_Abgang!AE32=\"\",\"\",Tiere_Zu_Abgang!AE32)","v":""},"",null,null,null,null,null,null,null,null,null,null,null,null,null,""]
[null,null,{"$f":"IF(Tiere_Zu_Abgang!I33=\"\",\"\",Tiere_Zu_Abgang!I33)","v":""},null,{"$f":"IF(Tiere_Zu_Abgang!J33=\"\",\"\",Tiere_Zu_Abgang!J33)","v":""},null,null,null,{"$f":"IF(Tiere_Zu_Abgang!AG33=\"\",\"\",Tiere_Zu_Abgang!AG33)","v":""},{"$f":"IF(Tiere_Zu_Abgang!AE33=\"\",\"\",Tiere_Zu_Abgang!AE33)","v":""},"",null,null,null,null,null,null,null,null,null,null,null,null,null,""]
[null,null,{"$f":"IF(Tiere_Zu_Abgang!I34=\"\",\"\",Tiere_Zu_Abgang!I34)","v":""},null,{"$f":"IF(Tiere_Zu_Abgang!J34=\"\",\"\",Tiere_Zu_Abgang!J34)","v":""},null,null,null,{"$f":"IF(Tiere_Zu_Abgang!AG34=\"\",\"\",Tiere_Zu_Abgang!AG34)","v":""},{"$f":"IF(Tiere_Zu_Abgang!AE34=\"\",\"\",Tiere_Zu_Abgang!AE34)","v":""},"",null,null,null,null,null,null,null,null,null,null,null,null,null,""]
[null,null,{"$f":"IF(Tiere_Zu_Abgang!I35=\"\",\"\",Tiere_Zu_Abgang!I35)","v":""},null,{"$f":"IF(Tiere_Zu_Abgang!J35=\"\",\"\",Tiere_Zu_Abgang!J35)","v":""},null,null,null,{"$f":"IF(Tiere_Zu_Abgang!AG35=\"\",\"\",Tiere_Zu_Abgang!AG35)","v":""},{"$f":"IF(Tiere_Zu_Abgang!AE35=\"\",\"\",Tiere_Zu_Abgang!AE35)","v":""},"",null,null,null,null,null,null,null,null,null,null,null,null,null,""]
[null,null,{"$f":"IF(Tiere_Zu_Abgang!I36=\"\",\"\",Tiere_Zu_Abgang!I36)","v":""},null,{"$f":"IF(Tiere_Zu_Abgang!J36=\"\",\"\",Tiere_Zu_Abgang!J36)","v":""},null,null,null,{"$f":"IF(Tiere_Zu_Abgang!AG36=\"\",\"\",Tiere_Zu_Abgang!AG36)","v":""},{"$f":"IF(Tiere_Zu_Abgang!AE36=\"\",\"\",Tiere_Zu_Abgang!AE36)","v":""},"",null,null,null,null,null,null,null,null,null,null,null,null,null,""]
[null,null,{"$f":"IF(Tiere_Zu_Abgang!I37=\"\",\"\",Tiere_Zu_Abgang!I37)","v":""},null,{"$f":"IF(Tiere_Zu_Abgang!J37=\"\",\"\",Tiere_Zu_Abgang!J37)","v":""},null,null,null,{"$f":"IF(Tiere_Zu_Abgang!AG37=\"\",\"\",Tiere_Zu_Abgang!AG37)","v":""},{"$f":"IF(Tiere_Zu_Abgang!AE37=\"\",\"\",Tiere_Zu_Abgang!AE37)","v":""},"",null,null,null,null,null,null,null,null,null,null,null,null,null,""]

{"sheet":"Arzneimittelbuch","index":5,"n_rows":116,"n_cols":16,"rows_kept":116,"cut":false,"hidden":true,"merged":[[11,2,12,2],[11,6,12,6],[11,7,11,8],[11,15,12,15],[6,2,6,5],[6,6,6,8],[6,10,6,12],[7,2,7,4],[7,12,8,12],[8,2,8,4],[4,10,4,13],[4,14,4,15],[5,2,5,5],[5,6,5,8],[5,10,5,13],[5,14,5,15]]}
[]
[null,null,null,null,null,null,null,null,null,null,null,null,null,null,null,"Strg+d = drucken"]
[null,null,"Arzneimittelbuch / Behandlungsbuch  (Schweine)    ",null,null,null,null,null,null,{"$f":"Bestandsregister!D5","v":" , "}]
[null,null,null,null,null,null,null,null,null,null,"         ",null,"    Betriebsnummer:",null,{"$f":"Bestandsregister!K5","v":0}]
[null,null,"Tierarzt: (Name u. Anschrift)",null,null,null,null,null,null,null,"                  Stall / Ställe / Partie - Nr.:",null,null,null,{"$f":"Bestandsregister!N3","v":1}]
[null,null,null,null,null,null,null,null,null,null,"                                            Standort:",null,null,null,{"$f":"Auswertung!N4","v":0}]
[]
[null,null,null,null,null,null,null,null,null,null,null,null,null," Blatt:"]
[]
[]
[]
[null,null,"Datum der Behandlung",null,null,"Bucht- ","Diagnose","Arzneimittel",null,"Tierärztl Abgabe-","Tierärztl Abgabe-","Verab-reichung","Dosierung/Tier u.","Dauer der An-","Warte-","Anwender"]
[null,null,null,"Anzahl Tiere:","Stall- Nr.:","Ventil o. Sau Nr.",null,"Bezeichnung:","Charge Nr.:","beleg   Datum","beleg Nr.:","(i.m / Futter)","Tag ml / g / kg","wendung (Tage)","zeit     (Tage)"]
[]
[]
[]
[]
[]
[]
[]
[]
[]
[]
[]
[]
[]
[]
[]
[]
[]
[]
[]
[]
[]
[]
[]
[]
[]
[]
[]
[]
[]
[]
[]
[]
[]
[]
[]
[]
[]
[]
[]
[]
[]
[]
[]
[]
[]
[]
[]
[]
[]
[]
[]
[]
[]
[]
[]
[]
[]
[]
[]
[]
[]
[]
[]
[]
[]
[]
[]
[]
[]
[]
[]
[]
[]
[]
[]
[]
[]
[]
[]
[]
[]
[]
[]
[]
[]
[]
[]
[]
[]
[]
[]
[]
[]
[]
[]
[]
[]
[]
[]
[]
[]
[]
[null,null,null,null,null,null,null,{"$f":"Bestandsregister!B25","v":"By Heinr.-Bernh. Münzebrock Version 4.5"}]

{"sheet":"QS","index":6,"n_rows":58,"n_cols":17,"rows_kept":58,"cut":false,"hidden":true,"merged":[[42,6,44,7],[49,2,49,4],[49,5,49,7],[50,6,52,7],[26,1,41,1],[26,6,28,7],[33,2,33,4],[33,5,33,7],[34,6,36,7],[41,2,41,4],[41,5,41,7],[17,2,17,4],[17,5,17,7],[18,6,20,7],[24,2,24,3],[25,2,25,4],[25,5,25,7],[9,2,9,4],[9,5,9,7],[9,10,9,12],[9,13,9,15],[10,6,12,7],[10,14,12,15],[7,3,7,8],[7,11,7,16],[8,2,8,3],[8,4,8,7],[8,10,8,11],[8,12,8,15],[1,1,1,5],[1,6,1,7],[1,10,1,13],[1,14,1,15],[4,3,4,8],[4,11,4,16]]}
[]
[]
[null,null,"Datum:",null,null,null,null,null,null,null,"Datum:"]
[]
[null,null,"Checkliste Eigenkontrolle Schwein                                                                Stichprobenkontrolle","Checkliste Eigenkontrolle Schwein                                                                Stichprobenkontrolle",null,null,null,null,null,null,"Checkliste Eigenkontrolle Schwein                                                                          Produtionsbedingungen","Checkliste Eigenkontrolle Schwein                                                                          Produtionsbedingungen"]
[]
[]
[null,null,"Name:",{"$f":"CONCATENATE(Auswertung!D5,\",  \",Auswertung!D6)","v":",  "},null,null,null,null,null,null,"Name:",{"$f":"D8","v":",  "}]
[null,null,"Stall/Betriebsstätte:",null,null,null,null,null,null,null,"Stall/Betriebsstätte:"]
[null,null,{"$f":"IF($G$2=\"\",\"\",\"Datum der Eigenkontrolle:\")","v":""},null,null,{"$f":"IF($G$2=\"\",\"                         Datum der Eigenkontrolle:\",IF($D$3=\"\",TODAY(),$D$3))","v":"                         Datum der Eigenkontrolle:"},null,null,null,null,null,null,null,"Datum der Eigenkontrolle:",null,null,{"$f":"IF(L3=\"\",TODAY(),L3)","v":"2020-09-01"}]
[null,null,null,null,null,null,"Ergebnis i.O. nicht i.O.",null,null,null,null,null,null,null,"Ergebnis i.O. nicht i.O."]
[]
[null,null,null,null,null,"Beurteilung",null,null,"Bemerkung",null,null,null,null,"Beurteilung",null,null,"Bemerkung"]
[null,null,"Herkunftssicherung",null,1,"Kennzeichnung der Tiere",{"$f":"IF(H14<>\"\",\"\",\"X\")","v":"X"},null,null,null,"Herkunftssicherung",null,1,"Kennzeichnung der Tiere",{"$f":"IF(P14<>\"\",\"\",\"X\")","v":"X"}]
[null,null,null,null,2,"Bestandsregister",{"$f":"IF(H15<>\"\",\"\",\"X\")","v":"X"},null,null,null,null,null,2,"Bestandsregister","X"]
[null,null,null,null,3,"Belege für Tierbewegung",{"$f":"IF(H16<>\"\",\"\",\"X\")","v":"X"},null,null,null,null,null,4,"Belege für Tierbewegung","X"]
[null,null,null,null,null,null,null,null,null,null,"Tierschutz",null,1,"Böden","X"]
[null,null,{"$f":"IF($G$2=\"\",\"\",\"Datum der Eigenkontrolle:\")","v":""},null,null,{"$f":"IF($G$2=\"\",\"                         Datum der Eigenkontrolle:\",$F$10+$G$2+1)","v":"                         Datum der Eigenkontrolle:"},null,null,null,null,null,null,2,"Flächenangebot","X"]
[null,null,null,null,null,null,"Ergebnis i.O. nicht i.O.",null,null,null,null,null,3,"Beschäftigungsmöglichkeit","X"]
[null,null,null,null,null,null,null,null,null,null,null,null,4,"Beleuchtung","X"]
[null,null,null,null,null,"Beurteilung",null,null,"Bemerkung",null,null,null,5,"Stallklima","X"]
[null,null,"Herkunftssicherung",null,1,"Kennzeichnung der Tiere",{"$f":"IF(H22<>\"\",\"\",\"X\")","v":"X"},null,null,null,null,null,6,"Stalltemperatur","X"]
[null,null,null,null,2,"Bestandsregister",{"$f":"IF(H23<>\"\",\"\",\"X\")","v":"X"},null,null,null,null,null,7,"Vorsorge vor Betriebsstörungen","X"]
[null,null,null,null,3,"Belege für Tierbewegung",{"$f":"IF(H24<>\"\",\"\",\"X\")","v":"X"},null,null,null,null,null,8,"Fütterung und Pflege der Tiere","X"]
[null,null,null,null,null,null,null,null,null,null,null,null,9,"Überwachung der Anlage","X"]
[null,null,{"$f":"IF($G$2=\"\",\"\",\"Datum der Eigenkontrolle:\")","v":""},null,null,{"$f":"IF($G$2=\"\",\"                         Datum der Eigenkontrolle:\",$F$18+$G$2+1)","v":"                         Datum der Eigenkontrolle:"},null,null,null,null,"Arzneimittel VO",null,1,"Betreuungsvertrag","X"]
[null,"by Heinr.-Bernh. Münzebrock     Version 4.5",null,null,null,null,"Ergebnis i.O. nicht i.O.",null,null,null,null,null,2,"Nachweise ü. Bezug v. Arzneim.","X"]
[null,null,null,null,null,null,null,null,null,null,null,null,3,"Bestandsbuch","X"]
[null,null,null,null,null,"Beurteilung",null,null,"Bemerkung",null,null,null,4,"Medikamentenaufbewahrung","X"]
[null,null,"Herkunftssicherung",null,1,"Kennzeichnung der Tiere",{"$f":"IF(H30<>\"\",\"\",\"X\")","v":"X"},null,null,null,"Futtermittel",null,1,"Offene Deklaration","X"]
[null,null,null,null,2,"Bestandsregister",{"$f":"IF(H31<>\"\",\"\",\"X\")","v":"X"},null,null,null,null,null,2,"Einhaltung der Positivliste","X"]
[null,null,null,null,3,"Belege für Tierbewegung",{"$f":"IF(H32<>\"\",\"\",\"X\")","v":"X"},null,null,null,null,null,3,"Verzicht auf Leistungsförderer","X"]
[null,null,null,null,null,null,null,null,null,null,null,null,4,"Futteruntersuchungsergebnisse","X"]
[null,null,{"$f":"IF($G$2=\"\",\"\",\"Datum der Eigenkontrolle:\")","v":""},null,null,{"$f":"IF($G$2=\"\",\"                         Datum der Eigenkontrolle:\",$F$26+$G$2+1)","v":"                         Datum der Eigenkontrolle:"},null,null,null,null,null,null,5,"Lieferscheine, Abrechnungen ","X"]
[null,null,null,null,null,null,"Ergebnis i.O. nicht i.O.",null,null,null,null,null,6,"Technische Einrichtung f. Futterher.","X"]
[null,null,null,null,null,null,null,null,null,null,null,null,7,"Lagerung","X"]
[null,null,null,null,null,"Beurteilung",null,null,"Bemerkung",null,null,null,8,"Futter-Misch-Protokoll","X"]
[null,null,"Herkunftssicherung",null,1,"Kennzeichnung der Tiere",{"$f":"IF(H38<>\"\",\"\",\"X\")","v":"X"},null,null,null,"Hygiene",null,1,"Bauzustand","X"]
[null,null,null,null,2,"Bestandsregister",{"$f":"IF(H39<>\"\",\"\",\"X\")","v":"X"},null,null,null,null,null,2,"Hinweisschild","X"]
[null,null,null,null,3,"Belege für Tierbewegung",{"$f":"IF(H40<>\"\",\"\",\"X\")","v":"X"},null,null,null,null,null,3,"Reinigung und Desinfektion","X"]
[null,null,null,null,null,null,null,null,null,null,null,null,4,"Schutzkleidung f. betriebsf. Pers.","X"]
[null,null,{"$f":"IF($G$2=\"\",\"\",\"Datum der Eigenkontrolle:\")","v":""},null,null,{"$f":"IF($G$2=\"\",\"                         Datum der Eigenkontrolle:\",$F$34+$G$2+1)","v":"                         Datum der Eigenkontrolle:"},null,null,null,null,null,null,5,"Schutz vor Wildschweinen","X"]
[null,null,null,null,null,null,"Ergebnis i.O. nicht i.O.",null,null,null,null,null,6,"Dokumentation der Tierverluste","X"]
[null,null,null,null,null,null,null,null,null,null,null,null,7,"Kadaverlagerung","X"]
[null,null,null,null,null,"Beurteilung",null,null,"Bemerkung",null,null,null,8,"Schadnagerbekämpfung","X"]
[null,null,"Herkunftssicherung",null,1,"Kennzeichnung der Tiere",{"$f":"IF(H46<>\"\",\"\",\"X\")","v":"X"},null,null,null,null,null,9,"Dungausbringung","X"]
[null,null,null,null,2,"Bestandsregister",{"$f":"IF(H47<>\"\",\"\",\"X\")","v":"X"},null,null,null,"zusätzlich bei",null,1,"Stallabteile","X"]
[null,null,null,null,3,"Belege für Tierbewegung",{"$f":"IF(H48<>\"\",\"\",\"X\")","v":"X"},null,null,null,"> 700 MS, > 150 Sauen",null,2,"Betriebseinfriedigung","X"]
[null,null,null,null,null,null,null,null,null,null,null,null,3,"Ver- und Entladeeinrichtung","X"]
[null,null,{"$f":"IF($G$2=\"\",\"\",\"Datum der Eigenkontrolle:\")","v":""},null,null,{"$f":"IF($G$2=\"\",\"                         Datum der Eigenkontrolle:\",$F$42+$G$2+1)","v":"                         Datum der Eigenkontrolle:"},null,null,null,null,null,null,4,"Umkleideraum","X"]
[null,null,null,null,null,null,"Ergebnis i.O. nicht i.O.",null,null,null,null,null,5,"Isolierstall","X"]
[null,null,null,null,null,null,null,null,null,null,"Umwelt",null,1,"Nährstoffvergleich","X"]
[null,null,null,null,null,"Beurteilung",null,null,"Bemerkung",null,null,null,2,"Verwertung v. Wirtschaftsdüngern","X"]
[null,null,"Herkunftssicherung",null,1,"Kennzeichnung der Tiere",{"$f":"IF(H54<>\"\",\"\",\"X\")","v":"X"},null,null,null,null,null,3,"Ausbringung von Wirtschaftsd.","X"]
[null,null,null,null,2,"Bestandsregister",{"$f":"IF(H55<>\"\",\"\",\"X\")","v":"X"},null,null,null,null,null,4,"Lagerkapazität","X"]
[null,null,null,null,3,"Belege für Tierbewegung",{"$f":"IF(H56<>\"\",\"\",\"X\")","v":"X"},null,null,null,"Salmonellen",null,1,"Teilnahme Salmonellenprogramm","X"]
[null,null,null,null,null,null,null,null,null,null,null,null,2,"Ergebnisse der Untersuchungen","X"]
[null,null,null,null,null,null,null,null,null,null,"Befunddaten",null,1,"Ergebnisse Organveränderungen","X"]

{"sheet":"Info","index":7,"n_rows":92,"n_cols":3,"rows_kept":92,"cut":false,"hidden":true,"merged":[]}
[]
[]
[null,null,"Auswertung Schweinemast"]
[]
[null,null,"von Heinr. - Bernh. Münzebrock, Voerdenerstr. 7, 49434 Neuenkirchen Tel.:05493/5688"]
[null,null,"E-mail:HBM49434@Freenet.de"]
[]
[null,null,"Diese Auswertung Schweinemast darf bis auf Widerruf verwendet-, aber nicht kopiert oder verkauft werden."]
[]
[]
[null,null,"Ausfüllanleitung"]
[]
[null,null,"Achtung: Nur die weiss unterlegten Felder sind Eingabefelder  - Bitte nur Nettopreise eingeben!!!"]
[]
[]
[null,null,"Allgemein:"]
[]
[null,null,"Bitte geben Sie in der Mappe \"Auswertung\" als erstes Ihren Namen, Ort und Ihre Betriebsnummer in die dafür "]
[null,null,"vorbereiteten Felder ein. Die Eingaben auf der rechten Seite sind optional."]
[]
[]
[null,null,"Tiere_Zu_Abgang"]
[]
[null,null,"Hier können Sie alle Zu- und Abgänge eingeben. Alle weissen Felder dienen der Dateneingabe. Der Rest wird vom "]
[null,null,"Computer ausgefüllt. Sie sollten, um eine korrekte Auswertung zu erhalten, alle Daten eingeben."]
[]
[]
[null,null,"Futter"]
[]
[null,null,"Bitte gehen Sie hierbei sorgfältig vor und tragen alle geforderten Daten ein. Sie können den Lieferanten, die Futter-"]
[null,null,"sorten, Lieferungen und, falls vorhanden, Kontraktpreise eingeben."]
[]
[null,null,"Achtung: Die Eingabe eines Kontraktpreises bei einer Futtersorte gilt für das komplette darunterstehende Eingabefeld."]
[null,null,"Die Angabe des Gesamtpreises entfällt, da der Computer anhand der gelieferten Menge die Summe errechnet. Falls "]
[null,null,"sich im Laufe des Durchgangs der Kontraktpreis ändert, haben Sie die Möglichkeit auf Seite 3 die Futtersorte mit dem"]
[null,null,"neuen Preis einzurichten."]
[]
[null,null,"Wenn Sie keinen Kontraktpreis haben, müssen Sie bei jeder Lieferung den Gesamtpreis - Netto angeben."]
[]
[]
[null,null,"Kosten"]
[]
[null,null,"In diesen Bereich sollten Sie, wenn möglich, alle anfallenden Kosten angeben. Dabei ist zwischen Kosten / Durchgang"]
[null,null,"und Kosten / Jahr zu unterscheiden. Bei den jährlichen Kosten kann es vorkommen, dass keine Mwst anfällt, "]
[null,null,"z. B. Lohn usw.. Hier haben Sie die Möglichkeit, dass, durch Eingabe eines Sterns vor der Kostenart, die Berechnung "]
[null,null,"grundsätzlich ohne Mwst erfolgt."]
[]
[null,null,"Einige, häufig anfallende, Kostenarten sind vorgegeben, andere können Sie betriebsindividuell eingeben."]
[]
[]
[null,null,"Bestandsregister"]
[]
[null,null,"Das Register wird, bei korrekten Eingaben im Bereich \"Tiere_Zu_Abgang\", vom Computer ausgefüllt. Zusätzliche"]
[null,null,"Angaben wie z.B. Seiten-Nr., Stallreinigung usw können Sie hinzufügen."]
[]
[]
[null,null,"Arzneimittelbuch"]
[]
[null,null,"Hier können Sie alle Behandlungen, die im Laufe eines Durchgangs notwendig sind, eintragen. "]
[]
[]
[null,null,"Auswertung"]
[]
[null,null,"Achtung: Eine Auswertung kann nur dann erfolgen, wenn alle Daten korrekt und vollständig eingegeben worden sind!!!. "]
[]
[null,null,"Wie der Name schon sagt: Auf diesem Blatt erfolgt, wenn der Durchgang beendet ist, eine Auswertung aller mastrelevanten"]
[null,null,"Angaben aus den oben beschriebenen Seiten einschl. Deckungsbeitragsberechnung. Die Berechnung erfolgt, je nach Wunsch,"]
[null,null,"mit- oder ohne Mwst.  "]
[]
[null,null,"Im laufenden Durchgang werden nur die Daten angezeigt, die bis Dato vorhanden sind. Eine Auswertung entfällt zu diesem"]
[null,null,"Zeitpunkt."]
[]
[]
[null,null,"Datenausdruck:"]
[]
[null,null,"Hier stehen Ihnen das Makro: Tastenkombination Strg+d -, oder die konventionelle Methode zur Verfügung."]
[null,null,"Ohne die Aktivierung des Makros können Sie aus dieser Arbeitsmappe einzelne Bereiche- oder auch alle Blätter ausdrucken."]
[null,null,"Um eine einzelne Seite auszudrucken, gehen Sie in das entsprechende Blatt. Dann drücken Sie auf den Link \"Datei\" und"]
[null,null,"klicken auf \"Seitenansicht\". Jetzt klicken Sie die Taste \"Drucken\". Danach öffnet sich ein Fenster mit zwei Kästchen."]
[null,null,"Sie wählen das Kästchen neben \"Seiten\" und geben die entsprechende Seiten-nummer(n) für Ihren gewählten Bereich an."]
[null,null,"Noch ein Klick auf \"OK\", und der Druck erfolgt (wenn Sie Papier eingelegt haben)."]
[]
[null,null,"Alle Blätter der Arbeitsmappe ausdrucken ist ganz einfach. Sie klicken mit der Maus auf den Link \"Datei\", und wählen"]
[null,null,"\"Drucken\". Jetzt noch ein Klick auf \"OK\", und schon kann der Druck beginnen."]
[]
[]
[null,null," Wenn Sie Fragen oder Anregungen haben, rufen Sie mich an, oder schreiben mir. "]
[]
[]
[null,null,"H.B.M."]
[]
[null,null,"PS: Wenn Ihnen diese Arbeitsmappe eine kleine Hilfe ist, dann bitte ich um eine kleine Spende an o.g. Adresse."]

{"sheet":"Modul1","index":8,"n_rows":0,"n_cols":0,"rows_kept":0,"cut":false,"hidden":true,"merged":[]}

{"sheet":"Modul2","index":9,"n_rows":0,"n_cols":0,"rows_kept":0,"cut":false,"hidden":true,"merged":[]}

{"sheet":"Modul3","index":10,"n_rows":0,"n_cols":0,"rows_kept":0,"cut":false,"hidden":true,"merged":[]}

{"sheet":"Modul4","index":11,"n_rows":0,"n_cols":0,"rows_kept":0,"cut":false,"hidden":true,"merged":[]}

{"sheet":"Modul5","index":12,"n_rows":0,"n_cols":0,"rows_kept":0,"cut":false,"hidden":true,"merged":[]}

{"sheet":"Modul6","index":13,"n_rows":0,"n_cols":0,"rows_kept":0,"cut":false,"hidden":true,"merged":[]}